Organisation Code,Organisation Label,Effective Date,Organisational Unit,Service Division Label,Category Internal Name,Purpose,Detailed Expenditure Code,Payment Date,Transaction Number,Irrecoverable VAT Amount,Amount,Capital Or Revenue,Beneficiary Name,Procurement Card
Http://opendatacommunities.org/id/metropolitan-district-council/leeds,Leeds City Council,28/02/2022,Adults and Health,Services For Older People Under 65 P/Dis,Agency Payments,Sheltered Accommodation,569,02/02/2022,2202-00001 ,0.00,5400.00,R,A & V TRANSITIONAL HOMES,No
Http://opendatacommunities.org/id/metropolitan-district-council/leeds,Leeds City Council,28/02/2022,Children and Families,Social Care,Agency Payments,Services Rendered By Other Organisations,511,02/02/2022,2202-00002,0.00,321.60,R,REDACTED PERSONAL DATA,No
Http://opendatacommunities.org/id/metropolitan-district-council/leeds,Leeds City Council,28/02/2022,Children and Families,Social Care,Agency Payments,Services Rendered By Other Organisations,511,04/02/2022,2202-00003,0.00,267.60,R,REDACTED PERSONAL DATA,No
Http://opendatacommunities.org/id/metropolitan-district-council/leeds,Leeds City Council,28/02/2022,Resources,Leeds Building Services,Supplies and Services,Other Hired And Contracted Services,265,18/02/2022,2202-00004,0.00,29548.00,R,A Buckler (Haulage) Ltd,No
Http://opendatacommunities.org/id/metropolitan-district-council/leeds,Leeds City Council,28/02/2022,Resources,Leeds Building Services,Supplies and Services,Other Hired And Contracted Services,265,25/02/2022,2202-00005,0.00,42955.00,R,A Buckler (Haulage) Ltd,No
Http://opendatacommunities.org/id/metropolitan-district-council/leeds,Leeds City Council,28/02/2022,Resources,Leeds Building Services,Supplies and Services,Other Hired And Contracted Services,265,25/02/2022,2202-00006,0.00,9330.00,R,A Buckler (Haulage) Ltd,No
Http://opendatacommunities.org/id/metropolitan-district-council/leeds,Leeds City Council,28/02/2022,Children and Families,Social Care,Agency Payments,Services Rendered By Other Organisations,511,04/02/2022,2202-00007,0.00,267.60,R,REDACTED PERSONAL DATA,No
Http://opendatacommunities.org/id/metropolitan-district-council/leeds,Leeds City Council,28/02/2022,Strategic Landlord,HRA Housing Leeds,Capital,CONSTRUCTION,3,04/02/2022,2202-00008,0.00,84702.56,C,A Connolly Limited,No
Http://opendatacommunities.org/id/metropolitan-district-council/leeds,Leeds City Council,28/02/2022,Strategic Landlord,HRA Housing Leeds,Capital,CONSTRUCTION,3,04/02/2022,2202-00009,0.00,81155.40,C,A Connolly Limited,No
Http://opendatacommunities.org/id/metropolitan-district-council/leeds,Leeds City Council,28/02/2022,Resources,Leeds Building Services,Supplies and Services,Other Hired And Contracted Services,265,17/02/2022,2202-00010,0.00,17065.00,R,A Coole Electrical Ltd,No
Http://opendatacommunities.org/id/metropolitan-district-council/leeds,Leeds City Council,28/02/2022,Resources,Leeds Building Services,Supplies and Services,Other Hired And Contracted Services,265,24/02/2022,2202-00011,0.00,13368.00,R,A Coole Electrical Ltd,No
Http://opendatacommunities.org/id/metropolitan-district-council/leeds,Leeds City Council,28/02/2022,Resources,Leeds Building Services,Supplies and Services,Other Hired And Contracted Services,265,24/02/2022,2202-00012,0.00,5345.00,R,A Coole Electrical Ltd,No
Http://opendatacommunities.org/id/metropolitan-district-council/leeds,Leeds City Council,28/02/2022,Communities Housing and Environment,Customer Access,Supplies and Services,Bought In Professional Services,277,09/02/2022,2202-00013,0.00,18.00,R,A D Dumitru,No
Http://opendatacommunities.org/id/metropolitan-district-council/leeds,Leeds City Council,28/02/2022,Communities Housing and Environment,Customer Access,Supplies and Services,Bought In Professional Services,277,09/02/2022,2202-00014,0.00,18.00,R,A D Dumitru,No
Http://opendatacommunities.org/id/metropolitan-district-council/leeds,Leeds City Council,28/02/2022,Communities Housing and Environment,Customer Access,Supplies and Services,Bought In Professional Services,277,09/02/2022,2202-00015,0.00,18.00,R,A D Dumitru,No
Http://opendatacommunities.org/id/metropolitan-district-council/leeds,Leeds City Council,28/02/2022,Communities Housing and Environment,Customer Access,Supplies and Services,Bought In Professional Services,277,17/02/2022,2202-00016,0.00,36.00,R,A D Dumitru,No
Http://opendatacommunities.org/id/metropolitan-district-council/leeds,Leeds City Council,28/02/2022,Communities Housing and Environment,Customer Access,Supplies and Services,Bought In Professional Services,277,17/02/2022,2202-00017,0.00,18.00,R,A D Dumitru,No
Http://opendatacommunities.org/id/metropolitan-district-council/leeds,Leeds City Council,28/02/2022,Communities Housing and Environment,Customer Access,Supplies and Services,Bought In Professional Services,277,17/02/2022,2202-00018,0.00,18.00,R,A D Dumitru,No
Http://opendatacommunities.org/id/metropolitan-district-council/leeds,Leeds City Council,28/02/2022,Communities Housing and Environment,Customer Access,Supplies and Services,Bought In Professional Services,277,17/02/2022,2202-00019,0.00,18.00,R,A D Dumitru,No
Http://opendatacommunities.org/id/metropolitan-district-council/leeds,Leeds City Council,28/02/2022,Communities Housing and Environment,Customer Access,Supplies and Services,Bought In Professional Services,277,23/02/2022,2202-00020,0.00,18.00,R,A D Dumitru,No
Http://opendatacommunities.org/id/metropolitan-district-council/leeds,Leeds City Council,28/02/2022,Communities Housing and Environment,Customer Access,Supplies and Services,Bought In Professional Services,277,23/02/2022,2202-00021,0.00,13.50,R,A D Dumitru,No
Http://opendatacommunities.org/id/metropolitan-district-council/leeds,Leeds City Council,28/02/2022,Communities Housing and Environment,Customer Access,Supplies and Services,Bought In Professional Services,277,23/02/2022,2202-00022,0.00,36.00,R,A D Dumitru,No
Http://opendatacommunities.org/id/metropolitan-district-council/leeds,Leeds City Council,28/02/2022,Communities Housing and Environment,Customer Access,Supplies and Services,Bought In Professional Services,277,23/02/2022,2202-00023,0.00,54.00,R,A D Dumitru,No
Http://opendatacommunities.org/id/metropolitan-district-council/leeds,Leeds City Council,28/02/2022,Children and Families,Social Care,Agency Payments,Services Rendered By Voluntary Sector,505,02/02/2022,2202-00024,0.00,1929.60,R,REDACTED PERSONAL DATA,No
Http://opendatacommunities.org/id/metropolitan-district-council/leeds,Leeds City Council,28/02/2022,Children and Families,Social Care,Agency Payments,Services Rendered By Voluntary Sector,505,04/02/2022,2202-00025,0.00,5084.40,R,REDACTED PERSONAL DATA,No
Http://opendatacommunities.org/id/metropolitan-district-council/leeds,Leeds City Council,28/02/2022,Children and Families,Social Care,Agency Payments,Services Rendered By Other Organisations,511,04/02/2022,2202-00026,0.00,100.35,R,REDACTED PERSONAL DATA,No
Http://opendatacommunities.org/id/metropolitan-district-council/leeds,Leeds City Council,28/02/2022,Children and Families,Social Care,Agency Payments,Section 17,551,04/02/2022,2202-00027,0.00,124.80,R,REDACTED PERSONAL DATA,No
Http://opendatacommunities.org/id/metropolitan-district-council/leeds,Leeds City Council,28/02/2022,Children and Families,Social Care,Agency Payments,Services Rendered By Other Organisations,511,04/02/2022,2202-00028,0.00,1489.64,R,REDACTED PERSONAL DATA,No
Http://opendatacommunities.org/id/metropolitan-district-council/leeds,Leeds City Council,28/02/2022,Adults and Health,Other Generic Services,Agency Payments,Fees To Carers,563,04/02/2022,2202-00029,0.00,122.85,R,REDACTED PERSONAL DATA,No
Http://opendatacommunities.org/id/metropolitan-district-council/leeds,Leeds City Council,28/02/2022,Adults and Health,Other Generic Services,Agency Payments,Fees To Carers,563,16/02/2022,2202-00030,0.00,452.64,R,REDACTED PERSONAL DATA,No
Http://opendatacommunities.org/id/metropolitan-district-council/leeds,Leeds City Council,28/02/2022,Adults and Health,Other Generic Services,Agency Payments,Fees To Carers,563,16/02/2022,2202-00031,0.00,50.40,R,REDACTED PERSONAL DATA,No
Http://opendatacommunities.org/id/metropolitan-district-council/leeds,Leeds City Council,28/02/2022,Resources,Leeds Building Services,Supplies and Services,Operational Materials,205,11/02/2022,2202-00032,0.00,795.00,R,A J H  Pump Supply & Repair Ltd,No
Http://opendatacommunities.org/id/metropolitan-district-council/leeds,Leeds City Council,28/02/2022,Resources,Leeds Building Services,Supplies and Services,Operational Materials,205,17/02/2022,2202-00033,0.00,856.00,R,A J H  Pump Supply & Repair Ltd,No
Http://opendatacommunities.org/id/metropolitan-district-council/leeds,Leeds City Council,28/02/2022,Resources,Leeds Building Services,Supplies and Services,Operational Materials,205,18/02/2022,2202-00034,0.00,1590.00,R,A J H  Pump Supply & Repair Ltd,No
Http://opendatacommunities.org/id/metropolitan-district-council/leeds,Leeds City Council,28/02/2022,Resources,Leeds Building Services,Supplies and Services,Operational Materials,205,22/02/2022,2202-00035,0.00,1136.00,R,A J H  Pump Supply & Repair Ltd,No
Http://opendatacommunities.org/id/metropolitan-district-council/leeds,Leeds City Council,28/02/2022,Resources,Leeds Building Services,Supplies and Services,Operational Materials,205,22/02/2022,2202-00036,0.00,185.00,R,A J H  Pump Supply & Repair Ltd,No
Http://opendatacommunities.org/id/metropolitan-district-council/leeds,Leeds City Council,28/02/2022,Resources,Leeds Building Services,Supplies and Services,Operational Materials,205,22/02/2022,2202-00037,0.00,195.00,R,A J H  Pump Supply & Repair Ltd,No
Http://opendatacommunities.org/id/metropolitan-district-council/leeds,Leeds City Council,28/02/2022,Resources,Leeds Building Services,Supplies and Services,Operational Materials,205,25/02/2022,2202-00038,0.00,458.00,R,A J H  Pump Supply & Repair Ltd,No
Http://opendatacommunities.org/id/metropolitan-district-council/leeds,Leeds City Council,28/02/2022,Resources,Leeds Building Services,Supplies and Services,Operational Materials,205,25/02/2022,2202-00039,0.00,1015.00,R,A J H  Pump Supply & Repair Ltd,No
Http://opendatacommunities.org/id/metropolitan-district-council/leeds,Leeds City Council,28/02/2022,City Development,Libraries Arts & Heritage,Supplies and Services,Other Hired And Contracted Services,265,14/02/2022,2202-00040,0.00,460.00,R,A J Wightman,No
Http://opendatacommunities.org/id/metropolitan-district-council/leeds,Leeds City Council,28/02/2022,Children and Families,Social Care,Agency Payments,Services Rendered By Other Organisations,511,04/02/2022,2202-00041,0.00,2408.40,R,REDACTED PERSONAL DATA,No
Http://opendatacommunities.org/id/metropolitan-district-council/leeds,Leeds City Council,28/02/2022,City Development,Economic Development,Supplies and Services,Grant Related Expenditure,290,17/02/2022,2202-00042,0.00,528.50,R,A Little Something Extra Ltd,No
Http://opendatacommunities.org/id/metropolitan-district-council/leeds,Leeds City Council,28/02/2022,Communities Housing and Environment,Customer Access,Supplies and Services,Bought In Professional Services,277,02/02/2022,2202-00043,0.00,18.00,R,A MOHAMMED,No
Http://opendatacommunities.org/id/metropolitan-district-council/leeds,Leeds City Council,28/02/2022,Communities Housing and Environment,Customer Access,Supplies and Services,Bought In Professional Services,277,02/02/2022,2202-00044,0.00,13.50,R,A MOHAMMED,No
Http://opendatacommunities.org/id/metropolitan-district-council/leeds,Leeds City Council,28/02/2022,Communities Housing and Environment,Customer Access,Supplies and Services,Bought In Professional Services,277,02/02/2022,2202-00045,0.00,31.50,R,A MOHAMMED,No
Http://opendatacommunities.org/id/metropolitan-district-council/leeds,Leeds City Council,28/02/2022,Communities Housing and Environment,Customer Access,Supplies and Services,Bought In Professional Services,277,02/02/2022,2202-00046,0.00,18.00,R,A MOHAMMED,No
Http://opendatacommunities.org/id/metropolitan-district-council/leeds,Leeds City Council,28/02/2022,Communities Housing and Environment,Customer Access,Supplies and Services,Bought In Professional Services,277,02/02/2022,2202-00047,0.00,24.00,R,A MOHAMMED,No
Http://opendatacommunities.org/id/metropolitan-district-council/leeds,Leeds City Council,28/02/2022,Communities Housing and Environment,Customer Access,Supplies and Services,Bought In Professional Services,277,02/02/2022,2202-00048,0.00,18.00,R,A MOHAMMED,No
Http://opendatacommunities.org/id/metropolitan-district-council/leeds,Leeds City Council,28/02/2022,Communities Housing and Environment,Customer Access,Supplies and Services,Bought In Professional Services,277,02/02/2022,2202-00049,0.00,18.00,R,A MOHAMMED,No
Http://opendatacommunities.org/id/metropolitan-district-council/leeds,Leeds City Council,28/02/2022,Communities Housing and Environment,Customer Access,Supplies and Services,Bought In Professional Services,277,02/02/2022,2202-00050,0.00,27.00,R,A MOHAMMED,No
Http://opendatacommunities.org/id/metropolitan-district-council/leeds,Leeds City Council,28/02/2022,Communities Housing and Environment,Customer Access,Supplies and Services,Bought In Professional Services,277,02/02/2022,2202-00051,0.00,18.00,R,A MOHAMMED,No
Http://opendatacommunities.org/id/metropolitan-district-council/leeds,Leeds City Council,28/02/2022,Communities Housing and Environment,Customer Access,Supplies and Services,Bought In Professional Services,277,09/02/2022,2202-00052,0.00,27.00,R,A MOHAMMED,No
Http://opendatacommunities.org/id/metropolitan-district-council/leeds,Leeds City Council,28/02/2022,Communities Housing and Environment,Customer Access,Supplies and Services,Bought In Professional Services,277,09/02/2022,2202-00053,0.00,27.00,R,A MOHAMMED,No
Http://opendatacommunities.org/id/metropolitan-district-council/leeds,Leeds City Council,28/02/2022,Communities Housing and Environment,Customer Access,Supplies and Services,Bought In Professional Services,277,09/02/2022,2202-00054,0.00,31.50,R,A MOHAMMED,No
Http://opendatacommunities.org/id/metropolitan-district-council/leeds,Leeds City Council,28/02/2022,Communities Housing and Environment,Customer Access,Supplies and Services,Bought In Professional Services,277,09/02/2022,2202-00055,0.00,18.00,R,A MOHAMMED,No
Http://opendatacommunities.org/id/metropolitan-district-council/leeds,Leeds City Council,28/02/2022,Communities Housing and Environment,Customer Access,Supplies and Services,Bought In Professional Services,277,09/02/2022,2202-00056,0.00,22.50,R,A MOHAMMED,No
Http://opendatacommunities.org/id/metropolitan-district-council/leeds,Leeds City Council,28/02/2022,Communities Housing and Environment,Customer Access,Supplies and Services,Bought In Professional Services,277,09/02/2022,2202-00057,0.00,13.50,R,A MOHAMMED,No
Http://opendatacommunities.org/id/metropolitan-district-council/leeds,Leeds City Council,28/02/2022,Communities Housing and Environment,Customer Access,Supplies and Services,Bought In Professional Services,277,09/02/2022,2202-00058,0.00,18.00,R,A MOHAMMED,No
Http://opendatacommunities.org/id/metropolitan-district-council/leeds,Leeds City Council,28/02/2022,Communities Housing and Environment,Customer Access,Supplies and Services,Bought In Professional Services,277,09/02/2022,2202-00059,0.00,31.50,R,A MOHAMMED,No
Http://opendatacommunities.org/id/metropolitan-district-council/leeds,Leeds City Council,28/02/2022,Communities Housing and Environment,Customer Access,Supplies and Services,Bought In Professional Services,277,09/02/2022,2202-00060,0.00,9.00,R,A MOHAMMED,No
Http://opendatacommunities.org/id/metropolitan-district-council/leeds,Leeds City Council,28/02/2022,Communities Housing and Environment,Customer Access,Supplies and Services,Bought In Professional Services,277,09/02/2022,2202-00061,0.00,22.50,R,A MOHAMMED,No
Http://opendatacommunities.org/id/metropolitan-district-council/leeds,Leeds City Council,28/02/2022,Communities Housing and Environment,Customer Access,Supplies and Services,Bought In Professional Services,277,09/02/2022,2202-00062,0.00,27.00,R,A MOHAMMED,No
Http://opendatacommunities.org/id/metropolitan-district-council/leeds,Leeds City Council,28/02/2022,Communities Housing and Environment,Customer Access,Supplies and Services,Bought In Professional Services,277,09/02/2022,2202-00063,0.00,18.00,R,A MOHAMMED,No
Http://opendatacommunities.org/id/metropolitan-district-council/leeds,Leeds City Council,28/02/2022,Communities Housing and Environment,Customer Access,Supplies and Services,Bought In Professional Services,277,09/02/2022,2202-00064,0.00,22.50,R,A MOHAMMED,No
Http://opendatacommunities.org/id/metropolitan-district-council/leeds,Leeds City Council,28/02/2022,Communities Housing and Environment,Customer Access,Supplies and Services,Bought In Professional Services,277,09/02/2022,2202-00065,0.00,18.00,R,A MOHAMMED,No
Http://opendatacommunities.org/id/metropolitan-district-council/leeds,Leeds City Council,28/02/2022,Communities Housing and Environment,Customer Access,Supplies and Services,Bought In Professional Services,277,17/02/2022,2202-00066,0.00,27.00,R,A MOHAMMED,No
Http://opendatacommunities.org/id/metropolitan-district-council/leeds,Leeds City Council,28/02/2022,Communities Housing and Environment,Customer Access,Supplies and Services,Bought In Professional Services,277,17/02/2022,2202-00067,0.00,72.00,R,A MOHAMMED,No
Http://opendatacommunities.org/id/metropolitan-district-council/leeds,Leeds City Council,28/02/2022,Communities Housing and Environment,Customer Access,Supplies and Services,Bought In Professional Services,277,17/02/2022,2202-00068,0.00,9.00,R,A MOHAMMED,No
Http://opendatacommunities.org/id/metropolitan-district-council/leeds,Leeds City Council,28/02/2022,Communities Housing and Environment,Customer Access,Supplies and Services,Bought In Professional Services,277,17/02/2022,2202-00069,0.00,18.00,R,A MOHAMMED,No
Http://opendatacommunities.org/id/metropolitan-district-council/leeds,Leeds City Council,28/02/2022,Communities Housing and Environment,Customer Access,Supplies and Services,Bought In Professional Services,277,17/02/2022,2202-00070,0.00,72.00,R,A MOHAMMED,No
Http://opendatacommunities.org/id/metropolitan-district-council/leeds,Leeds City Council,28/02/2022,Communities Housing and Environment,Customer Access,Supplies and Services,Bought In Professional Services,277,17/02/2022,2202-00071,0.00,18.00,R,A MOHAMMED,No
Http://opendatacommunities.org/id/metropolitan-district-council/leeds,Leeds City Council,28/02/2022,Communities Housing and Environment,Customer Access,Supplies and Services,Bought In Professional Services,277,17/02/2022,2202-00072,0.00,18.00,R,A MOHAMMED,No
Http://opendatacommunities.org/id/metropolitan-district-council/leeds,Leeds City Council,28/02/2022,Communities Housing and Environment,Customer Access,Supplies and Services,Bought In Professional Services,277,17/02/2022,2202-00073,0.00,18.00,R,A MOHAMMED,No
Http://opendatacommunities.org/id/metropolitan-district-council/leeds,Leeds City Council,28/02/2022,Communities Housing and Environment,Customer Access,Supplies and Services,Bought In Professional Services,277,17/02/2022,2202-00074,0.00,18.00,R,A MOHAMMED,No
Http://opendatacommunities.org/id/metropolitan-district-council/leeds,Leeds City Council,28/02/2022,Communities Housing and Environment,Customer Access,Supplies and Services,Bought In Professional Services,277,17/02/2022,2202-00075,0.00,22.50,R,A MOHAMMED,No
Http://opendatacommunities.org/id/metropolitan-district-council/leeds,Leeds City Council,28/02/2022,Communities Housing and Environment,Customer Access,Supplies and Services,Bought In Professional Services,277,17/02/2022,2202-00076,0.00,27.00,R,A MOHAMMED,No
Http://opendatacommunities.org/id/metropolitan-district-council/leeds,Leeds City Council,28/02/2022,Communities Housing and Environment,Customer Access,Supplies and Services,Bought In Professional Services,277,23/02/2022,2202-00077,0.00,13.50,R,A MOHAMMED,No
Http://opendatacommunities.org/id/metropolitan-district-council/leeds,Leeds City Council,28/02/2022,Communities Housing and Environment,Customer Access,Supplies and Services,Bought In Professional Services,277,23/02/2022,2202-00078,0.00,18.00,R,A MOHAMMED,No
Http://opendatacommunities.org/id/metropolitan-district-council/leeds,Leeds City Council,28/02/2022,Communities Housing and Environment,Customer Access,Supplies and Services,Bought In Professional Services,277,23/02/2022,2202-00079,0.00,18.00,R,A MOHAMMED,No
Http://opendatacommunities.org/id/metropolitan-district-council/leeds,Leeds City Council,28/02/2022,Communities Housing and Environment,Customer Access,Supplies and Services,Bought In Professional Services,277,23/02/2022,2202-00080,0.00,18.00,R,A MOHAMMED,No
Http://opendatacommunities.org/id/metropolitan-district-council/leeds,Leeds City Council,28/02/2022,Communities Housing and Environment,Customer Access,Supplies and Services,Bought In Professional Services,277,23/02/2022,2202-00081,0.00,22.50,R,A MOHAMMED,No
Http://opendatacommunities.org/id/metropolitan-district-council/leeds,Leeds City Council,28/02/2022,Communities Housing and Environment,Customer Access,Supplies and Services,Bought In Professional Services,277,23/02/2022,2202-00082,0.00,18.00,R,A MOHAMMED,No
Http://opendatacommunities.org/id/metropolitan-district-council/leeds,Leeds City Council,28/02/2022,Communities Housing and Environment,Customer Access,Supplies and Services,Bought In Professional Services,277,23/02/2022,2202-00083,0.00,18.00,R,A MOHAMMED,No
Http://opendatacommunities.org/id/metropolitan-district-council/leeds,Leeds City Council,28/02/2022,Communities Housing and Environment,Customer Access,Supplies and Services,Bought In Professional Services,277,23/02/2022,2202-00084,0.00,27.00,R,A MOHAMMED,No
Http://opendatacommunities.org/id/metropolitan-district-council/leeds,Leeds City Council,28/02/2022,Communities Housing and Environment,Customer Access,Supplies and Services,Bought In Professional Services,277,23/02/2022,2202-00085,0.00,18.00,R,A MOHAMMED,No
Http://opendatacommunities.org/id/metropolitan-district-council/leeds,Leeds City Council,28/02/2022,Communities Housing and Environment,Customer Access,Supplies and Services,Bought In Professional Services,277,23/02/2022,2202-00086,0.00,18.00,R,A MOHAMMED,No
Http://opendatacommunities.org/id/metropolitan-district-council/leeds,Leeds City Council,28/02/2022,Communities Housing and Environment,Customer Access,Supplies and Services,Bought In Professional Services,277,23/02/2022,2202-00087,0.00,22.50,R,A MOHAMMED,No
Http://opendatacommunities.org/id/metropolitan-district-council/leeds,Leeds City Council,28/02/2022,Communities Housing and Environment,Benefits Welfare and Poverty,Supplies and Services,Grant Related Expenditure,298,14/02/2022,2202-00088,0.00,500.00,R,REDACTED PERSONAL DATA,No
Http://opendatacommunities.org/id/metropolitan-district-council/leeds,Leeds City Council,28/02/2022,Children and Families,Social Care,Agency Payments,Services Rendered By Other Organisations,511,02/02/2022,2202-00089,0.00,1286.40,R,REDACTED PERSONAL DATA,No
Http://opendatacommunities.org/id/metropolitan-district-council/leeds,Leeds City Council,28/02/2022,Children and Families,Social Care,Agency Payments,Services Rendered By Other Organisations,511,04/02/2022,2202-00090,0.00,4281.60,R,REDACTED PERSONAL DATA,No
Http://opendatacommunities.org/id/metropolitan-district-council/leeds,Leeds City Council,28/02/2022,Communities Housing and Environment,Customer Access,Supplies and Services,Bought In Professional Services,277,02/02/2022,2202-00091,0.00,18.00,R,A NAMAKI,No
Http://opendatacommunities.org/id/metropolitan-district-council/leeds,Leeds City Council,28/02/2022,Communities Housing and Environment,Customer Access,Supplies and Services,Bought In Professional Services,277,02/02/2022,2202-00092,0.00,72.00,R,A NAMAKI,No
Http://opendatacommunities.org/id/metropolitan-district-council/leeds,Leeds City Council,28/02/2022,Communities Housing and Environment,Customer Access,Supplies and Services,Bought In Professional Services,277,02/02/2022,2202-00093,0.00,18.00,R,A NAMAKI,No
Http://opendatacommunities.org/id/metropolitan-district-council/leeds,Leeds City Council,28/02/2022,Communities Housing and Environment,Customer Access,Supplies and Services,Bought In Professional Services,277,02/02/2022,2202-00094,0.00,72.00,R,A NAMAKI,No
Http://opendatacommunities.org/id/metropolitan-district-council/leeds,Leeds City Council,28/02/2022,Communities Housing and Environment,Customer Access,Supplies and Services,Bought In Professional Services,277,02/02/2022,2202-00095,0.00,18.00,R,A NAMAKI,No
Http://opendatacommunities.org/id/metropolitan-district-council/leeds,Leeds City Council,28/02/2022,Communities Housing and Environment,Customer Access,Supplies and Services,Bought In Professional Services,277,02/02/2022,2202-00096,0.00,18.00,R,A NAMAKI,No
Http://opendatacommunities.org/id/metropolitan-district-council/leeds,Leeds City Council,28/02/2022,Communities Housing and Environment,Customer Access,Supplies and Services,Bought In Professional Services,277,02/02/2022,2202-00097,0.00,18.00,R,A NAMAKI,No
Http://opendatacommunities.org/id/metropolitan-district-council/leeds,Leeds City Council,28/02/2022,Communities Housing and Environment,Customer Access,Supplies and Services,Bought In Professional Services,277,09/02/2022,2202-00098,0.00,72.00,R,A NAMAKI,No
Http://opendatacommunities.org/id/metropolitan-district-council/leeds,Leeds City Council,28/02/2022,Communities Housing and Environment,Customer Access,Supplies and Services,Bought In Professional Services,277,09/02/2022,2202-00099,0.00,18.00,R,A NAMAKI,No
Http://opendatacommunities.org/id/metropolitan-district-council/leeds,Leeds City Council,28/02/2022,Communities Housing and Environment,Customer Access,Supplies and Services,Bought In Professional Services,277,09/02/2022,2202-00100,0.00,72.00,R,A NAMAKI,No
Http://opendatacommunities.org/id/metropolitan-district-council/leeds,Leeds City Council,28/02/2022,Communities Housing and Environment,Customer Access,Supplies and Services,Bought In Professional Services,277,09/02/2022,2202-00101,0.00,13.50,R,A NAMAKI,No
Http://opendatacommunities.org/id/metropolitan-district-council/leeds,Leeds City Council,28/02/2022,Communities Housing and Environment,Customer Access,Supplies and Services,Bought In Professional Services,277,09/02/2022,2202-00102,0.00,18.00,R,A NAMAKI,No
Http://opendatacommunities.org/id/metropolitan-district-council/leeds,Leeds City Council,28/02/2022,Communities Housing and Environment,Customer Access,Supplies and Services,Bought In Professional Services,277,09/02/2022,2202-00103,0.00,18.00,R,A NAMAKI,No
Http://opendatacommunities.org/id/metropolitan-district-council/leeds,Leeds City Council,28/02/2022,Communities Housing and Environment,Customer Access,Supplies and Services,Bought In Professional Services,277,09/02/2022,2202-00104,0.00,18.00,R,A NAMAKI,No
Http://opendatacommunities.org/id/metropolitan-district-council/leeds,Leeds City Council,28/02/2022,Communities Housing and Environment,Customer Access,Supplies and Services,Bought In Professional Services,277,17/02/2022,2202-00105,0.00,27.00,R,A NAMAKI,No
Http://opendatacommunities.org/id/metropolitan-district-council/leeds,Leeds City Council,28/02/2022,Communities Housing and Environment,Customer Access,Supplies and Services,Bought In Professional Services,277,17/02/2022,2202-00106,0.00,27.00,R,A NAMAKI,No
Http://opendatacommunities.org/id/metropolitan-district-council/leeds,Leeds City Council,28/02/2022,Communities Housing and Environment,Customer Access,Supplies and Services,Bought In Professional Services,277,17/02/2022,2202-00107,0.00,18.00,R,A NAMAKI,No
Http://opendatacommunities.org/id/metropolitan-district-council/leeds,Leeds City Council,28/02/2022,Communities Housing and Environment,Customer Access,Supplies and Services,Bought In Professional Services,277,17/02/2022,2202-00108,0.00,81.00,R,A NAMAKI,No
Http://opendatacommunities.org/id/metropolitan-district-council/leeds,Leeds City Council,28/02/2022,Communities Housing and Environment,Customer Access,Supplies and Services,Bought In Professional Services,277,17/02/2022,2202-00109,0.00,18.00,R,A NAMAKI,No
Http://opendatacommunities.org/id/metropolitan-district-council/leeds,Leeds City Council,28/02/2022,Communities Housing and Environment,Customer Access,Supplies and Services,Bought In Professional Services,277,17/02/2022,2202-00110,0.00,27.00,R,A NAMAKI,No
Http://opendatacommunities.org/id/metropolitan-district-council/leeds,Leeds City Council,28/02/2022,Communities Housing and Environment,Customer Access,Supplies and Services,Bought In Professional Services,277,17/02/2022,2202-00111,0.00,18.00,R,A NAMAKI,No
Http://opendatacommunities.org/id/metropolitan-district-council/leeds,Leeds City Council,28/02/2022,Communities Housing and Environment,Customer Access,Supplies and Services,Bought In Professional Services,277,17/02/2022,2202-00112,0.00,18.00,R,A NAMAKI,No
Http://opendatacommunities.org/id/metropolitan-district-council/leeds,Leeds City Council,28/02/2022,Communities Housing and Environment,Customer Access,Supplies and Services,Bought In Professional Services,277,17/02/2022,2202-00113,0.00,27.00,R,A NAMAKI,No
Http://opendatacommunities.org/id/metropolitan-district-council/leeds,Leeds City Council,28/02/2022,Communities Housing and Environment,Customer Access,Supplies and Services,Bought In Professional Services,277,23/02/2022,2202-00114,0.00,27.00,R,A NAMAKI,No
Http://opendatacommunities.org/id/metropolitan-district-council/leeds,Leeds City Council,28/02/2022,Communities Housing and Environment,Customer Access,Supplies and Services,Bought In Professional Services,277,23/02/2022,2202-00115,0.00,72.00,R,A NAMAKI,No
Http://opendatacommunities.org/id/metropolitan-district-council/leeds,Leeds City Council,28/02/2022,Communities Housing and Environment,Customer Access,Supplies and Services,Bought In Professional Services,277,23/02/2022,2202-00116,0.00,18.00,R,A NAMAKI,No
Http://opendatacommunities.org/id/metropolitan-district-council/leeds,Leeds City Council,28/02/2022,Children and Families,Social Care,Agency Payments,Services Rendered By Other Organisations,511,04/02/2022,2202-00117,0.00,535.20,R,REDACTED PERSONAL DATA,No
Http://opendatacommunities.org/id/metropolitan-district-council/leeds,Leeds City Council,28/02/2022,Resources,Commercial Services,Supplies and Services,Other Hired And Contracted Services,265,24/02/2022,2202-00118,0.00,123.20,R,REDACTED PERSONAL DATA,No
Http://opendatacommunities.org/id/metropolitan-district-council/leeds,Leeds City Council,28/02/2022,Children and Families,Social Care,Agency Payments,Services Rendered By Other Organisations,511,04/02/2022,2202-00119,0.00,802.80,R,REDACTED PERSONAL DATA,No
Http://opendatacommunities.org/id/metropolitan-district-council/leeds,Leeds City Council,28/02/2022,Children and Families,Social Care,Agency Payments,Independent Fostering Agencies,509,11/02/2022,2202-00120,0.00,936.00,R,A Taxis,No
Http://opendatacommunities.org/id/metropolitan-district-council/leeds,Leeds City Council,28/02/2022,Children and Families,Social Care,Appropriations,Leaving Care Allowances,634,07/02/2022,2202-00121,0.00,55.00,R,A Van About Town,No
Http://opendatacommunities.org/id/metropolitan-district-council/leeds,Leeds City Council,28/02/2022,Children and Families,Social Care,Agency Payments,Services Rendered By Other Organisations,511,04/02/2022,2202-00122,0.00,535.20,R,REDACTED PERSONAL DATA,No
Http://opendatacommunities.org/id/metropolitan-district-council/leeds,Leeds City Council,28/02/2022,Children and Families,Social Care,Agency Payments,Services Rendered By Other Organisations,511,04/02/2022,2202-00123,0.00,267.60,R,REDACTED PERSONAL DATA,No
Http://opendatacommunities.org/id/metropolitan-district-council/leeds,Leeds City Council,28/02/2022,Children and Families,Social Care,Agency Payments,General External Residential Placements,507,04/02/2022,2202-00124,0.00,30114.33,R,A Wilderness Way Ltd,No
Http://opendatacommunities.org/id/metropolitan-district-council/leeds,Leeds City Council,28/02/2022,Children and Families,Social Care,Agency Payments,General External Residential Placements,507,21/02/2022,2202-00125,0.00,4373.93,R,A Wilderness Way Ltd,No
Http://opendatacommunities.org/id/metropolitan-district-council/leeds,Leeds City Council,28/02/2022,Children and Families,Social Care,Agency Payments,General External Residential Placements,507,21/02/2022,2202-00126,0.00,860.00,R,A Wilderness Way Ltd,No
Http://opendatacommunities.org/id/metropolitan-district-council/leeds,Leeds City Council,28/02/2022,Children and Families,Social Care ,Appropriations,Leaving Care Grants,635,20/01/2022,2202-00127,0.00,61.97,R,A&h Bros Ltd,Yes
Http://opendatacommunities.org/id/metropolitan-district-council/leeds,Leeds City Council,28/02/2022,Resources,Leeds Building Services,Supplies and Services,Operational Materials,205,04/02/2022,2202-00128,0.00,410.00,R,A1 STAIR LIFT SERVICES,No
Http://opendatacommunities.org/id/metropolitan-district-council/leeds,Leeds City Council,28/02/2022,Resources,Leeds Building Services,Supplies and Services,Operational Materials,205,16/02/2022,2202-00129,0.00,50.00,R,A1 STAIR LIFT SERVICES,No
Http://opendatacommunities.org/id/metropolitan-district-council/leeds,Leeds City Council,28/02/2022,Resources,Leeds Building Services,Supplies and Services,Operational Materials,205,23/02/2022,2202-00130,0.00,370.00,R,A1 STAIR LIFT SERVICES,No
Http://opendatacommunities.org/id/metropolitan-district-council/leeds,Leeds City Council,28/02/2022,Resources,Leeds Building Services,Supplies and Services,Operational Materials,205,25/02/2022,2202-00131,0.00,1120.00,R,A1 STAIR LIFT SERVICES,No
Http://opendatacommunities.org/id/metropolitan-district-council/leeds,Leeds City Council,28/02/2022,Communities Housing and Environment,Car Parking Services,External Income,Penalties Fines & Car Parking Charges,934,17/02/2022,2202-00132,0.00,30.00,R,REDACTED PERSONAL DATA,No
Http://opendatacommunities.org/id/metropolitan-district-council/leeds,Leeds City Council,28/02/2022,Adults and Health,Services For Older People - 65 And Over,Agency Payments,Residential Care Dementia,571,02/02/2022,2202-00133,0.00,1245.20,R,Aaron Court Care Home,No
Http://opendatacommunities.org/id/metropolitan-district-council/leeds,Leeds City Council,28/02/2022,Communities Housing and Environment,Benefits Welfare and Poverty,Supplies and Services,Grant Related Expenditure,290,16/02/2022,2202-00134,0.00,500.00,R,REDACTED PERSONAL DATA,No
Http://opendatacommunities.org/id/metropolitan-district-council/leeds,Leeds City Council,28/02/2022,Communities Housing and Environment,Benefits Welfare and Poverty,Supplies and Services,Grant Related Expenditure,298,11/02/2022,2202-00135,0.00,500.00,R,REDACTED PERSONAL DATA,No
Http://opendatacommunities.org/id/metropolitan-district-council/leeds,Leeds City Council,28/02/2022,Communities Housing and Environment,Benefits Welfare and Poverty,Supplies and Services,Grant Related Expenditure,298,23/02/2022,2202-00136,0.00,500.00,R,REDACTED PERSONAL DATA,No
Http://opendatacommunities.org/id/metropolitan-district-council/leeds,Leeds City Council as Accountable Body,28/02/2022,Social Services Pooled Budgets,Leeds Community Equip Store Pooled Budgt,Supplies and Services,Other Equipment,203,11/02/2022,2202-00137,0.00,279.00,R,AAT (GB) LTD,No
Http://opendatacommunities.org/id/metropolitan-district-council/leeds,Leeds City Council,28/02/2022,Adults and Health,Public Health,Agency Payments,Public Health Commissioned Services,526,25/02/2022,2202-00138,0.00,418.28,R,Abbey Grange Medical Practice,No
Http://opendatacommunities.org/id/metropolitan-district-council/leeds,Leeds City Council,28/02/2022,Children and Families,Learning,Supplies and Services,Other Hired And Contracted Services,265,01/02/2022,2202-00139,0.00,525.00,R,Abbey Multi Academy Trust,No
Http://opendatacommunities.org/id/metropolitan-district-council/leeds,Leeds City Council,28/02/2022,Children and Families,Learning,Supplies and Services,Other Hired And Contracted Services,265,01/02/2022,2202-00140,0.00,525.00,R,Abbey Multi Academy Trust,No
Http://opendatacommunities.org/id/metropolitan-district-council/leeds,Leeds City Council,28/02/2022,Children and Families,Learning,Supplies and Services,Other Hired And Contracted Services,265,01/02/2022,2202-00141,0.00,525.00,R,Abbey Multi Academy Trust,No
Http://opendatacommunities.org/id/metropolitan-district-council/leeds,Leeds City Council,28/02/2022,Children and Families,Learning,Supplies and Services,Other Hired And Contracted Services,265,01/02/2022,2202-00142,0.00,525.00,R,Abbey Multi Academy Trust,No
Http://opendatacommunities.org/id/metropolitan-district-council/leeds,Leeds City Council,28/02/2022,Children and Families,Learning,Supplies and Services,Food & Drink,231,04/02/2022,2202-00143,0.00,40.80,R,Abbey Multi Academy Trust,No
Http://opendatacommunities.org/id/metropolitan-district-council/leeds,Leeds City Council,28/02/2022,Children and Families,Learning,Supplies and Services,Other Hired And Contracted Services,265,17/02/2022,2202-00144,0.00,450.00,R,Abbey Multi Academy Trust,No
Http://opendatacommunities.org/id/metropolitan-district-council/leeds,Leeds City Council,28/02/2022,Communities Housing and Environment,Benefits Welfare and Poverty,Supplies and Services,Grant Related Expenditure,290,14/02/2022,2202-00145,0.00,500.00,R,REDACTED PERSONAL DATA,No
Http://opendatacommunities.org/id/metropolitan-district-council/leeds,Leeds City Council,28/02/2022,Communities Housing and Environment,Benefits Welfare and Poverty,Supplies and Services,Grant Related Expenditure,298,24/02/2022,2202-00146,0.00,500.00,R,REDACTED PERSONAL DATA,No
Http://opendatacommunities.org/id/metropolitan-district-council/leeds,Leeds City Council,28/02/2022,Communities Housing and Environment,Benefits Welfare and Poverty,Supplies and Services,Grant Related Expenditure,298,07/02/2022,2202-00147,0.00,500.00,R,REDACTED PERSONAL DATA,No
Http://opendatacommunities.org/id/metropolitan-district-council/leeds,Leeds City Council,28/02/2022,Communities Housing and Environment,Benefits Welfare and Poverty,Supplies and Services,Grant Related Expenditure,298,07/02/2022,2202-00148,0.00,500.00,R,REDACTED PERSONAL DATA,No
Http://opendatacommunities.org/id/metropolitan-district-council/leeds,Leeds City Council,28/02/2022,Children and Families,Social Care,Agency Payments,Services Rendered By Other Organisations,511,02/02/2022,2202-00149,0.00,1447.20,R,REDACTED PERSONAL DATA,No
Http://opendatacommunities.org/id/metropolitan-district-council/leeds,Leeds City Council,28/02/2022,Communities Housing and Environment,Parks and Countryside,Supplies and Services,Other Hired And Contracted Services,265,15/02/2022,2202-00150,0.00,6050.00,R,Abbotts Memorials,No
Http://opendatacommunities.org/id/metropolitan-district-council/leeds,Leeds City Council,28/02/2022,Communities Housing and Environment,Parks and Countryside,Supplies and Services,Other Hired And Contracted Services,265,24/02/2022,2202-00151,0.00,4075.00,R,Abbotts Memorials,No
Http://opendatacommunities.org/id/metropolitan-district-council/leeds,Leeds City Council,28/02/2022,Communities Housing and Environment,Parks and Countryside,Supplies and Services,Other Hired And Contracted Services,265,24/02/2022,2202-00152,0.00,1100.00,R,Abbotts Memorials,No
Http://opendatacommunities.org/id/metropolitan-district-council/leeds,Leeds City Council,28/02/2022,Communities Housing and Environment,Parks and Countryside,Supplies and Services,Other Hired And Contracted Services,265,24/02/2022,2202-00153,0.00,3300.00,R,Abbotts Memorials,No
Http://opendatacommunities.org/id/metropolitan-district-council/leeds,Leeds City Council,28/02/2022,Children and Families,Social Care,Agency Payments,Services Rendered By Other Organisations,511,02/02/2022,2202-00154,0.00,5788.80,R,ABC NURSERY AT LUFC,No
Http://opendatacommunities.org/id/metropolitan-district-council/leeds,Leeds City Council,28/02/2022,Children and Families,Social Care,Agency Payments,Services Rendered By Other Organisations,511,04/02/2022,2202-00155,0.00,11774.40,R,ABC NURSERY AT LUFC,No
Http://opendatacommunities.org/id/metropolitan-district-council/leeds,Leeds City Council,28/02/2022,Children and Families,Social Care,Agency Payments,Services Rendered By Voluntary Sector,505,08/02/2022,2202-00156,0.00,2052.63,R,ABC NURSERY AT LUFC,No
Http://opendatacommunities.org/id/metropolitan-district-council/leeds,Leeds City Council,28/02/2022,Children and Families,Social Care,Agency Payments,Services Rendered By Other Organisations,511,02/02/2022,2202-00157,0.00,1608.00,R,Abc@D'S Childcare,No
Http://opendatacommunities.org/id/metropolitan-district-council/leeds,Leeds City Council,28/02/2022,Children and Families,Social Care,Agency Payments,Services Rendered By Other Organisations,511,04/02/2022,2202-00158,0.00,9366.00,R,Abc@D'S Childcare,No
Http://opendatacommunities.org/id/metropolitan-district-council/leeds,Leeds City Council,28/02/2022,Children and Families,Social Care,Agency Payments,Services Rendered By Voluntary Sector,505,04/02/2022,2202-00159,0.00,2052.63,R,Abc@D'S Childcare,No
Http://opendatacommunities.org/id/metropolitan-district-council/leeds,Leeds City Council,28/02/2022,Communities Housing and Environment,Benefits Welfare and Poverty,Supplies and Services,Grant Related Expenditure,298,10/02/2022,2202-00160,0.00,500.00,R,REDACTED PERSONAL DATA,No
Http://opendatacommunities.org/id/metropolitan-district-council/leeds,Leeds City Council,28/02/2022,Communities Housing and Environment,Benefits Welfare and Poverty,Supplies and Services,Grant Related Expenditure,290,08/02/2022,2202-00161,0.00,500.00,R,REDACTED PERSONAL DATA,No
Http://opendatacommunities.org/id/metropolitan-district-council/leeds,Leeds City Council,28/02/2022,Communities Housing and Environment,Customer Access,Supplies and Services,Bought In Professional Services,277,09/02/2022,2202-00162,0.00,18.00,R,Abdul Kalam,No
Http://opendatacommunities.org/id/metropolitan-district-council/leeds,Leeds City Council,28/02/2022,Communities Housing and Environment,Customer Access,Supplies and Services,Bought In Professional Services,277,09/02/2022,2202-00163,0.00,22.50,R,Abdul Kalam,No
Http://opendatacommunities.org/id/metropolitan-district-council/leeds,Leeds City Council,28/02/2022,Communities Housing and Environment,Customer Access,Supplies and Services,Bought In Professional Services,277,09/02/2022,2202-00164,0.00,18.00,R,Abdul Kalam,No
Http://opendatacommunities.org/id/metropolitan-district-council/leeds,Leeds City Council,28/02/2022,Communities Housing and Environment,Benefits Welfare and Poverty,Supplies and Services,Grant Related Expenditure,298,09/02/2022,2202-00165,0.00,500.00,R,REDACTED PERSONAL DATA,No
Http://opendatacommunities.org/id/metropolitan-district-council/leeds,Leeds City Council,28/02/2022,Communities Housing and Environment,Elections Licensing and Registration,External Income,Admissions Booking Fees & Ticket Sales,933,17/02/2022,2202-00166,0.00,260.00,R,Abdul Mustafa,No
Http://opendatacommunities.org/id/metropolitan-district-council/leeds,Leeds City Council,28/02/2022,Communities Housing and Environment,Elections Licensing and Registration,External Income,Admissions Booking Fees & Ticket Sales,933,04/02/2022,2202-00167,0.00,260.00,R,Abdul Rashid,No
Http://opendatacommunities.org/id/metropolitan-district-council/leeds,Leeds City Council,28/02/2022,Communities Housing and Environment,Customer Access,Supplies and Services,Bought In Professional Services,277,02/02/2022,2202-00168,0.00,27.00,R,Abdulahad Denha,No
Http://opendatacommunities.org/id/metropolitan-district-council/leeds,Leeds City Council,28/02/2022,Communities Housing and Environment,Customer Access,Supplies and Services,Bought In Professional Services,277,02/02/2022,2202-00169,0.00,18.00,R,Abdulahad Denha,No
Http://opendatacommunities.org/id/metropolitan-district-council/leeds,Leeds City Council,28/02/2022,Communities Housing and Environment,Customer Access,Supplies and Services,Bought In Professional Services,277,09/02/2022,2202-00170,0.00,18.00,R,Abdulahad Denha,No
Http://opendatacommunities.org/id/metropolitan-district-council/leeds,Leeds City Council,28/02/2022,Communities Housing and Environment,Customer Access,Supplies and Services,Bought In Professional Services,277,17/02/2022,2202-00171,0.00,27.00,R,Abdulahad Denha,No
Http://opendatacommunities.org/id/metropolitan-district-council/leeds,Leeds City Council,28/02/2022,Communities Housing and Environment,Customer Access,Supplies and Services,Bought In Professional Services,277,17/02/2022,2202-00172,0.00,18.00,R,Abdulahad Denha,No
Http://opendatacommunities.org/id/metropolitan-district-council/leeds,Leeds City Council,28/02/2022,Communities Housing and Environment,Customer Access,Supplies and Services,Bought In Professional Services,277,17/02/2022,2202-00173,0.00,18.00,R,Abdulahad Denha,No
Http://opendatacommunities.org/id/metropolitan-district-council/leeds,Leeds City Council,28/02/2022,Communities Housing and Environment,Benefits Welfare and Poverty,Supplies and Services,Grant Related Expenditure,298,14/02/2022,2202-00174,0.00,500.00,R,REDACTED PERSONAL DATA,No
Http://opendatacommunities.org/id/metropolitan-district-council/leeds,Leeds City Council,28/02/2022,City Development,Recreation,External Income,Sporting & Other Recreational Fees,928,17/02/2022,2202-00175,0.00,29.98,R,REDACTED PERSONAL DATA,No
Http://opendatacommunities.org/id/metropolitan-district-council/leeds,Leeds City Council,28/02/2022,Communities Housing and Environment,Customer Access,Supplies and Services,Bought In Professional Services,277,02/02/2022,2202-00176,0.00,36.00,R,Abdulrahim Dastyar,No
Http://opendatacommunities.org/id/metropolitan-district-council/leeds,Leeds City Council,28/02/2022,Communities Housing and Environment,Customer Access,Supplies and Services,Bought In Professional Services,277,02/02/2022,2202-00177,0.00,18.00,R,Abdulrahim Dastyar,No
Http://opendatacommunities.org/id/metropolitan-district-council/leeds,Leeds City Council,28/02/2022,Communities Housing and Environment,Customer Access,Supplies and Services,Bought In Professional Services,277,02/02/2022,2202-00178,0.00,18.00,R,Abdulrahim Dastyar,No
Http://opendatacommunities.org/id/metropolitan-district-council/leeds,Leeds City Council,28/02/2022,Communities Housing and Environment,Customer Access,Supplies and Services,Bought In Professional Services,277,09/02/2022,2202-00179,0.00,18.00,R,Abdulrahim Dastyar,No
Http://opendatacommunities.org/id/metropolitan-district-council/leeds,Leeds City Council,28/02/2022,Communities Housing and Environment,Customer Access,Supplies and Services,Bought In Professional Services,277,09/02/2022,2202-00180,0.00,9.00,R,Abdulrahim Dastyar,No
Http://opendatacommunities.org/id/metropolitan-district-council/leeds,Leeds City Council,28/02/2022,Communities Housing and Environment,Customer Access,Supplies and Services,Bought In Professional Services,277,09/02/2022,2202-00181,0.00,18.00,R,Abdulrahim Dastyar,No
Http://opendatacommunities.org/id/metropolitan-district-council/leeds,Leeds City Council,28/02/2022,Communities Housing and Environment,Customer Access,Supplies and Services,Bought In Professional Services,277,09/02/2022,2202-00182,0.00,18.00,R,Abdulrahim Dastyar,No
Http://opendatacommunities.org/id/metropolitan-district-council/leeds,Leeds City Council,28/02/2022,Communities Housing and Environment,Customer Access,Supplies and Services,Bought In Professional Services,277,09/02/2022,2202-00183,0.00,22.50,R,Abdulrahim Dastyar,No
Http://opendatacommunities.org/id/metropolitan-district-council/leeds,Leeds City Council,28/02/2022,Communities Housing and Environment,Customer Access,Supplies and Services,Bought In Professional Services,277,17/02/2022,2202-00184,0.00,18.00,R,Abdulrahim Dastyar,No
Http://opendatacommunities.org/id/metropolitan-district-council/leeds,Leeds City Council,28/02/2022,Communities Housing and Environment,Customer Access,Supplies and Services,Bought In Professional Services,277,17/02/2022,2202-00185,0.00,27.00,R,Abdulrahim Dastyar,No
Http://opendatacommunities.org/id/metropolitan-district-council/leeds,Leeds City Council,28/02/2022,Communities Housing and Environment,Customer Access,Supplies and Services,Bought In Professional Services,277,23/02/2022,2202-00186,0.00,13.50,R,Abdulrahim Dastyar,No
Http://opendatacommunities.org/id/metropolitan-district-council/leeds,Leeds City Council,28/02/2022,Communities Housing and Environment,Customer Access,Supplies and Services,Bought In Professional Services,277,23/02/2022,2202-00187,0.00,18.00,R,Abdulrahim Dastyar,No
Http://opendatacommunities.org/id/metropolitan-district-council/leeds,Leeds City Council,28/02/2022,Children and Families,Social Care,Appropriations,16 Plus Top Up Allowance,625,04/02/2022,2202-00188,0.00,30.00,R,REDACTED PERSONAL DATA,No
Http://opendatacommunities.org/id/metropolitan-district-council/leeds,Leeds City Council,28/02/2022,Children and Families,Social Care,Appropriations,16 Plus Top Up Allowance,625,11/02/2022,2202-00189,0.00,30.00,R,REDACTED PERSONAL DATA,No
Http://opendatacommunities.org/id/metropolitan-district-council/leeds,Leeds City Council,28/02/2022,Children and Families,Social Care,Appropriations,16 Plus Top Up Allowance,625,18/02/2022,2202-00190,0.00,30.00,R,REDACTED PERSONAL DATA,No
Http://opendatacommunities.org/id/metropolitan-district-council/leeds,Leeds City Council,28/02/2022,Children and Families,Social Care,Appropriations,16 Plus Top Up Allowance,625,25/02/2022,2202-00191,0.00,30.00,R,REDACTED PERSONAL DATA,No
Http://opendatacommunities.org/id/metropolitan-district-council/leeds,Leeds City Council,28/02/2022,Communities Housing and Environment,Benefits Welfare and Poverty,Supplies and Services,Grant Related Expenditure,290,11/02/2022,2202-00192,0.00,500.00,R,REDACTED PERSONAL DATA,No
Http://opendatacommunities.org/id/metropolitan-district-council/leeds,Leeds City Council,28/02/2022,Adults and Health,Other Adult Services,Agency Payments,HCAIT Extra Care Housing Support,576,01/02/2022,2202-00193,0.00,4980.36,R,Aberford Hall,No
Http://opendatacommunities.org/id/metropolitan-district-council/leeds,Leeds City Council,28/02/2022,Adults and Health,Services For Older People - 65 And Over,Agency Payments,Nursing Home,570,01/02/2022,2202-00194,0.00,3962.70,R,Aberford Hall,No
Http://opendatacommunities.org/id/metropolitan-district-council/leeds,Leeds City Council,28/02/2022,Adults and Health,Services For Older People - 65 And Over,Agency Payments,Nursing Home,570,02/02/2022,2202-00195,0.00,23962.64,R,Aberford Hall,No
Http://opendatacommunities.org/id/metropolitan-district-council/leeds,Leeds City Council,28/02/2022,Children and Families,Learning,Internal Recharges,Internal Charges From Childrens Services,492,28/02/2022,2202-00196,0.00,4080.00,R,Aberford Village Hall,No
Http://opendatacommunities.org/id/metropolitan-district-council/leeds,Leeds City Council,28/02/2022,Children and Families,Learning,Internal Recharges,Internal Charges From Childrens Services,492,28/02/2022,2202-00197,0.00,2080.00,R,Aberford Village Hall,No
Http://opendatacommunities.org/id/metropolitan-district-council/leeds,Leeds City Council,28/02/2022,Children and Families,Learning,Internal Recharges,Internal Charges From Childrens Services,492,28/02/2022,2202-00198,0.00,1920.00,R,Aberford Village Hall,No
Http://opendatacommunities.org/id/metropolitan-district-council/leeds,Leeds City Council,28/02/2022,Resources,Leeds Building Services,Supplies and Services,Operational Materials,205,22/02/2022,2202-00199,0.00,336.81,R,ABI GARAGE DOORS LTD,No
Http://opendatacommunities.org/id/metropolitan-district-council/leeds,Leeds City Council,28/02/2022,Resources,Sustainable Energy & Climate Change,Capital,OTHER COSTS,7,04/02/2022,2202-00200,0.00,2100.00,C,REDACTED COMMERCIAL CONFIDENTIALITY,No
Http://opendatacommunities.org/id/metropolitan-district-council/leeds,Leeds City Council,28/02/2022,Communities Housing and Environment,Car Parking Services,External Income,Penalties Fines & Car Parking Charges,934,07/02/2022,2202-00201,0.00,30.00,R,REDACTED PERSONAL DATA,No
Http://opendatacommunities.org/id/metropolitan-district-council/leeds,Leeds City Council,28/02/2022,Communities Housing and Environment,Customer Access,Supplies and Services,Bought In Professional Services,277,17/02/2022,2202-00202,0.00,11.10,R,Abida Begum,No
Http://opendatacommunities.org/id/metropolitan-district-council/leeds,Leeds City Council,28/02/2022,Communities Housing and Environment,Benefits Welfare and Poverty,Supplies and Services,Grant Related Expenditure,290,15/02/2022,2202-00203,0.00,500.00,R,REDACTED PERSONAL DATA,No
Http://opendatacommunities.org/id/metropolitan-district-council/leeds,Leeds City Council,28/02/2022,Strategic Landlord,Property and Contracts,Internal Recharges,Legal Disbursements,411,18/02/2022,2202-00204,0.00,1250.00,R,Abigail Cheetham,No
Http://opendatacommunities.org/id/metropolitan-district-council/leeds,Leeds City Council,28/02/2022,City Development,Economic Development,Supplies and Services,Grant Related Expenditure,298,18/02/2022,2202-00205,0.00,515.00,R,Abigail Levin Consultancy Ltd,No
Http://opendatacommunities.org/id/metropolitan-district-council/leeds,Leeds City Council,28/02/2022,Children and Families,Social Care,Agency Payments, Direct Work,549,24/02/2022,2202-00206,0.00,18.34,R,REDACTED PERSONAL DATA,No
Http://opendatacommunities.org/id/metropolitan-district-council/leeds,Leeds City Council,28/02/2022,Children and Families,Social Care,Agency Payments,Allowances,546,28/02/2022,2202-00207,0.00,16.00,R,REDACTED PERSONAL DATA,No
Http://opendatacommunities.org/id/metropolitan-district-council/leeds,Leeds City Council,28/02/2022,Communities Housing and Environment,Benefits Welfare and Poverty,Supplies and Services,Grant Related Expenditure,298,10/02/2022,2202-00208,0.00,500.00,R,REDACTED PERSONAL DATA,No
Http://opendatacommunities.org/id/metropolitan-district-council/leeds,Leeds City Council,28/02/2022,Communities Housing and Environment,Benefits Welfare and Poverty,Supplies and Services,Grant Related Expenditure,290,15/02/2022,2202-00209,0.00,500.00,R,REDACTED PERSONAL DATA,No
Http://opendatacommunities.org/id/metropolitan-district-council/leeds,Leeds City Council,28/02/2022,City Development,Economic Development,Supplies and Services,Grant Related Expenditure,298,28/02/2022,2202-00210,0.00,2260.00,R,Abra Wynn,No
Http://opendatacommunities.org/id/metropolitan-district-council/leeds,Leeds City Council,28/02/2022,Communities Housing and Environment,Parks and Countryside ,Supplies and Services,Operational Materials,205,27/01/2022,2202-00211,0.00,2400.00,R,Abram Pulman And Sons,Yes
Http://opendatacommunities.org/id/metropolitan-district-council/leeds,Leeds City Council,28/02/2022,Children and Families,Social Care ,Supplies and Services,Operational Materials,205,20/01/2022,2202-00212,0.00,102.00,R,Absolute,Yes
Http://opendatacommunities.org/id/metropolitan-district-council/leeds,Leeds City Council,28/02/2022,Children and Families,Social Care ,Appropriations,Leaving Care Allowances,634,13/01/2022,2202-00213,0.00,9.50,R,Absurd Bird Leeds,Yes
Http://opendatacommunities.org/id/metropolitan-district-council/leeds,Leeds City Council,28/02/2022,Communities Housing and Environment,Benefits Welfare and Poverty,Supplies and Services,Grant Related Expenditure,298,09/02/2022,2202-00214,0.00,500.00,R,REDACTED PERSONAL DATA,No
Http://opendatacommunities.org/id/metropolitan-district-council/leeds,Leeds City Council,28/02/2022,Communities Housing and Environment,Benefits Welfare and Poverty,Supplies and Services,Grant Related Expenditure,298,21/02/2022,2202-00215,0.00,500.00,R,REDACTED PERSONAL DATA,No
Http://opendatacommunities.org/id/metropolitan-district-council/leeds,Leeds City Council,28/02/2022,Resources,Human Resources ,Supplies and Services,Memberships,226,18/01/2022,2202-00216,0.00,110.00,R,Acas,Yes
Http://opendatacommunities.org/id/metropolitan-district-council/leeds,Leeds City Council,28/02/2022,Resources,Commercial Services ,Supplies and Services,Operational Materials,205,10/01/2022,2202-00217,0.00,1815.75,R,Access Locksmiths,Yes
Http://opendatacommunities.org/id/metropolitan-district-council/leeds,Leeds City Council,28/02/2022,Adults and Health,Services For Older People - 65 And Over ,Supplies and Services,Operational Furniture And Equipment,203,19/01/2022,2202-00218,0.00,27.67,R,Access Locksmiths,Yes
Http://opendatacommunities.org/id/metropolitan-district-council/leeds,Leeds City Council,28/02/2022,Communities Housing and Environment,Cleaner Neighbourhood Teams ,Supplies and Services,Operational Furniture And Equipment,203,21/01/2022,2202-00219,0.00,14.88,R,Access Locksmiths,Yes
Http://opendatacommunities.org/id/metropolitan-district-council/leeds,Leeds City Council,28/02/2022,Resources,Facilities Management ,Supplies and Services,Operational Materials,205,24/01/2022,2202-00220,0.00,1419.37,R,Access Locksmiths,Yes
Http://opendatacommunities.org/id/metropolitan-district-council/leeds,Leeds City Council,28/02/2022,Strategic Landlord,HRA Housing Leeds,Capital,OTHER COSTS,7,03/02/2022,2202-00221,0.00,73.96,C,ACCESS LOCKSMITHS (LEEDS) LIMITED,No
Http://opendatacommunities.org/id/metropolitan-district-council/leeds,Leeds City Council,28/02/2022,Resources,Leeds Building Services,Supplies and Services,Operational Materials,205,25/02/2022,2202-00222,0.00,15.10,R,ACCESS LOCKSMITHS (LEEDS) LIMITED,No
Http://opendatacommunities.org/id/metropolitan-district-council/leeds,Leeds City Council,28/02/2022,Resources,Leeds Building Services,Supplies and Services,Operational Materials,205,25/02/2022,2202-00223,0.00,142.38,R,ACCESS LOCKSMITHS (LEEDS) LIMITED,No
Http://opendatacommunities.org/id/metropolitan-district-council/leeds,Leeds City Council,28/02/2022,Resources,Leeds Building Services,Supplies and Services,Operational Materials,205,25/02/2022,2202-00224,0.00,38.75,R,ACCESS LOCKSMITHS (LEEDS) LIMITED,No
Http://opendatacommunities.org/id/metropolitan-district-council/leeds,Leeds City Council,28/02/2022,Resources,Leeds Building Services,Supplies and Services,Operational Materials,205,25/02/2022,2202-00225,0.00,7.50,R,ACCESS LOCKSMITHS (LEEDS) LIMITED,No
Http://opendatacommunities.org/id/metropolitan-district-council/leeds,Leeds City Council,28/02/2022,Resources,Leeds Building Services,Supplies and Services,Operational Materials,205,25/02/2022,2202-00226,0.00,154.52,R,ACCESS LOCKSMITHS (LEEDS) LIMITED,No
Http://opendatacommunities.org/id/metropolitan-district-council/leeds,Leeds City Council,28/02/2022,Resources,Leeds Building Services,Supplies and Services,Operational Materials,205,25/02/2022,2202-00227,0.00,166.92,R,ACCESS LOCKSMITHS (LEEDS) LIMITED,No
Http://opendatacommunities.org/id/metropolitan-district-council/leeds,Leeds City Council,28/02/2022,Resources,Leeds Building Services,Supplies and Services,Operational Materials,205,25/02/2022,2202-00228,0.00,180.00,R,ACCESS LOCKSMITHS (LEEDS) LIMITED,No
Http://opendatacommunities.org/id/metropolitan-district-council/leeds,Leeds City Council,28/02/2022,Resources,Leeds Building Services,Supplies and Services,Operational Materials,205,25/02/2022,2202-00229,0.00,5.82,R,ACCESS LOCKSMITHS (LEEDS) LIMITED,No
Http://opendatacommunities.org/id/metropolitan-district-council/leeds,Leeds City Council,28/02/2022,Strategic Landlord,Housing Management,Supplies and Services,Grant Related Expenditure,298,25/02/2022,2202-00230,0.00,124.00,R,ACCESS LOCKSMITHS (LEEDS) LIMITED,No
Http://opendatacommunities.org/id/metropolitan-district-council/leeds,Leeds City Council,28/02/2022,Strategic Landlord,Property and Contracts,Supplies and Services,Office Furniture & Equipment,201,25/02/2022,2202-00231,0.00,16.20,R,ACCESS LOCKSMITHS (LEEDS) LIMITED,No
Http://opendatacommunities.org/id/metropolitan-district-council/leeds,Leeds City Council,28/02/2022,City Development,Libraries Arts & Heritage,Supplies and Services,Bought In Professional Services,277,04/02/2022,2202-00232,0.00,500.00,R,ACCESS MOVING IMAGE LTD,No
Http://opendatacommunities.org/id/metropolitan-district-council/leeds,Leeds City Council,28/02/2022,City Development,Libraries Arts & Heritage,Supplies and Services,Bought In Professional Services,277,04/02/2022,2202-00233,0.00,500.00,R,ACCESS MOVING IMAGE LTD,No
Http://opendatacommunities.org/id/metropolitan-district-council/leeds,Leeds City Council,28/02/2022,City Development,Libraries Arts & Heritage,Supplies and Services,Other Hired And Contracted Services,265,17/02/2022,2202-00234,0.00,2750.00,R,Accessible By Design Ltd,No
Http://opendatacommunities.org/id/metropolitan-district-council/leeds,Leeds City Council,28/02/2022,Children and Families,Resources & Strategy,Employees,Training Costs,71,24/02/2022,2202-00235,0.00,175.00,R,ACE Education Training LLP,No
Http://opendatacommunities.org/id/metropolitan-district-council/leeds,Leeds City Council,28/02/2022,City Development,Economic Development,Supplies and Services,Grant Related Expenditure,298,14/02/2022,2202-00236,0.00,3832.00,R,Achievers Faith International Ministers,No
Http://opendatacommunities.org/id/metropolitan-district-council/leeds,Leeds City Council,28/02/2022,Children and Families,Learning,Agency Payments,SEN Placements,566,16/02/2022,2202-00237,0.00,38601.34,R,ACKWORTH SCHOOL,No
Http://opendatacommunities.org/id/metropolitan-district-council/leeds,Leeds City Council,28/02/2022,Communities Housing and Environment,Parks and Countryside ,Supplies and Services,Operational Materials,205,06/01/2022,2202-00238,0.00,35.00,R,Acme Facilities Group,Yes
Http://opendatacommunities.org/id/metropolitan-district-council/leeds,Leeds City Council,28/02/2022,Children and Families,Learning,Agency Payments,SEN Placements,566,02/02/2022,2202-00239,0.00,1514.00,R,Acorn Care & Education Ltd (Sales),No
Http://opendatacommunities.org/id/metropolitan-district-council/leeds,Leeds City Council,28/02/2022,Children and Families,Learning,Agency Payments,SEN Placements,566,02/02/2022,2202-00240,0.00,-1514.00,R,Acorn Care & Education Ltd (Sales),No
Http://opendatacommunities.org/id/metropolitan-district-council/leeds,Leeds City Council,28/02/2022,Resources,Commercial Services,Transport,Private Hire,360,03/02/2022,2202-00241,0.00,1200.00,R,Acorn Care & Education Ltd (Sales),No
Http://opendatacommunities.org/id/metropolitan-district-council/leeds,Leeds City Council,28/02/2022,Children and Families,Learning,Agency Payments,SEN Placements,566,09/02/2022,2202-00242,0.00,58000.00,R,Acorn Care & Education Ltd (Sales),No
Http://opendatacommunities.org/id/metropolitan-district-council/leeds,Leeds City Council,28/02/2022,Children and Families,Learning,Agency Payments,SEN Placements,566,09/02/2022,2202-00243,0.00,59876.79,R,Acorn Care & Education Ltd (Sales),No
Http://opendatacommunities.org/id/metropolitan-district-council/leeds,Leeds City Council,28/02/2022,Children and Families,Learning,Agency Payments,SEN Placements,566,09/02/2022,2202-00244,0.00,1440.00,R,Acorn Care & Education Ltd (Sales),No
Http://opendatacommunities.org/id/metropolitan-district-council/leeds,Leeds City Council,28/02/2022,Children and Families,Learning,Agency Payments,SEN Placements,566,09/02/2022,2202-00245,0.00,18138.67,R,Acorn Care & Education Ltd (Sales),No
Http://opendatacommunities.org/id/metropolitan-district-council/leeds,Leeds City Council,28/02/2022,Children and Families,Learning,Agency Payments,SEN Placements,566,09/02/2022,2202-00246,0.00,1360.00,R,Acorn Care & Education Ltd (Sales),No
Http://opendatacommunities.org/id/metropolitan-district-council/leeds,Leeds City Council,28/02/2022,Children and Families,Learning,Agency Payments,SEN Placements,566,09/02/2022,2202-00247,0.00,626.01,R,Acorn Care & Education Ltd (Sales),No
Http://opendatacommunities.org/id/metropolitan-district-council/leeds,Leeds City Council,28/02/2022,Children and Families,Learning,Agency Payments,SEN Placements,566,09/02/2022,2202-00248,0.00,608.60,R,Acorn Care & Education Ltd (Sales),No
Http://opendatacommunities.org/id/metropolitan-district-council/leeds,Leeds City Council,28/02/2022,Children and Families,Learning,Agency Payments,SEN Placements,566,09/02/2022,2202-00249,0.00,608.60,R,Acorn Care & Education Ltd (Sales),No
Http://opendatacommunities.org/id/metropolitan-district-council/leeds,Leeds City Council,28/02/2022,Children and Families,Learning,Agency Payments,SEN Placements,566,09/02/2022,2202-00250,0.00,616.69,R,Acorn Care & Education Ltd (Sales),No
Http://opendatacommunities.org/id/metropolitan-district-council/leeds,Leeds City Council,28/02/2022,Children and Families,Learning,Agency Payments,SEN Placements,566,09/02/2022,2202-00251,0.00,628.03,R,Acorn Care & Education Ltd (Sales),No
Http://opendatacommunities.org/id/metropolitan-district-council/leeds,Leeds City Council,28/02/2022,Children and Families,Learning,Agency Payments,SEN Placements,566,09/02/2022,2202-00252,0.00,631.09,R,Acorn Care & Education Ltd (Sales),No
Http://opendatacommunities.org/id/metropolitan-district-council/leeds,Leeds City Council,28/02/2022,Children and Families,Learning,Agency Payments,SEN Placements,566,09/02/2022,2202-00253,0.00,626.01,R,Acorn Care & Education Ltd (Sales),No
Http://opendatacommunities.org/id/metropolitan-district-council/leeds,Leeds City Council,28/02/2022,Children and Families,Learning,Agency Payments,SEN Placements,566,09/02/2022,2202-00254,0.00,13333.34,R,Acorn Care & Education Ltd (Sales),No
Http://opendatacommunities.org/id/metropolitan-district-council/leeds,Leeds City Council,28/02/2022,Children and Families,Social Care,Agency Payments,General External Residential Placements,507,09/02/2022,2202-00255,0.00,17249.29,R,Acorn Care & Education Ltd (Sales),No
Http://opendatacommunities.org/id/metropolitan-district-council/leeds,Leeds City Council,28/02/2022,Children and Families,Social Care,Agency Payments,General External Residential Placements,507,09/02/2022,2202-00256,0.00,17249.29,R,Acorn Care & Education Ltd (Sales),No
Http://opendatacommunities.org/id/metropolitan-district-council/leeds,Leeds City Council,28/02/2022,Children and Families,Learning,Agency Payments,SEN Placements,566,10/02/2022,2202-00257,0.00,19261.87,R,Acorn Care & Education Ltd (Sales),No
Http://opendatacommunities.org/id/metropolitan-district-council/leeds,Leeds City Council,28/02/2022,Children and Families,Learning,Agency Payments,SEN Placements,566,10/02/2022,2202-00258,0.00,19418.00,R,Acorn Care & Education Ltd (Sales),No
Http://opendatacommunities.org/id/metropolitan-district-council/leeds,Leeds City Council,28/02/2022,Resources,Commercial Services,Transport,Private Hire,360,28/02/2022,2202-00259,0.00,1920.00,R,Acorn Care & Education Ltd (Sales),No
Http://opendatacommunities.org/id/metropolitan-district-council/leeds,Leeds City Council,28/02/2022,Children and Families,Social Care,Agency Payments,General External Residential Placements,507,28/02/2022,2202-00260,0.00,20374.46,R,Acorn Care & Education Ltd (Sales),No
Http://opendatacommunities.org/id/metropolitan-district-council/leeds,Leeds City Council,28/02/2022,Children and Families,Social Care,Agency Payments,General External Residential Placements,507,28/02/2022,2202-00261,0.00,18402.74,R,Acorn Care & Education Ltd (Sales),No
Http://opendatacommunities.org/id/metropolitan-district-council/leeds,Leeds City Council,28/02/2022,Children and Families,Social Care,Agency Payments,General External Residential Placements,507,28/02/2022,2202-00262,0.00,21783.48,R,Acorn Care & Education Ltd (Sales),No
Http://opendatacommunities.org/id/metropolitan-district-council/leeds,Leeds City Council,28/02/2022,Adults and Health,Other Adult Services,Agency Payments,Residential - Drugs & Alcohol,583,04/02/2022,2202-00263,0.00,1843.26,R,Acorn Recovery Projects,No
Http://opendatacommunities.org/id/metropolitan-district-council/leeds,Leeds City Council,28/02/2022,Children and Families,Social Care,Agency Payments,Services Rendered By Other Organisations,511,02/02/2022,2202-00264,0.00,1608.00,R,ACORNS NURSERY,No
Http://opendatacommunities.org/id/metropolitan-district-council/leeds,Leeds City Council,28/02/2022,Children and Families,Social Care,Agency Payments,Services Rendered By Other Organisations,511,04/02/2022,2202-00265,0.00,8836.75,R,ACORNS NURSERY,No
Http://opendatacommunities.org/id/metropolitan-district-council/leeds,Leeds City Council,28/02/2022,Children and Families,Social Care,Agency Payments,Services Rendered By Voluntary Sector,505,04/02/2022,2202-00266,0.00,2052.63,R,ACORNS NURSERY,No
Http://opendatacommunities.org/id/metropolitan-district-council/leeds,Leeds City Council,28/02/2022,Adults and Health,Other Adult Services,Agency Payments,HCAIT Extra Care Housing Support,576,01/02/2022,2202-00267,0.00,5929.00,R,Acre Green,No
Http://opendatacommunities.org/id/metropolitan-district-council/leeds,Leeds City Council,28/02/2022,Adults and Health,Services For Older People - 65 And Over,Agency Payments,Nursing Home,570,01/02/2022,2202-00268,0.00,4528.80,R,Acre Green,No
Http://opendatacommunities.org/id/metropolitan-district-council/leeds,Leeds City Council,28/02/2022,Adults and Health,Services For Older People - 65 And Over,Agency Payments,Nursing Home,570,02/02/2022,2202-00269,0.00,15546.60,R,Acre Green,No
Http://opendatacommunities.org/id/metropolitan-district-council/leeds,Leeds City Council,28/02/2022,Adults and Health,Services For Older People - 65 And Over,Agency Payments,Residential,580,02/02/2022,2202-00270,0.00,3927.20,R,Acre Green,No
Http://opendatacommunities.org/id/metropolitan-district-council/leeds,Leeds City Council,28/02/2022,Adults and Health,Services For Older People Under 65 P/Dis,Agency Payments,Nursing Home,570,02/02/2022,2202-00271,0.00,1970.40,R,Acre Green,No
Http://opendatacommunities.org/id/metropolitan-district-council/leeds,Leeds City Council,28/02/2022,Adults and Health,Services For Older People Under 65 P/Dis,Agency Payments,Residential,580,02/02/2022,2202-00272,0.00,1767.20,R,Acre Green,No
Http://opendatacommunities.org/id/metropolitan-district-council/leeds,Leeds City Council,28/02/2022,Children and Families,Social Care,Agency Payments,Services Rendered By Other Organisations,511,02/02/2022,2202-00273,0.00,4180.80,R,Acre Wood Day Nursery,No
Http://opendatacommunities.org/id/metropolitan-district-council/leeds,Leeds City Council,28/02/2022,Children and Families,Social Care,Agency Payments,Services Rendered By Other Organisations,511,04/02/2022,2202-00274,0.00,11774.40,R,Acre Wood Day Nursery,No
Http://opendatacommunities.org/id/metropolitan-district-council/leeds,Leeds City Council,28/02/2022,Resources,Human Resources ,Supplies and Services,Computer Software & Equipment,214,28/01/2022,2202-00275,0.00,997.07,R,Acs Business Supplies Lt,Yes
Http://opendatacommunities.org/id/metropolitan-district-council/leeds,Leeds City Council,28/02/2022,City Development,Highways,Supplies and Services,Operational Materials,205,18/02/2022,2202-00276,0.00,1550.36,R,Actavo Hire And Sales Uk Limited,No
Http://opendatacommunities.org/id/metropolitan-district-council/leeds,Leeds City Council,28/02/2022,Adults and Health,Services For Adults Under 65 Mental/Dis,Agency Payments,Home Care,568,25/02/2022,2202-00277,0.00,360.00,R,Action First Assessments Ltd,No
Http://opendatacommunities.org/id/metropolitan-district-council/leeds,Leeds City Council,28/02/2022,Adults and Health,Services For Adults Under 65 Mental/Dis,Agency Payments,Home Care,568,25/02/2022,2202-00278,0.00,525.00,R,Action First Assessments Ltd,No
Http://opendatacommunities.org/id/metropolitan-district-council/leeds,Leeds City Council,28/02/2022,Adults and Health,Services For Adults Under 65 Mental/Dis,Agency Payments,Home Care,568,25/02/2022,2202-00279,0.00,250.00,R,Action First Assessments Ltd,No
Http://opendatacommunities.org/id/metropolitan-district-council/leeds,Leeds City Council,28/02/2022,Adults and Health,Services For Adults Under 65 Mental/Dis,Agency Payments,Home Care,568,25/02/2022,2202-00280,0.00,360.00,R,Action First Assessments Ltd,No
Http://opendatacommunities.org/id/metropolitan-district-council/leeds,Leeds City Council,28/02/2022,Adults and Health,Services For Adults Under 65 Mental/Dis,Agency Payments,Home Care,568,25/02/2022,2202-00281,0.00,250.00,R,Action First Assessments Ltd,No
Http://opendatacommunities.org/id/metropolitan-district-council/leeds,Leeds City Council,28/02/2022,Adults and Health,Services For Adults Under 65 Mental/Dis,Agency Payments,Home Care,568,25/02/2022,2202-00282,0.00,360.00,R,Action First Assessments Ltd,No
Http://opendatacommunities.org/id/metropolitan-district-council/leeds,Leeds City Council,28/02/2022,Adults and Health,Services For Adults Under 65 Mental/Dis,Agency Payments,Home Care,568,25/02/2022,2202-00283,0.00,360.00,R,Action First Assessments Ltd,No
Http://opendatacommunities.org/id/metropolitan-district-council/leeds,Leeds City Council,28/02/2022,Adults and Health,Services For Adults Under 65 Mental/Dis,Agency Payments,Home Care,568,25/02/2022,2202-00284,0.00,360.00,R,Action First Assessments Ltd,No
Http://opendatacommunities.org/id/metropolitan-district-council/leeds,Leeds City Council,28/02/2022,Adults and Health,Services For Adults Under 65 Mental/Dis,Agency Payments,Home Care,568,25/02/2022,2202-00285,0.00,1250.00,R,Action First Assessments Ltd,No
Http://opendatacommunities.org/id/metropolitan-district-council/leeds,Leeds City Council,28/02/2022,Children and Families,Social Care,Agency Payments,Independent Fostering Agencies,509,10/02/2022,2202-00286,0.00,5060.44,R,Action For Children Services Ltd,No
Http://opendatacommunities.org/id/metropolitan-district-council/leeds,Leeds City Council,28/02/2022,Children and Families,Social Care,Agency Payments,Services Rendered By Other Organisations,511,02/02/2022,2202-00287,0.00,2331.60,R,ACTIVE KIDS YEADON LLP,No
Http://opendatacommunities.org/id/metropolitan-district-council/leeds,Leeds City Council,28/02/2022,Children and Families,Social Care,Agency Payments,Services Rendered By Voluntary Sector,505,04/02/2022,2202-00288,0.00,6157.89,R,ACTIVE KIDS YEADON LLP,No
Http://opendatacommunities.org/id/metropolitan-district-council/leeds,Leeds City Council,28/02/2022,Children and Families,Social Care,Agency Payments,Services Rendered By Other Organisations,511,04/02/2022,2202-00289,0.00,11373.00,R,ACTIVE KIDS YEADON LLP,No
Http://opendatacommunities.org/id/metropolitan-district-council/leeds,Leeds City Council,28/02/2022,Adults and Health,Services For Adults Under 65 Mental/Dis,Agency Payments,Sheltered Accommodation,569,02/02/2022,2202-00290,0.00,34659.53,R,Active Pathways,No
Http://opendatacommunities.org/id/metropolitan-district-council/leeds,Leeds City Council as Accountable Body,28/02/2022,Social Services Pooled Budgets,Jcs For People With Learning Disabilitie,Agency Payments,Sheltered Accommodation,569,02/02/2022,2202-00291,0.00,12452.52,R,Active Pathways,No
Http://opendatacommunities.org/id/metropolitan-district-council/leeds,Leeds City Council,28/02/2022,Communities Housing and Environment,Waste Management,Supplies and Services,Recycling & Reuse Charges,234,09/02/2022,2202-00292,0.00,4906.80,R,Acumen Waste Services Ltd,No
Http://opendatacommunities.org/id/metropolitan-district-council/leeds,Leeds City Council,28/02/2022,Communities Housing and Environment,Waste Management,Supplies and Services,Recycling & Reuse Charges,234,09/02/2022,2202-00293,0.00,899.28,R,Acumen Waste Services Ltd,No
Http://opendatacommunities.org/id/metropolitan-district-council/leeds,Leeds City Council,28/02/2022,Communities Housing and Environment,Waste Management,Supplies and Services,Recycling & Reuse Charges,234,09/02/2022,2202-00294,0.00,1002.24,R,Acumen Waste Services Ltd,No
Http://opendatacommunities.org/id/metropolitan-district-council/leeds,Leeds City Council,28/02/2022,Communities Housing and Environment,Waste Management,Supplies and Services,Recycling & Reuse Charges,234,10/02/2022,2202-00295,0.00,1008.00,R,Acumen Waste Services Ltd,No
Http://opendatacommunities.org/id/metropolitan-district-council/leeds,Leeds City Council,28/02/2022,Communities Housing and Environment,Waste Management,Supplies and Services,Recycling & Reuse Charges,234,10/02/2022,2202-00296,0.00,1036.08,R,Acumen Waste Services Ltd,No
Http://opendatacommunities.org/id/metropolitan-district-council/leeds,Leeds City Council,28/02/2022,Communities Housing and Environment,Waste Management,Supplies and Services,Recycling & Reuse Charges,234,11/02/2022,2202-00297,0.00,954.00,R,Acumen Waste Services Ltd,No
Http://opendatacommunities.org/id/metropolitan-district-council/leeds,Leeds City Council,28/02/2022,Communities Housing and Environment,Waste Management,Supplies and Services,Recycling & Reuse Charges,234,11/02/2022,2202-00298,0.00,990.72,R,Acumen Waste Services Ltd,No
Http://opendatacommunities.org/id/metropolitan-district-council/leeds,Leeds City Council,28/02/2022,Communities Housing and Environment,Waste Management,Supplies and Services,Recycling & Reuse Charges,234,11/02/2022,2202-00299,0.00,991.44,R,Acumen Waste Services Ltd,No
Http://opendatacommunities.org/id/metropolitan-district-council/leeds,Leeds City Council,28/02/2022,Communities Housing and Environment,Waste Management,Supplies and Services,Recycling & Reuse Charges,234,11/02/2022,2202-00300,0.00,1028.16,R,Acumen Waste Services Ltd,No
Http://opendatacommunities.org/id/metropolitan-district-council/leeds,Leeds City Council,28/02/2022,Communities Housing and Environment,Waste Management,Supplies and Services,Recycling & Reuse Charges,234,11/02/2022,2202-00301,0.00,961.92,R,Acumen Waste Services Ltd,No
Http://opendatacommunities.org/id/metropolitan-district-council/leeds,Leeds City Council,28/02/2022,Communities Housing and Environment,Waste Management,Supplies and Services,Recycling & Reuse Charges,234,16/02/2022,2202-00302,0.00,1002.24,R,Acumen Waste Services Ltd,No
Http://opendatacommunities.org/id/metropolitan-district-council/leeds,Leeds City Council,28/02/2022,Communities Housing and Environment,Waste Management,Supplies and Services,Waste Disposal Charges,236,16/02/2022,2202-00303,0.00,581.45,R,Acumen Waste Services Ltd,No
Http://opendatacommunities.org/id/metropolitan-district-council/leeds,Leeds City Council,28/02/2022,Communities Housing and Environment,Waste Management,Supplies and Services,Recycling & Reuse Charges,234,18/02/2022,2202-00304,0.00,983.52,R,Acumen Waste Services Ltd,No
Http://opendatacommunities.org/id/metropolitan-district-council/leeds,Leeds City Council,28/02/2022,Communities Housing and Environment,Waste Management,Supplies and Services,Recycling & Reuse Charges,234,18/02/2022,2202-00305,0.00,982.80,R,Acumen Waste Services Ltd,No
Http://opendatacommunities.org/id/metropolitan-district-council/leeds,Leeds City Council,28/02/2022,Communities Housing and Environment,Waste Management,Supplies and Services,Recycling & Reuse Charges,234,18/02/2022,2202-00306,0.00,985.68,R,Acumen Waste Services Ltd,No
Http://opendatacommunities.org/id/metropolitan-district-council/leeds,Leeds City Council,28/02/2022,Communities Housing and Environment,Waste Management,Supplies and Services,Waste Disposal Charges,236,18/02/2022,2202-00307,0.00,916.30,R,Acumen Waste Services Ltd,No
Http://opendatacommunities.org/id/metropolitan-district-council/leeds,Leeds City Council,28/02/2022,Communities Housing and Environment,Waste Management,Supplies and Services,Waste Disposal Charges,236,18/02/2022,2202-00308,0.00,336.00,R,Acumen Waste Services Ltd,No
Http://opendatacommunities.org/id/metropolitan-district-council/leeds,Leeds City Council,28/02/2022,Communities Housing and Environment,Waste Management,Supplies and Services,Recycling & Reuse Charges,234,18/02/2022,2202-00309,0.00,1023.84,R,Acumen Waste Services Ltd,No
Http://opendatacommunities.org/id/metropolitan-district-council/leeds,Leeds City Council,28/02/2022,Communities Housing and Environment,Waste Management,Supplies and Services,Recycling & Reuse Charges,234,18/02/2022,2202-00310,0.00,974.88,R,Acumen Waste Services Ltd,No
Http://opendatacommunities.org/id/metropolitan-district-council/leeds,Leeds City Council,28/02/2022,Communities Housing and Environment,Waste Management,Supplies and Services,Recycling & Reuse Charges,234,23/02/2022,2202-00311,0.00,1011.60,R,Acumen Waste Services Ltd,No
Http://opendatacommunities.org/id/metropolitan-district-council/leeds,Leeds City Council,28/02/2022,Communities Housing and Environment,Waste Management,Supplies and Services,Recycling & Reuse Charges,234,23/02/2022,2202-00312,0.00,1000.80,R,Acumen Waste Services Ltd,No
Http://opendatacommunities.org/id/metropolitan-district-council/leeds,Leeds City Council,28/02/2022,Communities Housing and Environment,Waste Management,Supplies and Services,Recycling & Reuse Charges,234,23/02/2022,2202-00313,0.00,1013.76,R,Acumen Waste Services Ltd,No
Http://opendatacommunities.org/id/metropolitan-district-council/leeds,Leeds City Council,28/02/2022,Communities Housing and Environment,Waste Management,Supplies and Services,Recycling & Reuse Charges,234,25/02/2022,2202-00314,0.00,1013.04,R,Acumen Waste Services Ltd,No
Http://opendatacommunities.org/id/metropolitan-district-council/leeds,Leeds City Council,28/02/2022,Communities Housing and Environment,Waste Management,Supplies and Services,Recycling & Reuse Charges,234,25/02/2022,2202-00315,0.00,871.92,R,Acumen Waste Services Ltd,No
Http://opendatacommunities.org/id/metropolitan-district-council/leeds,Leeds City Council,28/02/2022,Communities Housing and Environment,Waste Management,Supplies and Services,Recycling & Reuse Charges,234,25/02/2022,2202-00316,0.00,994.32,R,Acumen Waste Services Ltd,No
Http://opendatacommunities.org/id/metropolitan-district-council/leeds,Leeds City Council,28/02/2022,Communities Housing and Environment,Waste Management,Supplies and Services,Waste Disposal Charges,236,25/02/2022,2202-00317,0.00,758.80,R,Acumen Waste Services Ltd,No
Http://opendatacommunities.org/id/metropolitan-district-council/leeds,Leeds City Council,28/02/2022,Resources,Shared Services,Supplies and Services,Operational Materials,205,01/02/2022,2202-00318,0.00,1131.75,R,AD3 Envelope Printers Limited,No
Http://opendatacommunities.org/id/metropolitan-district-council/leeds,Leeds City Council,28/02/2022,Resources,Shared Services,Supplies and Services,Other Hired And Contracted Services,265,04/02/2022,2202-00319,0.00,357.27,R,AD3 Envelope Printers Limited,No
Http://opendatacommunities.org/id/metropolitan-district-council/leeds,Leeds City Council,28/02/2022,Resources,Shared Services,Supplies and Services,Other Hired And Contracted Services,265,10/02/2022,2202-00320,0.00,318.50,R,AD3 Envelope Printers Limited,No
Http://opendatacommunities.org/id/metropolitan-district-council/leeds,Leeds City Council,28/02/2022,Children and Families,Social Care,Appropriations,Leaving Care Allowances,634,04/02/2022,2202-00321,0.00,50.00,R,REDACTED PERSONAL DATA,No
Http://opendatacommunities.org/id/metropolitan-district-council/leeds,Leeds City Council,28/02/2022,Communities Housing and Environment,Elections Licensing and Registration,External Income,Admissions Booking Fees & Ticket Sales,933,04/02/2022,2202-00322,0.00,260.00,R,REDACTED PERSONAL DATA,No
Http://opendatacommunities.org/id/metropolitan-district-council/leeds,Leeds City Council,28/02/2022,Communities Housing and Environment,Benefits Welfare and Poverty,Supplies and Services,Grant Related Expenditure,290,28/02/2022,2202-00323,0.00,30.00,R,REDACTED PERSONAL DATA,No
Http://opendatacommunities.org/id/metropolitan-district-council/leeds,Leeds City Council,28/02/2022,Children and Families,Social Care,Appropriations,Leaving Care Allowances,634,04/02/2022,2202-00324,0.00,50.00,R,REDACTED PERSONAL DATA,No
Http://opendatacommunities.org/id/metropolitan-district-council/leeds,Leeds City Council,28/02/2022,Children and Families,Social Care,Appropriations,Leaving Care Allowances,634,11/02/2022,2202-00325,0.00,50.00,R,REDACTED PERSONAL DATA,No
Http://opendatacommunities.org/id/metropolitan-district-council/leeds,Leeds City Council,28/02/2022,Children and Families,Social Care,Appropriations,Leaving Care Allowances,634,18/02/2022,2202-00326,0.00,50.00,R,REDACTED PERSONAL DATA,No
Http://opendatacommunities.org/id/metropolitan-district-council/leeds,Leeds City Council,28/02/2022,Children and Families,Social Care,Appropriations,Leaving Care Allowances,634,25/02/2022,2202-00327,0.00,50.00,R,REDACTED PERSONAL DATA,No
Http://opendatacommunities.org/id/metropolitan-district-council/leeds,Leeds City Council,28/02/2022,Communities Housing and Environment,Benefits Welfare and Poverty,Supplies and Services,Grant Related Expenditure,298,21/02/2022,2202-00328,0.00,500.00,R,REDACTED PERSONAL DATA,No
Http://opendatacommunities.org/id/metropolitan-district-council/leeds,Leeds City Council,28/02/2022,Communities Housing and Environment,Benefits Welfare and Poverty,Supplies and Services,Grant Related Expenditure,290,09/02/2022,2202-00329,0.00,500.00,R,REDACTED PERSONAL DATA,No
Http://opendatacommunities.org/id/metropolitan-district-council/leeds,Leeds City Council,28/02/2022,Communities Housing and Environment,Benefits Welfare and Poverty,Supplies and Services,Grant Related Expenditure,290,21/02/2022,2202-00330,0.00,500.00,R,REDACTED PERSONAL DATA,No
Http://opendatacommunities.org/id/metropolitan-district-council/leeds,Leeds City Council,28/02/2022,Communities Housing and Environment,Benefits Welfare and Poverty,Supplies and Services,Grant Related Expenditure,298,28/02/2022,2202-00331,0.00,500.00,R,REDACTED PERSONAL DATA,No
Http://opendatacommunities.org/id/metropolitan-district-council/leeds,Leeds City Council,28/02/2022,Adults and Health,Services For Older People - 65 And Over,Agency Payments,Nursing Home,570,02/02/2022,2202-00332,0.00,2648.00,R,Adbolton Hall,No
Http://opendatacommunities.org/id/metropolitan-district-council/leeds,Leeds City Council,28/02/2022,City Development,Libraries Arts & Heritage,Supplies and Services,Other Hired And Contracted Services,265,11/02/2022,2202-00333,0.00,3000.00,R,Addictive Audio,No
Http://opendatacommunities.org/id/metropolitan-district-council/leeds,Leeds City Council,28/02/2022,Resources,PPPU and Procurement,Employees,Basic Pay,1,04/02/2022,2202-00334,0.00,6750.00,R,Addleshaw Goddard LLP,No
Http://opendatacommunities.org/id/metropolitan-district-council/leeds,Leeds City Council,28/02/2022,Communities Housing and Environment,Parks and Countryside,Supplies and Services,Other Hired And Contracted Services,265,07/02/2022,2202-00335,0.00,11646.00,R,Addlestone & Partners,No
Http://opendatacommunities.org/id/metropolitan-district-council/leeds,Leeds City Council,28/02/2022,Children and Families,Social Care,Agency Payments,Services Rendered By Voluntary Sector,505,02/02/2022,2202-00336,0.00,2251.20,R,ADEL PRE SCHOOL,No
Http://opendatacommunities.org/id/metropolitan-district-council/leeds,Leeds City Council,28/02/2022,Children and Families,Social Care,Agency Payments,Services Rendered By Voluntary Sector,505,02/02/2022,2202-00337,0.00,1026.32,R,ADEL PRE SCHOOL,No
Http://opendatacommunities.org/id/metropolitan-district-council/leeds,Leeds City Council,28/02/2022,Children and Families,Social Care,Agency Payments,Services Rendered By Voluntary Sector,505,04/02/2022,2202-00338,0.00,7389.47,R,ADEL PRE SCHOOL,No
Http://opendatacommunities.org/id/metropolitan-district-council/leeds,Leeds City Council,28/02/2022,Children and Families,Social Care,Agency Payments,Services Rendered By Voluntary Sector,505,04/02/2022,2202-00339,0.00,6743.52,R,ADEL PRE SCHOOL,No
Http://opendatacommunities.org/id/metropolitan-district-council/leeds,Leeds City Council,28/02/2022,Children and Families,Social Care,Agency Payments,Contact,548,08/02/2022,2202-00340,0.00,5.20,R,REDACTED PERSONAL DATA,No
Http://opendatacommunities.org/id/metropolitan-district-council/leeds,Leeds City Council,28/02/2022,Children and Families,Social Care,Agency Payments,Contact,548,14/02/2022,2202-00341,0.00,5.30,R,REDACTED PERSONAL DATA,No
Http://opendatacommunities.org/id/metropolitan-district-council/leeds,Leeds City Council,28/02/2022,City Development,Recreation,Supplies and Services,Bought In Professional Services,277,15/02/2022,2202-00342,0.00,420.00,R,Adele Battersby,No
Http://opendatacommunities.org/id/metropolitan-district-council/leeds,Leeds City Council,28/02/2022,City Development,Recreation,Supplies and Services,Bought In Professional Services,277,24/02/2022,2202-00343,0.00,80.00,R,Adele Battersby,No
Http://opendatacommunities.org/id/metropolitan-district-council/leeds,Leeds City Council,28/02/2022,Children and Families,Social Care,Agency Payments,Services Rendered By Other Organisations,511,02/02/2022,2202-00344,0.00,643.20,R,REDACTED PERSONAL DATA,No
Http://opendatacommunities.org/id/metropolitan-district-council/leeds,Leeds City Council,28/02/2022,Children and Families,Social Care,Agency Payments,Services Rendered By Other Organisations,511,04/02/2022,2202-00345,0.00,2408.40,R,REDACTED PERSONAL DATA,No
Http://opendatacommunities.org/id/metropolitan-district-council/leeds,Leeds City Council,28/02/2022,Communities Housing and Environment,Benefits Welfare and Poverty,Supplies and Services,Grant Related Expenditure,290,15/02/2022,2202-00346,0.00,500.00,R,REDACTED PERSONAL DATA,No
Http://opendatacommunities.org/id/metropolitan-district-council/leeds,Leeds City Council,28/02/2022,Children and Families,Social Care,Agency Payments,Contact,548,04/02/2022,2202-00347,0.00,5.50,R,REDACTED PERSONAL DATA,No
Http://opendatacommunities.org/id/metropolitan-district-council/leeds,Leeds City Council,28/02/2022,Children and Families,Social Care,Agency Payments,Contact,548,18/02/2022,2202-00348,0.00,5.50,R,REDACTED PERSONAL DATA,No
Http://opendatacommunities.org/id/metropolitan-district-council/leeds,Leeds City Council,28/02/2022,Children and Families,Social Care,Agency Payments,Section 17,551,04/02/2022,2202-00349,0.00,79.20,R,REDACTED PERSONAL DATA,No
Http://opendatacommunities.org/id/metropolitan-district-council/leeds,Leeds City Council,28/02/2022,Children and Families,Social Care,Agency Payments,Section 17,551,11/02/2022,2202-00350,0.00,79.20,R,REDACTED PERSONAL DATA,No
Http://opendatacommunities.org/id/metropolitan-district-council/leeds,Leeds City Council,28/02/2022,Children and Families,Social Care,Agency Payments,Section 17,551,18/02/2022,2202-00351,0.00,79.20,R,REDACTED PERSONAL DATA,No
Http://opendatacommunities.org/id/metropolitan-district-council/leeds,Leeds City Council,28/02/2022,Children and Families,Social Care,Agency Payments,Section 17,551,25/02/2022,2202-00352,0.00,79.20,R,REDACTED PERSONAL DATA,No
Http://opendatacommunities.org/id/metropolitan-district-council/leeds,Leeds City Council,28/02/2022,Communities Housing and Environment,Benefits Welfare and Poverty,Supplies and Services,Grant Related Expenditure,298,17/02/2022,2202-00353,0.00,500.00,R,REDACTED PERSONAL DATA,No
Http://opendatacommunities.org/id/metropolitan-district-council/leeds,Leeds City Council,28/02/2022,Communities Housing and Environment,Benefits Welfare and Poverty,Supplies and Services,Grant Related Expenditure,298,17/02/2022,2202-00354,0.00,500.00,R,REDACTED PERSONAL DATA,No
Http://opendatacommunities.org/id/metropolitan-district-council/leeds,Leeds City Council,28/02/2022,City Development,Libraries Arts & Heritage ,Supplies and Services,Operational Furniture And Equipment,203,12/01/2022,2202-00355,0.00,68.00,R,Adexa.Co.Uk,Yes
Http://opendatacommunities.org/id/metropolitan-district-council/leeds,Leeds City Council,28/02/2022,Communities Housing and Environment,Community Safety ,Supplies and Services,Other Hired And Contracted Services,265,31/01/2022,2202-00356,0.00,259.44,R,Adi-Gardiner Ltd,Yes
Http://opendatacommunities.org/id/metropolitan-district-council/leeds,Leeds City Council,28/02/2022,Resources,Leeds Building Services,Supplies and Services,Operational Materials,205,04/02/2022,2202-00357,0.00,191.98,R,ADI-Gardiner Ltd,No
Http://opendatacommunities.org/id/metropolitan-district-council/leeds,Leeds City Council,28/02/2022,Resources,Leeds Building Services,Supplies and Services,Operational Materials,205,04/02/2022,2202-00358,0.00,67.92,R,ADI-Gardiner Ltd,No
Http://opendatacommunities.org/id/metropolitan-district-council/leeds,Leeds City Council,28/02/2022,Resources,Leeds Building Services,Supplies and Services,Operational Materials,205,04/02/2022,2202-00359,0.00,44.93,R,ADI-Gardiner Ltd,No
Http://opendatacommunities.org/id/metropolitan-district-council/leeds,Leeds City Council,28/02/2022,Resources,Leeds Building Services,Supplies and Services,Operational Materials,205,04/02/2022,2202-00360,0.00,22.42,R,ADI-Gardiner Ltd,No
Http://opendatacommunities.org/id/metropolitan-district-council/leeds,Leeds City Council,28/02/2022,Resources,Leeds Building Services,Supplies and Services,Operational Materials,205,04/02/2022,2202-00361,0.00,11.21,R,ADI-Gardiner Ltd,No
Http://opendatacommunities.org/id/metropolitan-district-council/leeds,Leeds City Council,28/02/2022,Resources,Leeds Building Services,Supplies and Services,Operational Materials,205,04/02/2022,2202-00362,0.00,11.21,R,ADI-Gardiner Ltd,No
Http://opendatacommunities.org/id/metropolitan-district-council/leeds,Leeds City Council,28/02/2022,Resources,Leeds Building Services,Supplies and Services,Operational Materials,205,04/02/2022,2202-00363,0.00,22.42,R,ADI-Gardiner Ltd,No
Http://opendatacommunities.org/id/metropolitan-district-council/leeds,Leeds City Council,28/02/2022,Resources,Leeds Building Services,Supplies and Services,Operational Materials,205,04/02/2022,2202-00364,0.00,11.21,R,ADI-Gardiner Ltd,No
Http://opendatacommunities.org/id/metropolitan-district-council/leeds,Leeds City Council,28/02/2022,Resources,Leeds Building Services,Supplies and Services,Operational Materials,205,04/02/2022,2202-00365,0.00,11.21,R,ADI-Gardiner Ltd,No
Http://opendatacommunities.org/id/metropolitan-district-council/leeds,Leeds City Council,28/02/2022,Resources,Leeds Building Services,Supplies and Services,Operational Materials,205,04/02/2022,2202-00366,0.00,22.42,R,ADI-Gardiner Ltd,No
Http://opendatacommunities.org/id/metropolitan-district-council/leeds,Leeds City Council,28/02/2022,Resources,Leeds Building Services,Supplies and Services,Operational Materials,205,04/02/2022,2202-00367,0.00,11.21,R,ADI-Gardiner Ltd,No
Http://opendatacommunities.org/id/metropolitan-district-council/leeds,Leeds City Council,28/02/2022,Resources,Leeds Building Services,Supplies and Services,Operational Materials,205,04/02/2022,2202-00368,0.00,11.21,R,ADI-Gardiner Ltd,No
Http://opendatacommunities.org/id/metropolitan-district-council/leeds,Leeds City Council,28/02/2022,Resources,Leeds Building Services,Supplies and Services,Operational Materials,205,04/02/2022,2202-00369,0.00,22.42,R,ADI-Gardiner Ltd,No
Http://opendatacommunities.org/id/metropolitan-district-council/leeds,Leeds City Council,28/02/2022,Resources,Leeds Building Services,Supplies and Services,Operational Materials,205,09/02/2022,2202-00370,0.00,155.99,R,ADI-Gardiner Ltd,No
Http://opendatacommunities.org/id/metropolitan-district-council/leeds,Leeds City Council,28/02/2022,Resources,Leeds Building Services,Supplies and Services,Operational Materials,205,18/02/2022,2202-00371,0.00,40.65,R,ADI-Gardiner Ltd,No
Http://opendatacommunities.org/id/metropolitan-district-council/leeds,Leeds City Council,28/02/2022,Resources,Leeds Building Services,Supplies and Services,Operational Materials,205,18/02/2022,2202-00372,0.00,284.93,R,ADI-Gardiner Ltd,No
Http://opendatacommunities.org/id/metropolitan-district-council/leeds,Leeds City Council,28/02/2022,Resources,Leeds Building Services,Supplies and Services,Operational Materials,205,18/02/2022,2202-00373,0.00,1045.10,R,ADI-Gardiner Ltd,No
Http://opendatacommunities.org/id/metropolitan-district-council/leeds,Leeds City Council,28/02/2022,Resources,Leeds Building Services,Supplies and Services,Operational Materials,205,24/02/2022,2202-00374,0.00,77.17,R,ADI-Gardiner Ltd,No
Http://opendatacommunities.org/id/metropolitan-district-council/leeds,Leeds City Council,28/02/2022,Resources,Leeds Building Services,Supplies and Services,Operational Materials,205,24/02/2022,2202-00375,0.00,13.41,R,ADI-Gardiner Ltd,No
Http://opendatacommunities.org/id/metropolitan-district-council/leeds,Leeds City Council,28/02/2022,Resources,Leeds Building Services,Supplies and Services,Operational Materials,205,25/02/2022,2202-00376,0.00,368.52,R,ADI-Gardiner Ltd,No
Http://opendatacommunities.org/id/metropolitan-district-council/leeds,Leeds City Council,28/02/2022,Resources,Leeds Building Services,Supplies and Services,Operational Materials,205,25/02/2022,2202-00377,0.00,18.36,R,ADI-Gardiner Ltd,No
Http://opendatacommunities.org/id/metropolitan-district-council/leeds,Leeds City Council,28/02/2022,Communities Housing and Environment,Benefits Welfare and Poverty,Supplies and Services,Grant Related Expenditure,298,15/02/2022,2202-00378,0.00,500.00,R,REDACTED PERSONAL DATA,No
Http://opendatacommunities.org/id/metropolitan-district-council/leeds,Leeds City Council,28/02/2022,Insurance,Insurance,Supplies and Services,Insurance Claims,248,02/02/2022,2202-00379,0.00,3885.89,R,Admiral Law,No
Http://opendatacommunities.org/id/metropolitan-district-council/leeds,Leeds City Council,28/02/2022,Communities Housing and Environment,Elections Licensing and Registration,External Income,Admissions Booking Fees & Ticket Sales,933,17/02/2022,2202-00380,0.00,260.00,R,Adnan Aslam,No
Http://opendatacommunities.org/id/metropolitan-district-council/leeds,Leeds City Council,28/02/2022,Communities Housing and Environment,Benefits Welfare and Poverty,Supplies and Services,Grant Related Expenditure,290,24/02/2022,2202-00381,0.00,500.00,R,REDACTED PERSONAL DATA,No
Http://opendatacommunities.org/id/metropolitan-district-council/leeds,Leeds City Council,28/02/2022,City Development,Libraries Arts & Heritage ,Supplies and Services,Computer Software & Equipment,214,04/01/2022,2202-00382,0.00,41.62,R,Adobe Creative Cloud,Yes
Http://opendatacommunities.org/id/metropolitan-district-council/leeds,Leeds City Council,28/02/2022,City Development,Libraries Arts & Heritage ,Supplies and Services,Computer Software & Equipment,214,25/01/2022,2202-00383,0.00,8.32,R,Adobe Photogphy Plan,Yes
Http://opendatacommunities.org/id/metropolitan-district-council/leeds,Leeds City Council,28/02/2022,City Development,Libraries Arts & Heritage ,Supplies and Services,Computer Software & Equipment,214,19/01/2022,2202-00384,0.00,104.18,R,Adobe Send-For-Sign,Yes
Http://opendatacommunities.org/id/metropolitan-district-council/leeds,Leeds City Council,28/02/2022,Children and Families,Social Care,Agency Payments,Independent Fostering Agencies,509,04/02/2022,2202-00385,0.00,3565.00,R,Adolescent And Childrens Trust,No
Http://opendatacommunities.org/id/metropolitan-district-council/leeds,Leeds City Council,28/02/2022,Children and Families,Social Care,Agency Payments,Independent Fostering Agencies,509,04/02/2022,2202-00386,0.00,3565.00,R,Adolescent And Childrens Trust,No
Http://opendatacommunities.org/id/metropolitan-district-council/leeds,Leeds City Council,28/02/2022,Children and Families,Social Care,Agency Payments,Independent Fostering Agencies,509,04/02/2022,2202-00387,0.00,3751.00,R,Adolescent And Childrens Trust,No
Http://opendatacommunities.org/id/metropolitan-district-council/leeds,Leeds City Council,28/02/2022,Children and Families,Social Care,Agency Payments,Independent Fostering Agencies,509,04/02/2022,2202-00388,0.00,3751.00,R,Adolescent And Childrens Trust,No
Http://opendatacommunities.org/id/metropolitan-district-council/leeds,Leeds City Council,28/02/2022,Children and Families,Social Care,Agency Payments,Independent Fostering Agencies,509,04/02/2022,2202-00389,0.00,3565.00,R,Adolescent And Childrens Trust,No
Http://opendatacommunities.org/id/metropolitan-district-council/leeds,Leeds City Council,28/02/2022,Children and Families,Social Care,Agency Payments,Independent Fostering Agencies,509,04/02/2022,2202-00390,0.00,3751.00,R,Adolescent And Childrens Trust,No
Http://opendatacommunities.org/id/metropolitan-district-council/leeds,Leeds City Council,28/02/2022,Children and Families,Social Care,Agency Payments,Independent Fostering Agencies,509,04/02/2022,2202-00391,0.00,3751.00,R,Adolescent And Childrens Trust,No
Http://opendatacommunities.org/id/metropolitan-district-council/leeds,Leeds City Council,28/02/2022,Children and Families,Social Care,Agency Payments,Independent Fostering Agencies,509,04/02/2022,2202-00392,0.00,3551.67,R,Adolescent And Childrens Trust,No
Http://opendatacommunities.org/id/metropolitan-district-council/leeds,Leeds City Council,28/02/2022,Children and Families,Social Care,Agency Payments,Independent Fostering Agencies,509,04/02/2022,2202-00393,0.00,3751.00,R,Adolescent And Childrens Trust,No
Http://opendatacommunities.org/id/metropolitan-district-council/leeds,Leeds City Council,28/02/2022,Children and Families,Social Care,Agency Payments,Independent Fostering Agencies,509,04/02/2022,2202-00394,0.00,2185.00,R,Adolescent And Childrens Trust,No
Http://opendatacommunities.org/id/metropolitan-district-council/leeds,Leeds City Council,28/02/2022,Children and Families,Social Care,Agency Payments,Independent Fostering Agencies,509,25/02/2022,2202-00395,0.00,3437.10,R,Adolescent And Childrens Trust,No
Http://opendatacommunities.org/id/metropolitan-district-council/leeds,Leeds City Council,28/02/2022,Adults and Health,Services For Adults Under 65 Mental/Dis,Agency Payments,Home Care,568,02/02/2022,2202-00396,0.00,462.50,R,Adopt Healthcare,No
Http://opendatacommunities.org/id/metropolitan-district-council/leeds,Leeds City Council,28/02/2022,Adults and Health,Services For Adults Under 65 Mental/Dis,Agency Payments,Home Care,568,09/02/2022,2202-00397,0.00,298.25,R,Adopt Healthcare,No
Http://opendatacommunities.org/id/metropolitan-district-council/leeds,Leeds City Council,28/02/2022,Adults and Health,Services For Adults Under 65 Mental/Dis,Agency Payments,Home Care,568,16/02/2022,2202-00398,0.00,287.25,R,Adopt Healthcare,No
Http://opendatacommunities.org/id/metropolitan-district-council/leeds,Leeds City Council,28/02/2022,Communities Housing and Environment,Benefits Welfare and Poverty,Supplies and Services,Grant Related Expenditure,290,22/02/2022,2202-00399,0.00,500.00,R,REDACTED PERSONAL DATA,No
Http://opendatacommunities.org/id/metropolitan-district-council/leeds,Leeds City Council,28/02/2022,Children and Families,Social Care,Agency Payments,Placement Support,550,04/02/2022,2202-00400,0.00,253.80,R,REDACTED PERSONAL DATA,No
Http://opendatacommunities.org/id/metropolitan-district-council/leeds,Leeds City Council,28/02/2022,Children and Families,Social Care,Agency Payments,Placement Support,550,11/02/2022,2202-00401,0.00,21.15,R,REDACTED PERSONAL DATA,No
Http://opendatacommunities.org/id/metropolitan-district-council/leeds,Leeds City Council,28/02/2022,Children and Families,Social Care,Agency Payments,Placement Support,550,18/02/2022,2202-00402,0.00,84.60,R,REDACTED PERSONAL DATA,No
Http://opendatacommunities.org/id/metropolitan-district-council/leeds,Leeds City Council,28/02/2022,Children and Families,Social Care,Agency Payments,Placement Support,550,18/02/2022,2202-00403,0.00,21.15,R,REDACTED PERSONAL DATA,No
Http://opendatacommunities.org/id/metropolitan-district-council/leeds,Leeds City Council,28/02/2022,Children and Families,Social Care,Agency Payments,Placement Support,550,25/02/2022,2202-00404,0.00,21.15,R,REDACTED PERSONAL DATA,No
Http://opendatacommunities.org/id/metropolitan-district-council/leeds,Leeds City Council as Accountable Body,28/02/2022,Social Services Pooled Budgets,Jcs For People With Learning Disabilitie,Agency Payments,Residential,580,03/02/2022,2202-00405,0.00,2609.36,R,ADRIAN HOUSE,No
Http://opendatacommunities.org/id/metropolitan-district-council/leeds,Leeds City Council,28/02/2022,Communities Housing and Environment,Car Parking Services,External Income,Penalties Fines & Car Parking Charges,934,07/02/2022,2202-00406,0.00,30.00,R,REDACTED PERSONAL DATA,No
Http://opendatacommunities.org/id/metropolitan-district-council/leeds,Leeds City Council,28/02/2022,Communities Housing and Environment,Benefits Welfare and Poverty,Supplies and Services,Grant Related Expenditure,298,11/02/2022,2202-00407,0.00,500.00,R,REDACTED PERSONAL DATA,No
Http://opendatacommunities.org/id/metropolitan-district-council/leeds,Leeds City Council,28/02/2022,Communities Housing and Environment,Benefits Welfare and Poverty,Supplies and Services,Grant Related Expenditure,298,11/02/2022,2202-00408,0.00,500.00,R,REDACTED PERSONAL DATA,No
Http://opendatacommunities.org/id/metropolitan-district-council/leeds,Leeds City Council,28/02/2022,Children and Families,Social Care,Internal Recharges,Legal Disbursements,411,02/02/2022,2202-00409,0.00,1007.20,R,ADVANCED CHILD CARE ASSESSMENTS LTD,No
Http://opendatacommunities.org/id/metropolitan-district-council/leeds,Leeds City Council,28/02/2022,Children and Families,Social Care,Internal Recharges,Legal Disbursements,411,18/02/2022,2202-00410,0.00,1174.30,R,ADVANCED CHILD CARE ASSESSMENTS LTD,No
Http://opendatacommunities.org/id/metropolitan-district-council/leeds,Leeds City Council,28/02/2022,Children and Families,Social Care,Internal Recharges,Legal Disbursements,411,25/02/2022,2202-00411,0.00,934.60,R,ADVANCED CHILD CARE ASSESSMENTS LTD,No
Http://opendatacommunities.org/id/metropolitan-district-council/leeds,Leeds City Council,28/02/2022,Adults and Health,Services For Older People - 65 And Over,Agency Payments,Home Care,568,16/02/2022,2202-00412,0.00,543.66,R,Advanced Medcare Ltd,No
Http://opendatacommunities.org/id/metropolitan-district-council/leeds,Leeds City Council,28/02/2022,Adults and Health,Services For Older People - 65 And Over,Agency Payments,HCAIT Community Support,575,16/02/2022,2202-00413,0.00,106.08,R,Advanced Medcare Ltd,No
Http://opendatacommunities.org/id/metropolitan-district-council/leeds,Leeds City Council,28/02/2022,Adults and Health,Services For Older People - 65 And Over,Agency Payments,Home Care,568,23/02/2022,2202-00414,0.00,238.68,R,Advanced Medcare Ltd,No
Http://opendatacommunities.org/id/metropolitan-district-council/leeds,Leeds City Council,28/02/2022,Adults and Health,Services For Older People - 65 And Over,Agency Payments,Home Care,568,23/02/2022,2202-00415,0.00,495.04,R,Advanced Medcare Ltd,No
Http://opendatacommunities.org/id/metropolitan-district-council/leeds,Leeds City Council,28/02/2022,Adults and Health,Services For Older People - 65 And Over,Agency Payments,Home Care,568,23/02/2022,2202-00416,0.00,318.24,R,Advanced Medcare Ltd,No
Http://opendatacommunities.org/id/metropolitan-district-council/leeds,Leeds City Council,28/02/2022,Adults and Health,Services For Older People - 65 And Over,Agency Payments,HCAIT Community Support,575,23/02/2022,2202-00417,0.00,106.08,R,Advanced Medcare Ltd,No
Http://opendatacommunities.org/id/metropolitan-district-council/leeds,Leeds City Council,28/02/2022,Adults and Health,Services For Older People - 65 And Over,Agency Payments,Home Care,568,23/02/2022,2202-00418,0.00,247.52,R,Advanced Medcare Ltd,No
Http://opendatacommunities.org/id/metropolitan-district-council/leeds,Leeds City Council,28/02/2022,Adults and Health,Services For Older People - 65 And Over,Agency Payments,Home Care,568,23/02/2022,2202-00419,0.00,455.26,R,Advanced Medcare Ltd,No
Http://opendatacommunities.org/id/metropolitan-district-council/leeds,Leeds City Council,28/02/2022,Adults and Health,Services For Older People - 65 And Over,Agency Payments,Home Care,568,23/02/2022,2202-00420,0.00,1821.04,R,Advanced Medcare Ltd,No
Http://opendatacommunities.org/id/metropolitan-district-council/leeds,Leeds City Council,28/02/2022,Adults and Health,Services For Older People - 65 And Over,Agency Payments,Home Care,568,23/02/2022,2202-00421,0.00,1237.60,R,Advanced Medcare Ltd,No
Http://opendatacommunities.org/id/metropolitan-district-council/leeds,Leeds City Council,28/02/2022,Adults and Health,Services For Older People - 65 And Over,Agency Payments,HCAIT Other,577,23/02/2022,2202-00422,0.00,282.88,R,Advanced Medcare Ltd,No
Http://opendatacommunities.org/id/metropolitan-district-council/leeds,Leeds City Council,28/02/2022,Adults and Health,Services For Older People - 65 And Over,Agency Payments,Home Care,568,23/02/2022,2202-00423,0.00,2475.20,R,Advanced Medcare Ltd,No
Http://opendatacommunities.org/id/metropolitan-district-council/leeds,Leeds City Council,28/02/2022,Adults and Health,Services For Older People - 65 And Over,Agency Payments,HCAIT Other,577,23/02/2022,2202-00424,0.00,565.76,R,Advanced Medcare Ltd,No
Http://opendatacommunities.org/id/metropolitan-district-council/leeds,Leeds City Council as Accountable Body,28/02/2022,Social Services Pooled Budgets,Jcs For People With Learning Disabilitie,Agency Payments,Home Care,568,03/02/2022,2202-00425,0.00,175.00,R,Advantage Healthcare Ltd,No
Http://opendatacommunities.org/id/metropolitan-district-council/leeds,Leeds City Council as Accountable Body,28/02/2022,Social Services Pooled Budgets,Jcs For People With Learning Disabilitie,Agency Payments,Home Care,568,04/02/2022,2202-00426,0.00,2263.10,R,Advantage Healthcare Ltd,No
Http://opendatacommunities.org/id/metropolitan-district-council/leeds,Leeds City Council as Accountable Body,28/02/2022,Social Services Pooled Budgets,Jcs For People With Learning Disabilitie,Agency Payments,Home Care,568,04/02/2022,2202-00427,0.00,175.00,R,Advantage Healthcare Ltd,No
Http://opendatacommunities.org/id/metropolitan-district-council/leeds,Leeds City Council as Accountable Body,28/02/2022,Social Services Pooled Budgets,Jcs For People With Learning Disabilitie,Agency Payments,Home Care,568,11/02/2022,2202-00428,0.00,1649.80,R,Advantage Healthcare Ltd,No
Http://opendatacommunities.org/id/metropolitan-district-council/leeds,Leeds City Council as Accountable Body,28/02/2022,Social Services Pooled Budgets,Jcs For People With Learning Disabilitie,Agency Payments,Home Care,568,18/02/2022,2202-00429,0.00,2309.72,R,Advantage Healthcare Ltd,No
Http://opendatacommunities.org/id/metropolitan-district-council/leeds,Leeds City Council as Accountable Body,28/02/2022,Social Services Pooled Budgets,Jcs For People With Learning Disabilitie,Agency Payments,Home Care,568,18/02/2022,2202-00430,0.00,1137.50,R,Advantage Healthcare Ltd,No
Http://opendatacommunities.org/id/metropolitan-district-council/leeds,Leeds City Council as Accountable Body,28/02/2022,Social Services Pooled Budgets,Jcs For People With Learning Disabilitie,Agency Payments,Home Care,568,25/02/2022,2202-00431,0.00,1990.12,R,Advantage Healthcare Ltd,No
Http://opendatacommunities.org/id/metropolitan-district-council/leeds,Leeds City Council,28/02/2022,City Development,Economic Development,Supplies and Services,Grant Related Expenditure,298,08/02/2022,2202-00432,0.00,778.00,R,Adventures For Students Ltd,No
Http://opendatacommunities.org/id/metropolitan-district-council/leeds,Leeds City Council,28/02/2022,Adults and Health,Social Services Support Services,Supplies and Services,Consultancy Services,259,10/02/2022,2202-00433,0.00,10000.00,R,Advonet,No
Http://opendatacommunities.org/id/metropolitan-district-council/leeds,Leeds City Council as Accountable Body,28/02/2022,Social Services Pooled Budgets,Jcs For People With Learning Disabilitie,Supplies and Services,Other Hired And Contracted Services,265,16/02/2022,2202-00434,0.00,30.00,R,Advonet,No
Http://opendatacommunities.org/id/metropolitan-district-council/leeds,Leeds City Council as Accountable Body,28/02/2022,Social Services Pooled Budgets,Jcs For People With Learning Disabilitie,Agency Payments,Home Care,568,16/02/2022,2202-00435,0.00,132.60,R,Advonet,No
Http://opendatacommunities.org/id/metropolitan-district-council/leeds,Leeds City Council as Accountable Body,28/02/2022,Social Services Pooled Budgets,Jcs For People With Learning Disabilitie,Supplies and Services,Other Hired And Contracted Services,265,16/02/2022,2202-00436,0.00,116.10,R,Advonet,No
Http://opendatacommunities.org/id/metropolitan-district-council/leeds,Leeds City Council as Accountable Body,28/02/2022,Social Services Pooled Budgets,Jcs For People With Learning Disabilitie,Supplies and Services,Other Hired And Contracted Services,265,16/02/2022,2202-00437,0.00,277.50,R,Advonet,No
Http://opendatacommunities.org/id/metropolitan-district-council/leeds,Leeds City Council as Accountable Body,28/02/2022,Social Services Pooled Budgets,Jcs For People With Learning Disabilitie,Supplies and Services,Other Hired And Contracted Services,265,16/02/2022,2202-00438,0.00,90.00,R,Advonet,No
Http://opendatacommunities.org/id/metropolitan-district-council/leeds,Leeds City Council as Accountable Body,28/02/2022,Social Services Pooled Budgets,Jcs For People With Learning Disabilitie,Supplies and Services,Other Hired And Contracted Services,265,16/02/2022,2202-00439,0.00,80.10,R,Advonet,No
Http://opendatacommunities.org/id/metropolitan-district-council/leeds,Leeds City Council as Accountable Body,28/02/2022,Social Services Pooled Budgets,Jcs For People With Learning Disabilitie,Supplies and Services,Other Hired And Contracted Services,265,16/02/2022,2202-00440,0.00,37.50,R,Advonet,No
Http://opendatacommunities.org/id/metropolitan-district-council/leeds,Leeds City Council as Accountable Body,28/02/2022,Social Services Pooled Budgets,Jcs For People With Learning Disabilitie,Agency Payments,Home Care,568,16/02/2022,2202-00441,0.00,180.00,R,Advonet,No
Http://opendatacommunities.org/id/metropolitan-district-council/leeds,Leeds City Council as Accountable Body,28/02/2022,Social Services Pooled Budgets,Jcs For People With Learning Disabilitie,Supplies and Services,Other Hired And Contracted Services,265,16/02/2022,2202-00442,0.00,10.20,R,Advonet,No
Http://opendatacommunities.org/id/metropolitan-district-council/leeds,Leeds City Council as Accountable Body,28/02/2022,Social Services Pooled Budgets,Jcs For People With Learning Disabilitie,Supplies and Services,Other Hired And Contracted Services,265,16/02/2022,2202-00443,0.00,204.90,R,Advonet,No
Http://opendatacommunities.org/id/metropolitan-district-council/leeds,Leeds City Council as Accountable Body,28/02/2022,Social Services Pooled Budgets,Jcs For People With Learning Disabilitie,Supplies and Services,Other Hired And Contracted Services,265,16/02/2022,2202-00444,0.00,107.40,R,Advonet,No
Http://opendatacommunities.org/id/metropolitan-district-council/leeds,Leeds City Council as Accountable Body,28/02/2022,Social Services Pooled Budgets,Jcs For People With Learning Disabilitie,Supplies and Services,Other Hired And Contracted Services,265,16/02/2022,2202-00445,0.00,224.25,R,Advonet,No
Http://opendatacommunities.org/id/metropolitan-district-council/leeds,Leeds City Council,28/02/2022,Adults and Health,Services For Adults Under 65 Mental/Dis,Agency Payments,Home Care,568,16/02/2022,2202-00446,0.00,30.00,R,Advonet,No
Http://opendatacommunities.org/id/metropolitan-district-council/leeds,Leeds City Council as Accountable Body,28/02/2022,Social Services Pooled Budgets,Jcs For People With Learning Disabilitie,Supplies and Services,Other Hired And Contracted Services,265,16/02/2022,2202-00447,0.00,72.60,R,Advonet,No
Http://opendatacommunities.org/id/metropolitan-district-council/leeds,Leeds City Council,28/02/2022,Adults and Health,Services For Adults Under 65 Mental/Dis,Agency Payments,Home Care,568,16/02/2022,2202-00448,0.00,272.70,R,Advonet,No
Http://opendatacommunities.org/id/metropolitan-district-council/leeds,Leeds City Council,28/02/2022,Adults and Health,Services For Older People - 65 And Over,Agency Payments,Payments To Voluntary Organisations,561,28/02/2022,2202-00449,0.00,104750.00,R,Advonet,No
Http://opendatacommunities.org/id/metropolitan-district-council/leeds,Leeds City Council,28/02/2022,Adults and Health,Services For Adults Under 65 Mental/Dis,Agency Payments,Fees - Level 4,520,07/02/2022,2202-00450,0.00,198.00,R,AE BIA Assessments Limited,No
Http://opendatacommunities.org/id/metropolitan-district-council/leeds,Leeds City Council,28/02/2022,Adults and Health,Services For Adults Under 65 Mental/Dis,Agency Payments,Fees - Level 4,520,07/02/2022,2202-00451,0.00,198.00,R,AE BIA Assessments Limited,No
Http://opendatacommunities.org/id/metropolitan-district-council/leeds,Leeds City Council,28/02/2022,Adults and Health,Services For Adults Under 65 Mental/Dis,Agency Payments,Fees - Level 4,520,25/02/2022,2202-00452,0.00,220.13,R,AE BIA Assessments Limited,No
Http://opendatacommunities.org/id/metropolitan-district-council/leeds,Leeds City Council,28/02/2022,Adults and Health,Services For Adults Under 65 Mental/Dis,Agency Payments,Fees - Level 4,520,25/02/2022,2202-00453,0.00,220.13,R,AE BIA Assessments Limited,No
Http://opendatacommunities.org/id/metropolitan-district-council/leeds,Leeds City Council,28/02/2022,City Development,Highways,Capital,OTHER COSTS,7,03/02/2022,2202-00454,0.00,28263.46,C,Aecom Limited,No
Http://opendatacommunities.org/id/metropolitan-district-council/leeds,Leeds City Council,28/02/2022,City Development,Highways,Capital,OTHER COSTS,7,25/02/2022,2202-00455,0.00,113933.10,C,Aecom Limited,No
Http://opendatacommunities.org/id/metropolitan-district-council/leeds,Leeds City Council,28/02/2022,Adults and Health,Other Adult Services,Agency Payments,HCAIT Other,577,01/02/2022,2202-00456,0.00,4792.20,R,Aegis Care Solutions Ltd,No
Http://opendatacommunities.org/id/metropolitan-district-council/leeds,Leeds City Council,28/02/2022,Adults and Health,Services For Adults Under 65 Mental/Dis,Agency Payments,Home Care,568,04/02/2022,2202-00457,0.00,783.20,R,Aegis Care Solutions Ltd,No
Http://opendatacommunities.org/id/metropolitan-district-council/leeds,Leeds City Council,28/02/2022,Adults and Health,Services For Adults Under 65 Mental/Dis,Agency Payments,Home Care,568,04/02/2022,2202-00458,0.00,826.80,R,Aegis Care Solutions Ltd,No
Http://opendatacommunities.org/id/metropolitan-district-council/leeds,Leeds City Council,28/02/2022,Adults and Health,Services For Adults Under 65 Mental/Dis,Agency Payments,Home Care,568,04/02/2022,2202-00459,0.00,475.20,R,Aegis Care Solutions Ltd,No
Http://opendatacommunities.org/id/metropolitan-district-council/leeds,Leeds City Council,28/02/2022,Adults and Health,Services For Adults Under 65 Mental/Dis,Agency Payments,Home Care,568,04/02/2022,2202-00460,0.00,1223.90,R,Aegis Care Solutions Ltd,No
Http://opendatacommunities.org/id/metropolitan-district-council/leeds,Leeds City Council,28/02/2022,Adults and Health,Services For Adults Under 65 Mental/Dis,Agency Payments,Home Care,568,04/02/2022,2202-00461,0.00,4537.60,R,Aegis Care Solutions Ltd,No
Http://opendatacommunities.org/id/metropolitan-district-council/leeds,Leeds City Council,28/02/2022,Adults and Health,Services For Adults Under 65 Mental/Dis,Agency Payments,Home Care,568,04/02/2022,2202-00462,0.00,2006.01,R,Aegis Care Solutions Ltd,No
Http://opendatacommunities.org/id/metropolitan-district-council/leeds,Leeds City Council,28/02/2022,Adults and Health,Services For Adults Under 65 Mental/Dis,Agency Payments,Home Care,568,04/02/2022,2202-00463,0.00,1273.00,R,Aegis Care Solutions Ltd,No
Http://opendatacommunities.org/id/metropolitan-district-council/leeds,Leeds City Council,28/02/2022,Adults and Health,Services For Adults Under 65 Mental/Dis,Agency Payments,Home Care,568,04/02/2022,2202-00464,0.00,958.79,R,Aegis Care Solutions Ltd,No
Http://opendatacommunities.org/id/metropolitan-district-council/leeds,Leeds City Council,28/02/2022,Adults and Health,Services For Adults Under 65 Mental/Dis,Agency Payments,Home Care,568,04/02/2022,2202-00465,0.00,1741.70,R,Aegis Care Solutions Ltd,No
Http://opendatacommunities.org/id/metropolitan-district-council/leeds,Leeds City Council,28/02/2022,Adults and Health,Services For Adults Under 65 Mental/Dis,Agency Payments,Home Care,568,04/02/2022,2202-00466,0.00,1123.80,R,Aegis Care Solutions Ltd,No
Http://opendatacommunities.org/id/metropolitan-district-council/leeds,Leeds City Council,28/02/2022,Adults and Health,Services For Adults Under 65 Mental/Dis,Agency Payments,Home Care,568,04/02/2022,2202-00467,0.00,288.80,R,Aegis Care Solutions Ltd,No
Http://opendatacommunities.org/id/metropolitan-district-council/leeds,Leeds City Council,28/02/2022,Adults and Health,Services For Older People - 65 And Over,Agency Payments,Home Care,568,16/02/2022,2202-00468,0.00,36072.07,R,Aegis Care Solutions Ltd,No
Http://opendatacommunities.org/id/metropolitan-district-council/leeds,Leeds City Council,28/02/2022,Adults and Health,Services For Older People - 65 And Over,Agency Payments,HCAIT Other,577,16/02/2022,2202-00469,0.00,388.80,R,Aegis Care Solutions Ltd,No
Http://opendatacommunities.org/id/metropolitan-district-council/leeds,Leeds City Council,28/02/2022,Adults and Health,Services For Older People Under 65 P/Dis,Agency Payments,Home Care,568,16/02/2022,2202-00470,0.00,9564.24,R,Aegis Care Solutions Ltd,No
Http://opendatacommunities.org/id/metropolitan-district-council/leeds,Leeds City Council as Accountable Body,28/02/2022,Social Services Pooled Budgets,Jcs For People With Learning Disabilitie,Agency Payments,Home Care,568,16/02/2022,2202-00471,0.00,1977.92,R,Aegis Care Solutions Ltd,No
Http://opendatacommunities.org/id/metropolitan-district-council/leeds,Leeds City Council,28/02/2022,Communities Housing and Environment,Communities,Supplies and Services,'Well Being' Large Grants Projects,230,02/02/2022,2202-00472,0.00,243.90,R,AERO Healthcare,No
Http://opendatacommunities.org/id/metropolitan-district-council/leeds,Leeds City Council,28/02/2022,City Development,Economic Development,Supplies and Services,Grant Related Expenditure,298,23/02/2022,2202-00473,0.00,6000.00,R,Aeroservices Ltd,No
Http://opendatacommunities.org/id/metropolitan-district-council/leeds,Leeds City Council,28/02/2022,City Development,Economic Development,Supplies and Services,Grant Related Expenditure,298,15/02/2022,2202-00474,0.00,8036.00,R,Aerotech Abrasives Group,No
Http://opendatacommunities.org/id/metropolitan-district-council/leeds,Leeds City Council,28/02/2022,Children and Families,Learning,Supplies and Services,Conference Meetings,253,11/02/2022,2202-00475,0.00,658.33,R,Aesculap Academia,No
Http://opendatacommunities.org/id/metropolitan-district-council/leeds,Leeds City Council,28/02/2022,City Development,Libraries Arts & Heritage,Supplies and Services,Operational Materials,205,18/02/2022,2202-00476,0.00,1020.00,R,Aesg Ltd,No
Http://opendatacommunities.org/id/metropolitan-district-council/leeds,Leeds City Council,28/02/2022,City Development,Libraries Arts & Heritage,Supplies and Services,Other Hired And Contracted Services,265,18/02/2022,2202-00477,0.00,1035.00,R,Aesg Ltd,No
Http://opendatacommunities.org/id/metropolitan-district-council/leeds,Leeds City Council,28/02/2022,City Development,Libraries Arts & Heritage,Supplies and Services,Other Hired And Contracted Services,265,18/02/2022,2202-00478,0.00,525.00,R,Aesg Ltd,No
Http://opendatacommunities.org/id/metropolitan-district-council/leeds,Leeds City Council,28/02/2022,City Development,Libraries Arts & Heritage,Supplies and Services,Operational Materials,205,25/02/2022,2202-00479,0.00,795.00,R,Aesg Ltd,No
Http://opendatacommunities.org/id/metropolitan-district-council/leeds,Leeds City Council,28/02/2022,Adults and Health,Other Adult Services,Agency Payments,HCAIT Other,577,01/02/2022,2202-00480,0.00,9013.90,R,Affinity Trust,No
Http://opendatacommunities.org/id/metropolitan-district-council/leeds,Leeds City Council,28/02/2022,Adults and Health,Services For Older People - 65 And Over,Agency Payments,Home Care,568,01/02/2022,2202-00481,0.00,25474.50,R,Affinity Trust,No
Http://opendatacommunities.org/id/metropolitan-district-council/leeds,Leeds City Council,28/02/2022,Adults and Health,Assessment And Care Management,Agency Payments,Home Care,568,03/02/2022,2202-00482,0.00,669.60,R,Affinity Trust,No
Http://opendatacommunities.org/id/metropolitan-district-council/leeds,Leeds City Council,28/02/2022,Adults and Health,Assessment And Care Management,Agency Payments,Home Care,568,09/02/2022,2202-00483,0.00,135.92,R,Affinity Trust,No
Http://opendatacommunities.org/id/metropolitan-district-council/leeds,Leeds City Council,28/02/2022,Adults and Health,Services For Adults Under 65 Mental/Dis,Agency Payments,Home Care,568,09/02/2022,2202-00484,0.00,543.68,R,Affinity Trust,No
Http://opendatacommunities.org/id/metropolitan-district-council/leeds,Leeds City Council,28/02/2022,Adults and Health,Services For Adults Under 65 Mental/Dis,Agency Payments,HCAIT Community Support,575,09/02/2022,2202-00485,0.00,339.80,R,Affinity Trust,No
Http://opendatacommunities.org/id/metropolitan-district-council/leeds,Leeds City Council,28/02/2022,Adults and Health,Services For Older People - 65 And Over,Agency Payments,HCAIT Community Support,575,09/02/2022,2202-00486,0.00,611.64,R,Affinity Trust,No
Http://opendatacommunities.org/id/metropolitan-district-council/leeds,Leeds City Council,28/02/2022,Adults and Health,Services For Older People Under 65 P/Dis,Agency Payments,Home Care,568,09/02/2022,2202-00487,0.00,815.52,R,Affinity Trust,No
Http://opendatacommunities.org/id/metropolitan-district-council/leeds,Leeds City Council,28/02/2022,Adults and Health,Services For Older People Under 65 P/Dis,Agency Payments,HCAIT Community Support,575,09/02/2022,2202-00488,0.00,747.56,R,Affinity Trust,No
Http://opendatacommunities.org/id/metropolitan-district-council/leeds,Leeds City Council as Accountable Body,28/02/2022,Social Services Pooled Budgets,Jcs For People With Learning Disabilitie,Agency Payments,Home Care,568,09/02/2022,2202-00489,0.00,339.80,R,Affinity Trust,No
Http://opendatacommunities.org/id/metropolitan-district-council/leeds,Leeds City Council,28/02/2022,Adults and Health,Assessment And Care Management,Agency Payments,Home Care,568,25/02/2022,2202-00490,0.00,669.60,R,Affinity Trust,No
Http://opendatacommunities.org/id/metropolitan-district-council/leeds,Leeds City Council,28/02/2022,Adults and Health,Services For Older People - 65 And Over,Agency Payments,Home Care,568,25/02/2022,2202-00491,0.00,535.68,R,Affinity Trust,No
Http://opendatacommunities.org/id/metropolitan-district-council/leeds,Leeds City Council as Accountable Body,28/02/2022,Social Services Pooled Budgets,Jcs For People With Learning Disabilitie,Agency Payments,Day Centre,564,25/02/2022,2202-00492,0.00,15494.88,R,Affinity Trust,No
Http://opendatacommunities.org/id/metropolitan-district-council/leeds,Leeds City Council as Accountable Body,28/02/2022,Social Services Pooled Budgets,Jcs For People With Learning Disabilitie,Agency Payments,Day Centre,564,28/02/2022,2202-00493,0.00,19543.63,R,Affinity Trust,No
Http://opendatacommunities.org/id/metropolitan-district-council/leeds,Leeds City Council as Accountable Body,28/02/2022,Social Services Pooled Budgets,Jcs For People With Learning Disabilitie,Agency Payments,Sheltered Accommodation,569,02/02/2022,2202-00494,0.00,118483.13,R,Affinity Trust North Divisional Office,No
Http://opendatacommunities.org/id/metropolitan-district-council/leeds,Leeds City Council,28/02/2022,Insurance,Insurance,Supplies and Services,Insurance Claims,248,09/02/2022,2202-00495,0.00,2020.68,R,Affirm Legal,No
Http://opendatacommunities.org/id/metropolitan-district-council/leeds,Leeds City Council,28/02/2022,Communities Housing and Environment,Parks and Countryside ,Transport,Hire Of Movable Plant & Machinery,315,18/01/2022,2202-00496,0.00,4750.00,R,Afi Uplift,Yes
Http://opendatacommunities.org/id/metropolitan-district-council/leeds,Leeds City Council,28/02/2022,Children and Families,Social Care,Agency Payments,Placement Support,550,25/02/2022,2202-00497,0.00,817.21,R,AFRUCA - Safeguarding Children,No
Http://opendatacommunities.org/id/metropolitan-district-council/leeds,Leeds City Council,28/02/2022,Communities Housing and Environment,Elections Licensing and Registration,External Income,Admissions Booking Fees & Ticket Sales,933,16/02/2022,2202-00498,0.00,260.00,R,Aftab Hussain,No
Http://opendatacommunities.org/id/metropolitan-district-council/leeds,Leeds City Council,28/02/2022,Adults and Health,Public Health,Agency Payments,Services Rendered By Voluntary Sector,505,04/02/2022,2202-00499,0.00,7500.00,R,Age Uk Leeds,No
Http://opendatacommunities.org/id/metropolitan-district-council/leeds,Leeds City Council,28/02/2022,Adults and Health,Public Health,Agency Payments,Services Rendered By Voluntary Sector,505,10/02/2022,2202-00500,0.00,30000.00,R,Age Uk Leeds,No
Http://opendatacommunities.org/id/metropolitan-district-council/leeds,Leeds City Council,28/02/2022,Children and Families,Social Care,Premises,Other,114,01/02/2022,2202-00501,0.00,25.83,R,AGG Electrical Safety Testing Ltd,No
Http://opendatacommunities.org/id/metropolitan-district-council/leeds,Leeds City Council,28/02/2022,Communities Housing and Environment,Benefits Welfare and Poverty,Supplies and Services,Grant Related Expenditure,290,25/02/2022,2202-00502,0.00,500.00,R,REDACTED PERSONAL DATA,No
Http://opendatacommunities.org/id/metropolitan-district-council/leeds,Leeds City Council,28/02/2022,Communities Housing and Environment,Benefits Welfare and Poverty,Supplies and Services,Grant Related Expenditure,298,14/02/2022,2202-00503,0.00,500.00,R,REDACTED PERSONAL DATA,No
Http://opendatacommunities.org/id/metropolitan-district-council/leeds,Leeds City Council,28/02/2022,Communities Housing and Environment,Benefits Welfare and Poverty,Supplies and Services,Grant Related Expenditure,298,23/02/2022,2202-00504,0.00,500.00,R,REDACTED PERSONAL DATA,No
Http://opendatacommunities.org/id/metropolitan-district-council/leeds,Leeds City Council,28/02/2022,Communities Housing and Environment,Benefits Welfare and Poverty,Supplies and Services,Grant Related Expenditure,298,18/02/2022,2202-00505,0.00,500.00,R,REDACTED PERSONAL DATA,No
Http://opendatacommunities.org/id/metropolitan-district-council/leeds,Leeds City Council,28/02/2022,Communities Housing and Environment,Benefits Welfare and Poverty,Supplies and Services,Grant Related Expenditure,290,08/02/2022,2202-00506,0.00,500.00,R,REDACTED PERSONAL DATA,No
Http://opendatacommunities.org/id/metropolitan-district-council/leeds,Leeds City Council,28/02/2022,Communities Housing and Environment,Benefits Welfare and Poverty,Supplies and Services,Grant Related Expenditure,290,23/02/2022,2202-00507,0.00,500.00,R,REDACTED PERSONAL DATA,No
Http://opendatacommunities.org/id/metropolitan-district-council/leeds,Leeds City Council,28/02/2022,Communities Housing and Environment,Benefits Welfare and Poverty,Supplies and Services,Grant Related Expenditure,290,11/02/2022,2202-00508,0.00,500.00,R,REDACTED PERSONAL DATA,No
Http://opendatacommunities.org/id/metropolitan-district-council/leeds,Leeds City Council,28/02/2022,City Development,Employment & Skills,Agency Payments,Contributions To Partnerships,544,07/02/2022,2202-00509,0.00,5000.00,R,Ahead Partnership Ltd,No
Http://opendatacommunities.org/id/metropolitan-district-council/leeds,Leeds City Council,28/02/2022,City Development,Employment & Skills,Agency Payments,Contributions To Partnerships,544,25/02/2022,2202-00510,0.00,1000.00,R,Ahead Partnership Ltd,No
Http://opendatacommunities.org/id/metropolitan-district-council/leeds,Leeds City Council,28/02/2022,Communities Housing and Environment,Customer Access,Supplies and Services,Bought In Professional Services,277,02/02/2022,2202-00511,0.00,18.00,R,Ahmed Moustafa Moustafa Mousa,No
Http://opendatacommunities.org/id/metropolitan-district-council/leeds,Leeds City Council,28/02/2022,Communities Housing and Environment,Customer Access,Supplies and Services,Bought In Professional Services,277,02/02/2022,2202-00512,0.00,13.50,R,Ahmed Moustafa Moustafa Mousa,No
Http://opendatacommunities.org/id/metropolitan-district-council/leeds,Leeds City Council,28/02/2022,Communities Housing and Environment,Customer Access,Supplies and Services,Bought In Professional Services,277,09/02/2022,2202-00513,0.00,18.00,R,Ahmed Moustafa Moustafa Mousa,No
Http://opendatacommunities.org/id/metropolitan-district-council/leeds,Leeds City Council,28/02/2022,Communities Housing and Environment,Customer Access,Supplies and Services,Bought In Professional Services,277,17/02/2022,2202-00514,0.00,13.50,R,Ahmed Moustafa Moustafa Mousa,No
Http://opendatacommunities.org/id/metropolitan-district-council/leeds,Leeds City Council,28/02/2022,Communities Housing and Environment,Customer Access,Supplies and Services,Bought In Professional Services,277,23/02/2022,2202-00515,0.00,18.00,R,Ahmed Moustafa Moustafa Mousa,No
Http://opendatacommunities.org/id/metropolitan-district-council/leeds,Leeds City Council,28/02/2022,Communities Housing and Environment,Customer Access,Supplies and Services,Bought In Professional Services,277,23/02/2022,2202-00516,0.00,13.50,R,Ahmed Moustafa Moustafa Mousa,No
Http://opendatacommunities.org/id/metropolitan-district-council/leeds,Leeds City Council,28/02/2022,Communities Housing and Environment,Benefits Welfare and Poverty,Supplies and Services,Grant Related Expenditure,290,22/02/2022,2202-00517,0.00,500.00,R,REDACTED PERSONAL DATA,No
Http://opendatacommunities.org/id/metropolitan-district-council/leeds,Leeds City Council,28/02/2022,Communities Housing and Environment,Elections Licensing and Registration,External Income,Admissions Booking Fees & Ticket Sales,933,09/02/2022,2202-00518,0.00,260.00,R,REDACTED PERSONAL DATA,No
Http://opendatacommunities.org/id/metropolitan-district-council/leeds,Leeds City Council,28/02/2022,Communities Housing and Environment,Elections Licensing and Registration,External Income,Admissions Booking Fees & Ticket Sales,933,04/02/2022,2202-00519,0.00,260.00,R,REDACTED PERSONAL DATA,No
Http://opendatacommunities.org/id/metropolitan-district-council/leeds,Leeds City Council,28/02/2022,Communities Housing and Environment,Customer Access,Supplies and Services,Bought In Professional Services,277,02/02/2022,2202-00520,0.00,34.30,R,Ahmed T. Al-Hamdi,No
Http://opendatacommunities.org/id/metropolitan-district-council/leeds,Leeds City Council,28/02/2022,Communities Housing and Environment,Customer Access,Supplies and Services,Bought In Professional Services,277,09/02/2022,2202-00521,0.00,116.00,R,Ahmed T. Al-Hamdi,No
Http://opendatacommunities.org/id/metropolitan-district-council/leeds,Leeds City Council,28/02/2022,Communities Housing and Environment,Customer Access,Supplies and Services,Bought In Professional Services,277,17/02/2022,2202-00522,0.00,10.70,R,Ahmed T. Al-Hamdi,No
Http://opendatacommunities.org/id/metropolitan-district-council/leeds,Leeds City Council,28/02/2022,Communities Housing and Environment,Customer Access,Supplies and Services,Bought In Professional Services,277,23/02/2022,2202-00523,0.00,182.00,R,Ahmed T. Al-Hamdi,No
Http://opendatacommunities.org/id/metropolitan-district-council/leeds,Leeds City Council,28/02/2022,Communities Housing and Environment,Elections Licensing and Registration,External Income,Admissions Booking Fees & Ticket Sales,933,17/02/2022,2202-00524,0.00,130.00,R,REDACTED PERSONAL DATA,No
Http://opendatacommunities.org/id/metropolitan-district-council/leeds,Leeds City Council,28/02/2022,Communities Housing and Environment,Elections Licensing and Registration,External Income,Admissions Booking Fees & Ticket Sales,933,17/02/2022,2202-00525,0.00,130.00,R,REDACTED PERSONAL DATA,No
Http://opendatacommunities.org/id/metropolitan-district-council/leeds,Leeds City Council as Accountable Body,28/02/2022,Social Services Pooled Budgets,Leeds Community Equip Store Pooled Budgt,Supplies and Services,Other Equipment,203,01/02/2022,2202-00526,0.00,5978.00,R,AIDAPT BATHROOMS LTD,No
Http://opendatacommunities.org/id/metropolitan-district-council/leeds,Leeds City Council as Accountable Body,28/02/2022,Social Services Pooled Budgets,Leeds Community Equip Store Pooled Budgt,Supplies and Services,Other Equipment,203,04/02/2022,2202-00527,0.00,2160.00,R,AIDAPT BATHROOMS LTD,No
Http://opendatacommunities.org/id/metropolitan-district-council/leeds,Leeds City Council as Accountable Body,28/02/2022,Social Services Pooled Budgets,Leeds Community Equip Store Pooled Budgt,Supplies and Services,Other Equipment,203,04/02/2022,2202-00528,0.00,36.00,R,AIDAPT BATHROOMS LTD,No
Http://opendatacommunities.org/id/metropolitan-district-council/leeds,Leeds City Council as Accountable Body,28/02/2022,Social Services Pooled Budgets,Leeds Community Equip Store Pooled Budgt,Supplies and Services,Other Equipment,203,04/02/2022,2202-00529,0.00,400.00,R,AIDAPT BATHROOMS LTD,No
Http://opendatacommunities.org/id/metropolitan-district-council/leeds,Leeds City Council as Accountable Body,28/02/2022,Social Services Pooled Budgets,Leeds Community Equip Store Pooled Budgt,Supplies and Services,Other Equipment,203,16/02/2022,2202-00530,0.00,864.00,R,AIDAPT BATHROOMS LTD,No
Http://opendatacommunities.org/id/metropolitan-district-council/leeds,Leeds City Council as Accountable Body,28/02/2022,Social Services Pooled Budgets,Leeds Community Equip Store Pooled Budgt,Supplies and Services,Other Equipment,203,18/02/2022,2202-00531,0.00,1200.00,R,AIDAPT BATHROOMS LTD,No
Http://opendatacommunities.org/id/metropolitan-district-council/leeds,Leeds City Council as Accountable Body,28/02/2022,Social Services Pooled Budgets,Leeds Community Equip Store Pooled Budgt,Supplies and Services,Other Equipment,203,18/02/2022,2202-00532,0.00,303.00,R,AIDAPT BATHROOMS LTD,No
Http://opendatacommunities.org/id/metropolitan-district-council/leeds,Leeds City Council as Accountable Body,28/02/2022,Social Services Pooled Budgets,Leeds Community Equip Store Pooled Budgt,Supplies and Services,Other Equipment,203,22/02/2022,2202-00533,0.00,4968.00,R,AIDAPT BATHROOMS LTD,No
Http://opendatacommunities.org/id/metropolitan-district-council/leeds,Leeds City Council as Accountable Body,28/02/2022,Social Services Pooled Budgets,Leeds Community Equip Store Pooled Budgt,Supplies and Services,Other Equipment,203,24/02/2022,2202-00534,0.00,2000.00,R,AIDAPT BATHROOMS LTD,No
Http://opendatacommunities.org/id/metropolitan-district-council/leeds,Leeds City Council as Accountable Body,28/02/2022,Social Services Pooled Budgets,Leeds Community Equip Store Pooled Budgt,Supplies and Services,Other Equipment,203,24/02/2022,2202-00535,0.00,154.00,R,AIDAPT BATHROOMS LTD,No
Http://opendatacommunities.org/id/metropolitan-district-council/leeds,Leeds City Council as Accountable Body,28/02/2022,Social Services Pooled Budgets,Leeds Community Equip Store Pooled Budgt,Supplies and Services,Other Equipment,203,25/02/2022,2202-00536,0.00,19600.00,R,AIDAPT BATHROOMS LTD,No
Http://opendatacommunities.org/id/metropolitan-district-council/leeds,Leeds City Council as Accountable Body,28/02/2022,Social Services Pooled Budgets,Leeds Community Equip Store Pooled Budgt,Supplies and Services,Other Equipment,203,25/02/2022,2202-00537,0.00,543.75,R,AIDAPT BATHROOMS LTD,No
Http://opendatacommunities.org/id/metropolitan-district-council/leeds,Leeds City Council,28/02/2022,Communities Housing and Environment,Benefits Welfare and Poverty,Supplies and Services,Grant Related Expenditure,298,14/02/2022,2202-00538,0.00,500.00,R,REDACTED PERSONAL DATA,No
Http://opendatacommunities.org/id/metropolitan-district-council/leeds,Leeds City Council,28/02/2022,Communities Housing and Environment,Benefits Welfare and Poverty,Supplies and Services,Grant Related Expenditure,298,14/02/2022,2202-00539,0.00,500.00,R,REDACTED PERSONAL DATA,No
Http://opendatacommunities.org/id/metropolitan-district-council/leeds,Leeds City Council,28/02/2022,Communities Housing and Environment,Benefits Welfare and Poverty,Supplies and Services,Grant Related Expenditure,290,16/02/2022,2202-00540,0.00,500.00,R,REDACTED PERSONAL DATA,No
Http://opendatacommunities.org/id/metropolitan-district-council/leeds,Leeds City Council,28/02/2022,Communities Housing and Environment,Benefits Welfare and Poverty,Supplies and Services,Grant Related Expenditure,290,21/02/2022,2202-00541,0.00,500.00,R,REDACTED PERSONAL DATA,No
Http://opendatacommunities.org/id/metropolitan-district-council/leeds,Leeds City Council,28/02/2022,Resources,Commercial Services,Supplies and Services,Other Hired And Contracted Services,265,15/02/2022,2202-00542,0.00,355.20,R,REDACTED PERSONAL DATA,No
Http://opendatacommunities.org/id/metropolitan-district-council/leeds,Leeds City Council,28/02/2022,Resources,Commercial Services,Supplies and Services,Other Hired And Contracted Services,265,24/02/2022,2202-00543,0.00,228.00,R,REDACTED PERSONAL DATA,No
Http://opendatacommunities.org/id/metropolitan-district-council/leeds,Leeds City Council,28/02/2022,Children and Families,Social Care,Agency Payments,Section 17,551,07/02/2022,2202-00544,0.00,8.39,R,REDACTED PERSONAL DATA,No
Http://opendatacommunities.org/id/metropolitan-district-council/leeds,Leeds City Council,28/02/2022,Resources,Leeds Building Services,Supplies and Services,Operational Materials,205,02/02/2022,2202-00545,0.00,-99.60,R,Air Force Pneumatics & Hydraulics,No
Http://opendatacommunities.org/id/metropolitan-district-council/leeds,Leeds City Council,28/02/2022,City Development,Recreation,External Income,Sporting & Other Recreational Fees,928,14/02/2022,2202-00546,0.00,47.85,R,REDACTED PERSONAL DATA,No
Http://opendatacommunities.org/id/metropolitan-district-council/leeds,Leeds City Council,28/02/2022,Adults and Health,Public Health,Supplies and Services,Computer Software & Equipment,214,15/02/2022,2202-00547,0.00,15000.00,R,Aire Logic Ltd,No
Http://opendatacommunities.org/id/metropolitan-district-council/leeds,Leeds City Council,28/02/2022,Communities Housing and Environment,Parks and Countryside,Supplies and Services,Other Hired And Contracted Services,265,11/02/2022,2202-00548,0.00,2063.00,R,Aire Valley Tree Services Ltd,No
Http://opendatacommunities.org/id/metropolitan-district-council/leeds,Leeds City Council,28/02/2022,Communities Housing and Environment,Parks and Countryside,Supplies and Services,Other Hired And Contracted Services,265,18/02/2022,2202-00549,0.00,1325.00,R,Aire Valley Tree Services Ltd,No
Http://opendatacommunities.org/id/metropolitan-district-council/leeds,Leeds City Council,28/02/2022,Adults and Health,Other Adult Services,Agency Payments,HCAIT Extra Care Housing Support,576,01/02/2022,2202-00550,0.00,9960.72,R,Aire View Residential Home,No
Http://opendatacommunities.org/id/metropolitan-district-council/leeds,Leeds City Council,28/02/2022,Adults and Health,Services For Older People - 65 And Over,Agency Payments,Nursing Home,570,01/02/2022,2202-00551,0.00,10567.20,R,Aire View Residential Home,No
Http://opendatacommunities.org/id/metropolitan-district-council/leeds,Leeds City Council,28/02/2022,Adults and Health,Services For Older People - 65 And Over,Agency Payments,Residential Care Dementia,571,02/02/2022,2202-00552,0.00,52557.77,R,Aire View Residential Home,No
Http://opendatacommunities.org/id/metropolitan-district-council/leeds,Leeds City Council,28/02/2022,Adults and Health,Services For Older People - 65 And Over,Agency Payments,Residential,580,02/02/2022,2202-00553,0.00,1755.20,R,Aire View Residential Home,No
Http://opendatacommunities.org/id/metropolitan-district-council/leeds,Leeds City Council,28/02/2022,Resources,Commercial Services,Supplies and Services,Operational Furniture And Equipment,203,04/02/2022,2202-00554,0.00,4480.00,R,AIREDALE CATERING EQUIPMENT LTD,No
Http://opendatacommunities.org/id/metropolitan-district-council/leeds,Leeds City Council,28/02/2022,Resources,Commercial Services,Supplies and Services,Operational Furniture And Equipment,203,09/02/2022,2202-00555,0.00,798.00,R,AIREDALE CATERING EQUIPMENT LTD,No
Http://opendatacommunities.org/id/metropolitan-district-council/leeds,Leeds City Council,28/02/2022,Resources,Commercial Services,Supplies and Services,Operational Furniture And Equipment,203,21/02/2022,2202-00556,0.00,-154.00,R,AIREDALE CATERING EQUIPMENT LTD,No
Http://opendatacommunities.org/id/metropolitan-district-council/leeds,Leeds City Council,28/02/2022,Resources,Commercial Services,Supplies and Services,Operational Furniture And Equipment,203,21/02/2022,2202-00557,0.00,1351.00,R,AIREDALE CATERING EQUIPMENT LTD,No
Http://opendatacommunities.org/id/metropolitan-district-council/leeds,Leeds City Council,28/02/2022,Resources,Leeds Building Services,Supplies and Services,Operational Materials,205,22/02/2022,2202-00558,0.00,6158.00,R,AIREDALE CATERING EQUIPMENT LTD,No
Http://opendatacommunities.org/id/metropolitan-district-council/leeds,Leeds City Council,28/02/2022,Adults and Health,Services For Older People - 65 And Over,Agency Payments,Residential Care Dementia,571,02/02/2022,2202-00559,0.00,5670.37,R,Airedale Residential Home,No
Http://opendatacommunities.org/id/metropolitan-district-council/leeds,Leeds City Council,28/02/2022,Adults and Health,Services For Older People - 65 And Over,Agency Payments,Residential,580,02/02/2022,2202-00560,0.00,15375.88,R,Airedale Residential Home,No
Http://opendatacommunities.org/id/metropolitan-district-council/leeds,Leeds City Council,28/02/2022,Adults and Health,Services For Older People Under 65 P/Dis,Agency Payments,Residential,580,02/02/2022,2202-00561,0.00,1928.40,R,Airedale Residential Home,No
Http://opendatacommunities.org/id/metropolitan-district-council/leeds,Leeds City Council,28/02/2022,City Development,Employment & Skills,Agency Payments,Contributions To Partnerships,544,15/02/2022,2202-00562,0.00,4914.57,R,Airnow Cybersecurity Limited,No
Http://opendatacommunities.org/id/metropolitan-district-council/leeds,Leeds City Council,28/02/2022,Children and Families,Social Care ,Transport,Public Transport Expenses,310,12/01/2022,2202-00563,0.00,10.75,R,Airpay 40414672-Amber Car,Yes
Http://opendatacommunities.org/id/metropolitan-district-council/leeds,Leeds City Council,28/02/2022,Children and Families,Social Care ,Appropriations,Leaving Care Allowances,634,17/01/2022,2202-00564,0.00,11.95,R,Airpay 40446994-Amber Car,Yes
Http://opendatacommunities.org/id/metropolitan-district-council/leeds,Leeds City Council,28/02/2022,Children and Families,Social Care ,Appropriations,Leaving Care Allowances,634,17/01/2022,2202-00565,0.00,13.85,R,Airpay 40454286-Amber Car,Yes
Http://opendatacommunities.org/id/metropolitan-district-council/leeds,Leeds City Council,28/02/2022,Children and Families,Social Care ,Appropriations,Leaving Care Allowances,634,20/01/2022,2202-00566,0.00,7.65,R,Airpay 40490972-Amber Car,Yes
Http://opendatacommunities.org/id/metropolitan-district-council/leeds,Leeds City Council,28/02/2022,Children and Families,Social Care ,Transport,Public Transport Expenses,310,28/01/2022,2202-00567,0.00,5.15,R,Airpay 40579087-Amber Car,Yes
Http://opendatacommunities.org/id/metropolitan-district-council/leeds,Leeds City Council,28/02/2022,Adults and Health,Services For Adults Under 65 Mental/Dis,Agency Payments,Fees - Level 4,520,18/02/2022,2202-00568,0.00,175.00,R,AIT Mitra Limited,No
Http://opendatacommunities.org/id/metropolitan-district-council/leeds,Leeds City Council,28/02/2022,Adults and Health,Services For Adults Under 65 Mental/Dis,Agency Payments,Fees - Level 4,520,18/02/2022,2202-00569,0.00,175.00,R,AIT Mitra Limited,No
Http://opendatacommunities.org/id/metropolitan-district-council/leeds,Leeds City Council,28/02/2022,Adults and Health,Services For Adults Under 65 Mental/Dis,Agency Payments,Fees - Level 4,520,18/02/2022,2202-00570,0.00,175.00,R,AIT Mitra Limited,No
Http://opendatacommunities.org/id/metropolitan-district-council/leeds,Leeds City Council,28/02/2022,Adults and Health,Services For Adults Under 65 Mental/Dis,Agency Payments,Fees - Level 4,520,18/02/2022,2202-00571,0.00,175.00,R,AIT Mitra Limited,No
Http://opendatacommunities.org/id/metropolitan-district-council/leeds,Leeds City Council,28/02/2022,Adults and Health,Services For Adults Under 65 Mental/Dis,Agency Payments,Fees - Level 4,520,18/02/2022,2202-00572,0.00,175.00,R,AIT Mitra Limited,No
Http://opendatacommunities.org/id/metropolitan-district-council/leeds,Leeds City Council,28/02/2022,Adults and Health,Services For Adults Under 65 Mental/Dis,Agency Payments,Fees - Level 4,520,18/02/2022,2202-00573,0.00,175.00,R,AIT Mitra Limited,No
Http://opendatacommunities.org/id/metropolitan-district-council/leeds,Leeds City Council,28/02/2022,Adults and Health,Services For Adults Under 65 Mental/Dis,Agency Payments,Fees - Level 4,520,18/02/2022,2202-00574,0.00,175.00,R,AIT Mitra Limited,No
Http://opendatacommunities.org/id/metropolitan-district-council/leeds,Leeds City Council,28/02/2022,Adults and Health,Services For Adults Under 65 Mental/Dis,Agency Payments,Fees - Level 4,520,18/02/2022,2202-00575,0.00,175.00,R,AIT Mitra Limited,No
Http://opendatacommunities.org/id/metropolitan-district-council/leeds,Leeds City Council,28/02/2022,Adults and Health,Services For Adults Under 65 Mental/Dis,Agency Payments,Fees - Level 4,520,18/02/2022,2202-00576,0.00,175.00,R,AIT Mitra Limited,No
Http://opendatacommunities.org/id/metropolitan-district-council/leeds,Leeds City Council,28/02/2022,Adults and Health,Services For Adults Under 65 Mental/Dis,Agency Payments,Fees - Level 4,520,28/02/2022,2202-00577,0.00,175.00,R,AIT Mitra Limited,No
Http://opendatacommunities.org/id/metropolitan-district-council/leeds,Leeds City Council,28/02/2022,Adults and Health,Services For Adults Under 65 Mental/Dis,Agency Payments,Fees - Level 4,520,28/02/2022,2202-00578,0.00,175.00,R,AIT Mitra Limited,No
Http://opendatacommunities.org/id/metropolitan-district-council/leeds,Leeds City Council as Accountable Body,28/02/2022,Social Services Pooled Budgets,Jcs For People With Learning Disabilitie,Agency Payments,Residential,580,02/02/2022,2202-00579,0.00,6778.44,R,AITCH care homes,No
Http://opendatacommunities.org/id/metropolitan-district-council/leeds,Leeds City Council,28/02/2022,Communities Housing and Environment,Benefits Welfare and Poverty,Supplies and Services,Grant Related Expenditure,290,04/02/2022,2202-00580,0.00,500.00,R,REDACTED PERSONAL DATA,No
Http://opendatacommunities.org/id/metropolitan-district-council/leeds,Leeds City Council,28/02/2022,Communities Housing and Environment,Benefits Welfare and Poverty,Supplies and Services,Grant Related Expenditure,298,09/02/2022,2202-00581,0.00,500.00,R,REDACTED PERSONAL DATA,No
Http://opendatacommunities.org/id/metropolitan-district-council/leeds,Leeds City Council,28/02/2022,Resources,Human Resources,Employees,Occupational Health,85,01/02/2022,2202-00582,0.00,67.00,R,AJM Duvenage,No
Http://opendatacommunities.org/id/metropolitan-district-council/leeds,Leeds City Council,28/02/2022,Resources,Leeds Building Services,Supplies and Services,Operational Furniture And Equipment,203,10/02/2022,2202-00583,0.00,81.62,R,AJM FIXINGS & POWER TOOLS LTD,No
Http://opendatacommunities.org/id/metropolitan-district-council/leeds,Leeds City Council,28/02/2022,Resources,Leeds Building Services,Supplies and Services,Operational Furniture And Equipment,203,11/02/2022,2202-00584,0.00,836.00,R,AJM FIXINGS & POWER TOOLS LTD,No
Http://opendatacommunities.org/id/metropolitan-district-council/leeds,Leeds City Council,28/02/2022,Resources,Leeds Building Services,Supplies and Services,Operational Furniture And Equipment,203,18/02/2022,2202-00585,0.00,1663.28,R,AJM FIXINGS & POWER TOOLS LTD,No
Http://opendatacommunities.org/id/metropolitan-district-council/leeds,Leeds City Council,28/02/2022,Resources,Leeds Building Services,Supplies and Services,Operational Furniture And Equipment,203,18/02/2022,2202-00586,0.00,1409.99,R,AJM FIXINGS & POWER TOOLS LTD,No
Http://opendatacommunities.org/id/metropolitan-district-council/leeds,Leeds City Council,28/02/2022,Resources,Leeds Building Services,Supplies and Services,Operational Furniture And Equipment,203,18/02/2022,2202-00587,0.00,1137.28,R,AJM FIXINGS & POWER TOOLS LTD,No
Http://opendatacommunities.org/id/metropolitan-district-council/leeds,Leeds City Council,28/02/2022,Resources,Leeds Building Services,Supplies and Services,Operational Furniture And Equipment,203,18/02/2022,2202-00588,0.00,785.00,R,AJM FIXINGS & POWER TOOLS LTD,No
Http://opendatacommunities.org/id/metropolitan-district-council/leeds,Leeds City Council,28/02/2022,Resources,Leeds Building Services,Supplies and Services,Operational Furniture And Equipment,203,18/02/2022,2202-00589,0.00,831.66,R,AJM FIXINGS & POWER TOOLS LTD,No
Http://opendatacommunities.org/id/metropolitan-district-council/leeds,Leeds City Council,28/02/2022,Resources,Leeds Building Services,Supplies and Services,Operational Furniture And Equipment,203,18/02/2022,2202-00590,0.00,134.16,R,AJM FIXINGS & POWER TOOLS LTD,No
Http://opendatacommunities.org/id/metropolitan-district-council/leeds,Leeds City Council,28/02/2022,Resources,Leeds Building Services,Supplies and Services,Operational Furniture And Equipment,203,18/02/2022,2202-00591,0.00,627.00,R,AJM FIXINGS & POWER TOOLS LTD,No
Http://opendatacommunities.org/id/metropolitan-district-council/leeds,Leeds City Council,28/02/2022,Resources,Leeds Building Services,Supplies and Services,Operational Furniture And Equipment,203,18/02/2022,2202-00592,0.00,619.92,R,AJM FIXINGS & POWER TOOLS LTD,No
Http://opendatacommunities.org/id/metropolitan-district-council/leeds,Leeds City Council,28/02/2022,Resources,Leeds Building Services,Supplies and Services,Operational Furniture And Equipment,203,18/02/2022,2202-00593,0.00,105.00,R,AJM FIXINGS & POWER TOOLS LTD,No
Http://opendatacommunities.org/id/metropolitan-district-council/leeds,Leeds City Council,28/02/2022,Resources,Leeds Building Services,Supplies and Services,Operational Furniture And Equipment,203,18/02/2022,2202-00594,0.00,266.00,R,AJM FIXINGS & POWER TOOLS LTD,No
Http://opendatacommunities.org/id/metropolitan-district-council/leeds,Leeds City Council,28/02/2022,Resources,Leeds Building Services,Supplies and Services,Operational Furniture And Equipment,203,18/02/2022,2202-00595,0.00,259.00,R,AJM FIXINGS & POWER TOOLS LTD,No
Http://opendatacommunities.org/id/metropolitan-district-council/leeds,Leeds City Council,28/02/2022,Resources,Leeds Building Services,Supplies and Services,Operational Furniture And Equipment,203,18/02/2022,2202-00596,0.00,743.16,R,AJM FIXINGS & POWER TOOLS LTD,No
Http://opendatacommunities.org/id/metropolitan-district-council/leeds,Leeds City Council,28/02/2022,Resources,Leeds Building Services,Supplies and Services,Operational Furniture And Equipment,203,18/02/2022,2202-00597,0.00,524.00,R,AJM FIXINGS & POWER TOOLS LTD,No
Http://opendatacommunities.org/id/metropolitan-district-council/leeds,Leeds City Council,28/02/2022,Resources,Leeds Building Services,Supplies and Services,Operational Materials,205,18/02/2022,2202-00598,0.00,470.00,R,AJM FIXINGS & POWER TOOLS LTD,No
Http://opendatacommunities.org/id/metropolitan-district-council/leeds,Leeds City Council,28/02/2022,Resources,Leeds Building Services,Premises,Cleaning Maintenance & Toiletries,127,18/02/2022,2202-00599,0.00,564.50,R,AJM FIXINGS & POWER TOOLS LTD,No
Http://opendatacommunities.org/id/metropolitan-district-council/leeds,Leeds City Council,28/02/2022,Resources,Leeds Building Services,Supplies and Services,Operational Furniture And Equipment,203,18/02/2022,2202-00600,0.00,279.99,R,AJM FIXINGS & POWER TOOLS LTD,No
Http://opendatacommunities.org/id/metropolitan-district-council/leeds,Leeds City Council,28/02/2022,Resources,Leeds Building Services,Premises,Cleaning Maintenance & Toiletries,127,18/02/2022,2202-00601,0.00,359.00,R,AJM FIXINGS & POWER TOOLS LTD,No
Http://opendatacommunities.org/id/metropolitan-district-council/leeds,Leeds City Council,28/02/2022,Resources,Leeds Building Services,Premises,Cleaning Maintenance & Toiletries,127,18/02/2022,2202-00602,0.00,157.56,R,AJM FIXINGS & POWER TOOLS LTD,No
Http://opendatacommunities.org/id/metropolitan-district-council/leeds,Leeds City Council,28/02/2022,Resources,Leeds Building Services,Premises,Cleaning Maintenance & Toiletries,127,18/02/2022,2202-00603,0.00,2024.40,R,AJM FIXINGS & POWER TOOLS LTD,No
Http://opendatacommunities.org/id/metropolitan-district-council/leeds,Leeds City Council,28/02/2022,Resources,Leeds Building Services,Premises,Cleaning Maintenance & Toiletries,127,18/02/2022,2202-00604,0.00,581.90,R,AJM FIXINGS & POWER TOOLS LTD,No
Http://opendatacommunities.org/id/metropolitan-district-council/leeds,Leeds City Council,28/02/2022,Resources,Leeds Building Services,Supplies and Services,Operational Furniture And Equipment,203,18/02/2022,2202-00605,0.00,393.16,R,AJM FIXINGS & POWER TOOLS LTD,No
Http://opendatacommunities.org/id/metropolitan-district-council/leeds,Leeds City Council,28/02/2022,Resources,Leeds Building Services,Premises,Cleaning Maintenance & Toiletries,127,18/02/2022,2202-00606,0.00,99.83,R,AJM FIXINGS & POWER TOOLS LTD,No
Http://opendatacommunities.org/id/metropolitan-district-council/leeds,Leeds City Council,28/02/2022,Resources,Leeds Building Services,Supplies and Services,Operational Furniture And Equipment,203,18/02/2022,2202-00607,0.00,239.71,R,AJM FIXINGS & POWER TOOLS LTD,No
Http://opendatacommunities.org/id/metropolitan-district-council/leeds,Leeds City Council,28/02/2022,Resources,Leeds Building Services,Supplies and Services,Operational Materials,205,18/02/2022,2202-00608,0.00,182.70,R,AJM FIXINGS & POWER TOOLS LTD,No
Http://opendatacommunities.org/id/metropolitan-district-council/leeds,Leeds City Council,28/02/2022,Resources,Leeds Building Services,Supplies and Services,STORES - CENTRAL AND OTHER DEPOTS,005,22/02/2022,2202-00609,0.00,995.00,R,AJM FIXINGS & POWER TOOLS LTD,No
Http://opendatacommunities.org/id/metropolitan-district-council/leeds,Leeds City Council,28/02/2022,Resources,Leeds Building Services,Supplies and Services,STORES - CENTRAL AND OTHER DEPOTS,005,22/02/2022,2202-00610,0.00,485.55,R,AJM FIXINGS & POWER TOOLS LTD,No
Http://opendatacommunities.org/id/metropolitan-district-council/leeds,Leeds City Council,28/02/2022,Resources,Leeds Building Services,Supplies and Services,STORES - CENTRAL AND OTHER DEPOTS,005,22/02/2022,2202-00611,0.00,282.00,R,AJM FIXINGS & POWER TOOLS LTD,No
Http://opendatacommunities.org/id/metropolitan-district-council/leeds,Leeds City Council,28/02/2022,Resources,Leeds Building Services,Supplies and Services,Operational Furniture And Equipment,203,22/02/2022,2202-00612,0.00,88.00,R,AJM FIXINGS & POWER TOOLS LTD,No
Http://opendatacommunities.org/id/metropolitan-district-council/leeds,Leeds City Council,28/02/2022,Resources,Leeds Building Services,Supplies and Services,Operational Furniture And Equipment,203,22/02/2022,2202-00613,0.00,124.99,R,AJM FIXINGS & POWER TOOLS LTD,No
Http://opendatacommunities.org/id/metropolitan-district-council/leeds,Leeds City Council,28/02/2022,Resources,Leeds Building Services,Supplies and Services,Operational Furniture And Equipment,203,22/02/2022,2202-00614,0.00,289.78,R,AJM FIXINGS & POWER TOOLS LTD,No
Http://opendatacommunities.org/id/metropolitan-district-council/leeds,Leeds City Council,28/02/2022,Resources,Leeds Building Services,Supplies and Services,Operational Furniture And Equipment,203,22/02/2022,2202-00615,0.00,520.00,R,AJM FIXINGS & POWER TOOLS LTD,No
Http://opendatacommunities.org/id/metropolitan-district-council/leeds,Leeds City Council,28/02/2022,Resources,Leeds Building Services,Supplies and Services,Operational Furniture And Equipment,203,22/02/2022,2202-00616,0.00,146.00,R,AJM FIXINGS & POWER TOOLS LTD,No
Http://opendatacommunities.org/id/metropolitan-district-council/leeds,Leeds City Council,28/02/2022,Resources,Leeds Building Services,Supplies and Services,STORES - CENTRAL AND OTHER DEPOTS,005,25/02/2022,2202-00617,0.00,730.00,R,AJM FIXINGS & POWER TOOLS LTD,No
Http://opendatacommunities.org/id/metropolitan-district-council/leeds,Leeds City Council,28/02/2022,Communities Housing and Environment,Benefits Welfare and Poverty,Supplies and Services,Grant Related Expenditure,290,18/02/2022,2202-00618,0.00,500.00,R,REDACTED PERSONAL DATA,No
Http://opendatacommunities.org/id/metropolitan-district-council/leeds,Leeds City Council,28/02/2022,Adults and Health,Social Services Support Services,Employees,Training & Development,70,11/02/2022,2202-00619,0.00,7500.00,R,Akd Solutions Ltd,No
Http://opendatacommunities.org/id/metropolitan-district-council/leeds,Leeds City Council,28/02/2022,Resources,Strategic Housing Partnerships,Capital,CONSTRUCTION,3,03/02/2022,2202-00620,0.00,10000.00,C,AKR Construction Ltd,No
Http://opendatacommunities.org/id/metropolitan-district-council/leeds,Leeds City Council,28/02/2022,Resources,Strategic Housing Partnerships,Capital,CONSTRUCTION,3,03/02/2022,2202-00621,0.00,7000.00,C,AKR Construction Ltd,No
Http://opendatacommunities.org/id/metropolitan-district-council/leeds,Leeds City Council,28/02/2022,Resources,Strategic Housing Partnerships,Capital,CONSTRUCTION,3,10/02/2022,2202-00622,0.00,3500.00,C,AKR Construction Ltd,No
Http://opendatacommunities.org/id/metropolitan-district-council/leeds,Leeds City Council,28/02/2022,Resources,Strategic Housing Partnerships,Capital,CONSTRUCTION,3,17/02/2022,2202-00623,0.00,5000.00,C,AKR Construction Ltd,No
Http://opendatacommunities.org/id/metropolitan-district-council/leeds,Leeds City Council,28/02/2022,Resources,Strategic Housing Partnerships,Capital,CONSTRUCTION,3,24/02/2022,2202-00624,0.00,10000.00,C,AKR Construction Ltd,No
Http://opendatacommunities.org/id/metropolitan-district-council/leeds,Leeds City Council,28/02/2022,Communities Housing and Environment,Benefits Welfare and Poverty,Supplies and Services,Grant Related Expenditure,298,15/02/2022,2202-00625,0.00,500.00,R,REDACTED PERSONAL DATA,No
Http://opendatacommunities.org/id/metropolitan-district-council/leeds,Leeds City Council,28/02/2022,City Development,Libraries Arts & Heritage ,Supplies and Services,Operational Materials,205,10/01/2022,2202-00626,0.00,124.44,R,Akzonobel,Yes
Http://opendatacommunities.org/id/metropolitan-district-council/leeds,Leeds City Council,28/02/2022,City Development,Libraries Arts & Heritage,Supplies and Services,Other Hired And Contracted Services,265,04/02/2022,2202-00627,0.00,300.00,R,Alamy Limited,No
Http://opendatacommunities.org/id/metropolitan-district-council/leeds,Leeds City Council,28/02/2022,City Development,Libraries Arts & Heritage ,Supplies and Services,Books & Audio-Visual Materials,206,14/01/2022,2202-00628,0.00,119.97,R,Alamy.Com Limited,Yes
Http://opendatacommunities.org/id/metropolitan-district-council/leeds,Leeds City Council,28/02/2022,City Development,Libraries Arts & Heritage ,Supplies and Services,Books & Audio-Visual Materials,206,17/01/2022,2202-00629,0.00,39.99,R,Alamy.Com Limited,Yes
Http://opendatacommunities.org/id/metropolitan-district-council/leeds,Leeds City Council,28/02/2022,City Development,Libraries Arts & Heritage ,Supplies and Services,Books & Audio-Visual Materials,206,18/01/2022,2202-00630,0.00,39.99,R,Alamy.Com Limited,Yes
Http://opendatacommunities.org/id/metropolitan-district-council/leeds,Leeds City Council,28/02/2022,Communities Housing and Environment,Car Parking Services,External Income,Penalties Fines & Car Parking Charges,934,17/02/2022,2202-00631,0.00,30.00,R,REDACTED PERSONAL DATA,No
Http://opendatacommunities.org/id/metropolitan-district-council/leeds,Leeds City Council,28/02/2022,Communities Housing and Environment,Car Parking Services,External Income,Penalties Fines & Car Parking Charges,934,17/02/2022,2202-00632,0.00,30.00,R,REDACTED PERSONAL DATA,No
Http://opendatacommunities.org/id/metropolitan-district-council/leeds,Leeds City Council,28/02/2022,Communities Housing and Environment,Car Parking Services,External Income,Penalties Fines & Car Parking Charges,934,07/02/2022,2202-00633,0.00,30.00,R,REDACTED PERSONAL DATA,No
Http://opendatacommunities.org/id/metropolitan-district-council/leeds,Leeds City Council,28/02/2022,Children and Families,Social Care,Agency Payments,Services Rendered By Other Organisations,511,04/02/2022,2202-00634,0.00,535.20,R,REDACTED PERSONAL DATA,No
Http://opendatacommunities.org/id/metropolitan-district-council/leeds,Leeds City Council,28/02/2022,Communities Housing and Environment,Benefits Welfare and Poverty,Supplies and Services,Grant Related Expenditure,298,18/02/2022,2202-00635,0.00,500.00,R,REDACTED PERSONAL DATA,No
Http://opendatacommunities.org/id/metropolitan-district-council/leeds,Leeds City Council,28/02/2022,Communities Housing and Environment,Parks and Countryside ,Supplies and Services,Operational Materials,205,20/01/2022,2202-00636,0.00,8333.33,R,Alba Trees Plc,Yes
Http://opendatacommunities.org/id/metropolitan-district-council/leeds,Leeds City Council,28/02/2022,Communities Housing and Environment,Parks and Countryside ,Supplies and Services,Operational Materials,205,20/01/2022,2202-00637,0.00,8333.33,R,Alba Trees Plc,Yes
Http://opendatacommunities.org/id/metropolitan-district-council/leeds,Leeds City Council,28/02/2022,Communities Housing and Environment,Parks and Countryside ,Supplies and Services,Operational Materials,205,20/01/2022,2202-00638,0.00,2650.10,R,Alba Trees Plc,Yes
Http://opendatacommunities.org/id/metropolitan-district-council/leeds,Leeds City Council,28/02/2022,Communities Housing and Environment,Parks and Countryside ,Supplies and Services,Operational Materials,205,20/01/2022,2202-00639,0.00,8333.33,R,Alba Trees Plc,Yes
Http://opendatacommunities.org/id/metropolitan-district-council/leeds,Leeds City Council,28/02/2022,Communities Housing and Environment,Benefits Welfare and Poverty,Supplies and Services,Grant Related Expenditure,290,21/02/2022,2202-00640,0.00,500.00,R,REDACTED PERSONAL DATA,No
Http://opendatacommunities.org/id/metropolitan-district-council/leeds,Leeds City Council,28/02/2022,Communities Housing and Environment,Benefits Welfare and Poverty,Supplies and Services,Grant Related Expenditure,298,08/02/2022,2202-00641,0.00,500.00,R,REDACTED PERSONAL DATA,No
Http://opendatacommunities.org/id/metropolitan-district-council/leeds,Leeds City Council as Accountable Body,28/02/2022,Social Services Pooled Budgets,Leeds Community Equip Store Pooled Budgt,Supplies and Services,Other Equipment,203,15/02/2022,2202-00642,0.00,725.00,R,ALBION ELECTRIC STORES LTD,No
Http://opendatacommunities.org/id/metropolitan-district-council/leeds,Leeds City Council,28/02/2022,City Development,Economic Development,Supplies and Services,Grant Related Expenditure,298,28/02/2022,2202-00643,0.00,6836.00,R,ALBION ELECTRIC STORES LTD,No
Http://opendatacommunities.org/id/metropolitan-district-council/leeds,Leeds City Council,28/02/2022,Communities Housing and Environment,Communities,Supplies and Services,Computer Software & Equipment,214,18/02/2022,2202-00644,0.00,1228.33,R,Alcium Software Ltd,No
Http://opendatacommunities.org/id/metropolitan-district-council/leeds,Leeds City Council,28/02/2022,Communities Housing and Environment,Benefits Welfare and Poverty,Supplies and Services,Grant Related Expenditure,290,14/02/2022,2202-00645,0.00,500.00,R,REDACTED PERSONAL DATA,No
Http://opendatacommunities.org/id/metropolitan-district-council/leeds,Leeds City Council,28/02/2022,Children and Families,Social Care ,Supplies and Services,General Amenity For Clients/Residents,285,10/01/2022,2202-00646,0.00,50.92,R,Aldi,Yes
Http://opendatacommunities.org/id/metropolitan-district-council/leeds,Leeds City Council,28/02/2022,Children and Families,Social Care ,Appropriations,Leaving Care Allowances,634,06/01/2022,2202-00647,0.00,19.30,R,Aldi 40 779,Yes
Http://opendatacommunities.org/id/metropolitan-district-council/leeds,Leeds City Council,28/02/2022,Children and Families,Social Care ,Supplies and Services,Food & Drink,231,18/01/2022,2202-00648,0.00,51.60,R,Aldi 40 779,Yes
Http://opendatacommunities.org/id/metropolitan-district-council/leeds,Leeds City Council,28/02/2022,Children and Families,Social Care ,Supplies and Services,Food & Drink,231,25/01/2022,2202-00649,0.00,136.35,R,Aldi 40 779,Yes
Http://opendatacommunities.org/id/metropolitan-district-council/leeds,Leeds City Council,28/02/2022,Children and Families,Social Care ,Supplies and Services,Food & Drink,231,17/01/2022,2202-00650,0.00,23.84,R,Aldi 49 779,Yes
Http://opendatacommunities.org/id/metropolitan-district-council/leeds,Leeds City Council,28/02/2022,Children and Families,Social Care ,Supplies and Services,Teaching Materials,202,10/01/2022,2202-00651,0.00,18.21,R,Aldi 71 779,Yes
Http://opendatacommunities.org/id/metropolitan-district-council/leeds,Leeds City Council,28/02/2022,Children and Families,Social Care ,Supplies and Services,Food & Drink,231,05/01/2022,2202-00652,0.00,15.92,R,Aldi 85 779,Yes
Http://opendatacommunities.org/id/metropolitan-district-council/leeds,Leeds City Council,28/02/2022,Children and Families,Social Care ,Agency Payments,Section 17,551,10/01/2022,2202-00653,0.00,33.37,R,Aldi 85 779,Yes
Http://opendatacommunities.org/id/metropolitan-district-council/leeds,Leeds City Council,28/02/2022,Children and Families,Social Care ,Premises,Cleaning Maintenance & Toiletries,127,11/01/2022,2202-00654,0.00,5.99,R,Aldi 85 779,Yes
Http://opendatacommunities.org/id/metropolitan-district-council/leeds,Leeds City Council,28/02/2022,Children and Families,Social Care ,Supplies and Services,Operational Furniture And Equipment,203,11/01/2022,2202-00655,0.00,19.99,R,Aldi 85 779,Yes
Http://opendatacommunities.org/id/metropolitan-district-council/leeds,Leeds City Council,28/02/2022,Children and Families,Social Care ,Supplies and Services,Food & Drink,231,11/01/2022,2202-00656,0.00,84.28,R,Aldi 85 779,Yes
Http://opendatacommunities.org/id/metropolitan-district-council/leeds,Leeds City Council,28/02/2022,Children and Families,Social Care ,Supplies and Services,Food & Drink,231,26/01/2022,2202-00657,0.00,39.54,R,Aldi 85 779,Yes
Http://opendatacommunities.org/id/metropolitan-district-council/leeds,Leeds City Council,28/02/2022,Children and Families,Social Care ,Supplies and Services,Food & Drink,231,24/01/2022,2202-00658,0.00,138.89,R,Aldi 89 779,Yes
Http://opendatacommunities.org/id/metropolitan-district-council/leeds,Leeds City Council,28/02/2022,Children and Families,Social Care ,Supplies and Services,Food & Drink,231,25/01/2022,2202-00659,0.00,69.48,R,Aldi 89 779,Yes
Http://opendatacommunities.org/id/metropolitan-district-council/leeds,Leeds City Council,28/02/2022,Children and Families,Social Care ,Supplies and Services,Office Furniture & Equipment,201,27/01/2022,2202-00660,0.00,2.08,R,Aldi 89 779,Yes
Http://opendatacommunities.org/id/metropolitan-district-council/leeds,Leeds City Council,28/02/2022,Children and Families,Social Care ,Supplies and Services,Food & Drink,231,27/01/2022,2202-00661,0.00,1.49,R,Aldi 89 779,Yes
Http://opendatacommunities.org/id/metropolitan-district-council/leeds,Leeds City Council,28/02/2022,Children and Families,Social Care ,Supplies and Services,Food & Drink,231,31/01/2022,2202-00662,0.00,11.91,R,Aldi 91 773,Yes
Http://opendatacommunities.org/id/metropolitan-district-council/leeds,Leeds City Council,28/02/2022,Children and Families,Social Care ,Supplies and Services,Food & Drink,231,28/01/2022,2202-00663,0.00,1.54,R,Aldi Stores,Yes
Http://opendatacommunities.org/id/metropolitan-district-council/leeds,Leeds City Council,28/02/2022,Resources,Strategic Housing Partnerships,Capital,CONSTRUCTION,3,03/02/2022,2202-00664,0.00,7900.00,C,Aldis Builders Ltd,No
Http://opendatacommunities.org/id/metropolitan-district-council/leeds,Leeds City Council,28/02/2022,Resources,Strategic Housing Partnerships,Capital,CONSTRUCTION,3,17/02/2022,2202-00665,0.00,300.00,C,Aldis Builders Ltd,No
Http://opendatacommunities.org/id/metropolitan-district-council/leeds,Leeds City Council,28/02/2022,Communities Housing and Environment,Benefits Welfare and Poverty,Supplies and Services,Grant Related Expenditure,298,25/02/2022,2202-00666,0.00,500.00,R,REDACTED PERSONAL DATA,No
Http://opendatacommunities.org/id/metropolitan-district-council/leeds,Leeds City Council,28/02/2022,City Development,Libraries Arts & Heritage,Supplies and Services,Other Hired And Contracted Services,265,16/02/2022,2202-00667,0.00,50.00,R,REDACTED PERSONAL DATA,No
Http://opendatacommunities.org/id/metropolitan-district-council/leeds,Leeds City Council,28/02/2022,Communities Housing and Environment,Benefits Welfare and Poverty,Supplies and Services,Grant Related Expenditure,298,25/02/2022,2202-00668,0.00,500.00,R,REDACTED PERSONAL DATA,No
Http://opendatacommunities.org/id/metropolitan-district-council/leeds,Leeds City Council,28/02/2022,Communities Housing and Environment,Benefits Welfare and Poverty,Supplies and Services,Grant Related Expenditure,298,08/02/2022,2202-00669,0.00,500.00,R,REDACTED PERSONAL DATA,No
Http://opendatacommunities.org/id/metropolitan-district-council/leeds,Leeds City Council,28/02/2022,Children and Families,Social Care,Agency Payments,Section 17,551,04/02/2022,2202-00670,0.00,50.00,R,REDACTED PERSONAL DATA,No
Http://opendatacommunities.org/id/metropolitan-district-council/leeds,Leeds City Council,28/02/2022,Children and Families,Social Care,Agency Payments,Section 17,551,11/02/2022,2202-00671,0.00,50.00,R,REDACTED PERSONAL DATA,No
Http://opendatacommunities.org/id/metropolitan-district-council/leeds,Leeds City Council,28/02/2022,Children and Families,Social Care,Agency Payments,Section 17,551,18/02/2022,2202-00672,0.00,50.00,R,REDACTED PERSONAL DATA,No
Http://opendatacommunities.org/id/metropolitan-district-council/leeds,Leeds City Council,28/02/2022,Children and Families,Social Care,Agency Payments,Section 17,551,25/02/2022,2202-00673,0.00,50.00,R,REDACTED PERSONAL DATA,No
Http://opendatacommunities.org/id/metropolitan-district-council/leeds,Leeds City Council,28/02/2022,Children and Families,Social Care,Appropriations,Leaving Care Allowances,634,04/02/2022,2202-00674,0.00,100.00,R,REDACTED PERSONAL DATA,No
Http://opendatacommunities.org/id/metropolitan-district-council/leeds,Leeds City Council,28/02/2022,Children and Families,Social Care,Appropriations,Leaving Care Allowances,634,18/02/2022,2202-00675,0.00,50.00,R,REDACTED PERSONAL DATA,No
Http://opendatacommunities.org/id/metropolitan-district-council/leeds,Leeds City Council,28/02/2022,Communities Housing and Environment,Benefits Welfare and Poverty,Supplies and Services,Grant Related Expenditure,298,22/02/2022,2202-00676,0.00,500.00,R,REDACTED PERSONAL DATA,No
Http://opendatacommunities.org/id/metropolitan-district-council/leeds,Leeds City Council,28/02/2022,City Development,Libraries Arts & Heritage,Supplies and Services,Other Hired And Contracted Services,265,16/02/2022,2202-00677,0.00,50.00,R,Alex Holmes,No
Http://opendatacommunities.org/id/metropolitan-district-council/leeds,Leeds City Council,28/02/2022,Adults and Health,Social Services Support Services,Employees,Training & Development,70,28/02/2022,2202-00678,0.00,13.00,R,REDACTED PERSONAL DATA,No
Http://opendatacommunities.org/id/metropolitan-district-council/leeds,Leeds City Council,28/02/2022,Children and Families,Social Care,Agency Payments,Contact,548,23/02/2022,2202-00679,0.00,39.80,R,REDACTED PERSONAL DATA,No
Http://opendatacommunities.org/id/metropolitan-district-council/leeds,Leeds City Council,28/02/2022,Children and Families,Social Care,Agency Payments,Contact,548,25/02/2022,2202-00680,0.00,47.45,R,REDACTED PERSONAL DATA,No
Http://opendatacommunities.org/id/metropolitan-district-council/leeds,Leeds City Council,28/02/2022,Communities Housing and Environment,Benefits Welfare and Poverty,Supplies and Services,Grant Related Expenditure,298,07/02/2022,2202-00681,0.00,500.00,R,REDACTED PERSONAL DATA,No
Http://opendatacommunities.org/id/metropolitan-district-council/leeds,Leeds City Council,28/02/2022,Children and Families,Social Care,Internal Recharges,Legal Disbursements,411,23/02/2022,2202-00682,0.00,361.00,R,Alex Taylor,No
Http://opendatacommunities.org/id/metropolitan-district-council/leeds,Leeds City Council,28/02/2022,Resources,Commercial Services,Supplies and Services,Other Hired And Contracted Services,265,03/02/2022,2202-00683,0.00,350.00,R,ALEX WAGG,No
Http://opendatacommunities.org/id/metropolitan-district-council/leeds,Leeds City Council,28/02/2022,Resources,Commercial Services,Supplies and Services,Other Hired And Contracted Services,265,11/02/2022,2202-00684,0.00,80.00,R,ALEX WAGG,No
Http://opendatacommunities.org/id/metropolitan-district-council/leeds,Leeds City Council,28/02/2022,Resources,Commercial Services,Supplies and Services,Other Hired And Contracted Services,265,11/02/2022,2202-00685,0.00,200.00,R,ALEX WAGG,No
Http://opendatacommunities.org/id/metropolitan-district-council/leeds,Leeds City Council,28/02/2022,Resources,Commercial Services,Supplies and Services,Other Hired And Contracted Services,265,11/02/2022,2202-00686,0.00,40.00,R,ALEX WAGG,No
Http://opendatacommunities.org/id/metropolitan-district-council/leeds,Leeds City Council,28/02/2022,Resources,Commercial Services,Supplies and Services,Other Hired And Contracted Services,265,11/02/2022,2202-00687,0.00,80.00,R,ALEX WAGG,No
Http://opendatacommunities.org/id/metropolitan-district-council/leeds,Leeds City Council,28/02/2022,Resources,Commercial Services,Supplies and Services,Other Hired And Contracted Services,265,18/02/2022,2202-00688,0.00,190.00,R,ALEX WAGG,No
Http://opendatacommunities.org/id/metropolitan-district-council/leeds,Leeds City Council,28/02/2022,Resources,Commercial Services,Supplies and Services,Other Hired And Contracted Services,265,18/02/2022,2202-00689,0.00,175.00,R,ALEX WAGG,No
Http://opendatacommunities.org/id/metropolitan-district-council/leeds,Leeds City Council,28/02/2022,Resources,Commercial Services,Supplies and Services,Other Hired And Contracted Services,265,18/02/2022,2202-00690,0.00,120.00,R,ALEX WAGG,No
Http://opendatacommunities.org/id/metropolitan-district-council/leeds,Leeds City Council,28/02/2022,Resources,Commercial Services,Supplies and Services,Other Hired And Contracted Services,265,18/02/2022,2202-00691,0.00,80.00,R,ALEX WAGG,No
Http://opendatacommunities.org/id/metropolitan-district-council/leeds,Leeds City Council,28/02/2022,Resources,Commercial Services,Supplies and Services,Other Hired And Contracted Services,265,25/02/2022,2202-00692,0.00,300.00,R,ALEX WAGG,No
Http://opendatacommunities.org/id/metropolitan-district-council/leeds,Leeds City Council,28/02/2022,Resources,Commercial Services,Supplies and Services,Other Hired And Contracted Services,265,25/02/2022,2202-00693,0.00,80.00,R,ALEX WAGG,No
Http://opendatacommunities.org/id/metropolitan-district-council/leeds,Leeds City Council,28/02/2022,Resources,Commercial Services,Supplies and Services,Other Hired And Contracted Services,265,25/02/2022,2202-00694,0.00,80.00,R,ALEX WAGG,No
Http://opendatacommunities.org/id/metropolitan-district-council/leeds,Leeds City Council,28/02/2022,Resources,Commercial Services,Supplies and Services,Other Hired And Contracted Services,265,25/02/2022,2202-00695,0.00,80.00,R,ALEX WAGG,No
Http://opendatacommunities.org/id/metropolitan-district-council/leeds,Leeds City Council,28/02/2022,Resources,Commercial Services,Supplies and Services,Other Hired And Contracted Services,265,25/02/2022,2202-00696,0.00,350.00,R,ALEX WAGG,No
Http://opendatacommunities.org/id/metropolitan-district-council/leeds,Leeds City Council,28/02/2022,Resources,Commercial Services,Supplies and Services,Other Hired And Contracted Services,265,25/02/2022,2202-00697,0.00,370.00,R,ALEX WAGG,No
Http://opendatacommunities.org/id/metropolitan-district-council/leeds,Leeds City Council,28/02/2022,Communities Housing and Environment,Benefits Welfare and Poverty,Supplies and Services,Grant Related Expenditure,298,17/02/2022,2202-00698,0.00,500.00,R,REDACTED PERSONAL DATA,No
Http://opendatacommunities.org/id/metropolitan-district-council/leeds,Leeds City Council,28/02/2022,Strategic Landlord,Housing Management,Supplies and Services,Compensation Claims,200,03/02/2022,2202-00699,0.00,70.00,R,REDACTED PERSONAL DATA,No
Http://opendatacommunities.org/id/metropolitan-district-council/leeds,Leeds City Council,28/02/2022,Communities Housing and Environment,Benefits Welfare and Poverty,Supplies and Services,Grant Related Expenditure,298,08/02/2022,2202-00700,0.00,500.00,R,REDACTED PERSONAL DATA,No
Http://opendatacommunities.org/id/metropolitan-district-council/leeds,Leeds City Council,28/02/2022,Communities Housing and Environment,Benefits Welfare and Poverty,Supplies and Services,Grant Related Expenditure,298,02/02/2022,2202-00701,0.00,500.00,R,REDACTED PERSONAL DATA,No
Http://opendatacommunities.org/id/metropolitan-district-council/leeds,Leeds City Council,28/02/2022,Adults and Health,Other Adult Services,Agency Payments,HCAIT Extra Care Housing Support,576,01/02/2022,2202-00702,0.00,5810.42,R,ALEXANDER RESIDENTIAL HOME,No
Http://opendatacommunities.org/id/metropolitan-district-council/leeds,Leeds City Council,28/02/2022,Adults and Health,Services For Older People - 65 And Over,Agency Payments,Nursing Home,570,01/02/2022,2202-00703,0.00,7170.60,R,ALEXANDER RESIDENTIAL HOME,No
Http://opendatacommunities.org/id/metropolitan-district-council/leeds,Leeds City Council,28/02/2022,Adults and Health,Services For Adults Under 65 Mental/Dis,Agency Payments,Residential Care Dementia,571,02/02/2022,2202-00704,0.00,-10341.83,R,ALEXANDER RESIDENTIAL HOME,No
Http://opendatacommunities.org/id/metropolitan-district-council/leeds,Leeds City Council,28/02/2022,Adults and Health,Services For Older People - 65 And Over,Agency Payments,Residential Care Dementia,571,02/02/2022,2202-00705,0.00,15489.16,R,ALEXANDER RESIDENTIAL HOME,No
Http://opendatacommunities.org/id/metropolitan-district-council/leeds,Leeds City Council,28/02/2022,Adults and Health,Services For Older People - 65 And Over,Agency Payments,Residential,580,02/02/2022,2202-00706,0.00,19905.17,R,ALEXANDER RESIDENTIAL HOME,No
Http://opendatacommunities.org/id/metropolitan-district-council/leeds,Leeds City Council,28/02/2022,Communities Housing and Environment,Strategic Housing Partnership & Support,Supplies and Services,Other Hired And Contracted Services,265,24/02/2022,2202-00707,0.00,1400.02,R,Alexander Shonteff,No
Http://opendatacommunities.org/id/metropolitan-district-council/leeds,Leeds City Council,28/02/2022,Communities Housing and Environment,Benefits Welfare and Poverty,Supplies and Services,Grant Related Expenditure,298,09/02/2022,2202-00708,0.00,500.00,R,REDACTED PERSONAL DATA,No
Http://opendatacommunities.org/id/metropolitan-district-council/leeds,Leeds City Council,28/02/2022,Communities Housing and Environment,Customer Access,Supplies and Services,Bought In Professional Services,277,02/02/2022,2202-00709,0.00,72.00,R,Alexandra Costenco,No
Http://opendatacommunities.org/id/metropolitan-district-council/leeds,Leeds City Council,28/02/2022,Communities Housing and Environment,Customer Access,Supplies and Services,Bought In Professional Services,277,17/02/2022,2202-00710,0.00,18.00,R,Alexandra Costenco,No
Http://opendatacommunities.org/id/metropolitan-district-council/leeds,Leeds City Council,28/02/2022,Communities Housing and Environment,Customer Access,Supplies and Services,Bought In Professional Services,277,23/02/2022,2202-00711,0.00,45.00,R,Alexandra Costenco,No
Http://opendatacommunities.org/id/metropolitan-district-council/leeds,Leeds City Council,28/02/2022,Communities Housing and Environment,Customer Access,Supplies and Services,Bought In Professional Services,277,23/02/2022,2202-00712,0.00,45.00,R,Alexandra Costenco,No
Http://opendatacommunities.org/id/metropolitan-district-council/leeds,Leeds City Council,28/02/2022,Adults and Health,Other Adult Services,Agency Payments,HCAIT Extra Care Housing Support,576,01/02/2022,2202-00713,0.00,2845.92,R,ALEXANDRA COURT,No
Http://opendatacommunities.org/id/metropolitan-district-council/leeds,Leeds City Council,28/02/2022,Adults and Health,Services For Older People - 65 And Over,Agency Payments,Residential Care Dementia,571,02/02/2022,2202-00714,0.00,7640.24,R,ALEXANDRA COURT,No
Http://opendatacommunities.org/id/metropolitan-district-council/leeds,Leeds City Council,28/02/2022,Adults and Health,Services For Older People - 65 And Over,Agency Payments,Residential,580,02/02/2022,2202-00715,0.00,7070.60,R,ALEXANDRA COURT,No
Http://opendatacommunities.org/id/metropolitan-district-council/leeds,Leeds City Council,28/02/2022,Communities Housing and Environment,Benefits Welfare and Poverty,Supplies and Services,Grant Related Expenditure,298,16/02/2022,2202-00716,0.00,500.00,R,REDACTED PERSONAL DATA,No
Http://opendatacommunities.org/id/metropolitan-district-council/leeds,Leeds City Council,28/02/2022,Communities Housing and Environment,Benefits Welfare and Poverty,Supplies and Services,Grant Related Expenditure,298,09/02/2022,2202-00717,0.00,500.00,R,REDACTED PERSONAL DATA,No
Http://opendatacommunities.org/id/metropolitan-district-council/leeds,Leeds City Council,28/02/2022,Children and Families,Social Care,Agency Payments,Services Rendered By Other Organisations,511,04/02/2022,2202-00718,0.00,3211.20,R,REDACTED PERSONAL DATA,No
Http://opendatacommunities.org/id/metropolitan-district-council/leeds,Leeds City Council,28/02/2022,Communities Housing and Environment,Benefits Welfare and Poverty,Supplies and Services,Grant Related Expenditure,290,02/02/2022,2202-00719,0.00,500.00,R,REDACTED PERSONAL DATA,No
Http://opendatacommunities.org/id/metropolitan-district-council/leeds,Leeds City Council,28/02/2022,Communities Housing and Environment,Benefits Welfare and Poverty,Supplies and Services,Grant Related Expenditure,298,17/02/2022,2202-00720,0.00,500.00,R,REDACTED PERSONAL DATA,No
Http://opendatacommunities.org/id/metropolitan-district-council/leeds,Leeds City Council,28/02/2022,City Development,Libraries Arts & Heritage,Supplies and Services,Other Hired And Contracted Services,265,08/02/2022,2202-00721,0.00,165.37,R,Alexandra Richetti,No
Http://opendatacommunities.org/id/metropolitan-district-council/leeds,Leeds City Council,28/02/2022,Communities Housing and Environment,Benefits Welfare and Poverty,Supplies and Services,Grant Related Expenditure,298,18/02/2022,2202-00722,0.00,500.00,R,REDACTED PERSONAL DATA,No
Http://opendatacommunities.org/id/metropolitan-district-council/leeds,Leeds City Council,28/02/2022,Adults and Health,Services For Older People - 65 And Over ,Supplies and Services,Clothing & Uniforms,241,06/01/2022,2202-00723,0.00,191.88,R,Alexandra Website,Yes
Http://opendatacommunities.org/id/metropolitan-district-council/leeds,Leeds City Council,28/02/2022,Adults and Health,Services For Older People - 65 And Over ,Supplies and Services,Clothing & Uniforms,241,07/01/2022,2202-00724,0.00,36.49,R,Alexandra Website,Yes
Http://opendatacommunities.org/id/metropolitan-district-council/leeds,Leeds City Council,28/02/2022,Adults and Health,Services For Older People - 65 And Over ,Supplies and Services,Clothing & Uniforms,241,11/01/2022,2202-00725,0.00,28.14,R,Alexandra Website,Yes
Http://opendatacommunities.org/id/metropolitan-district-council/leeds,Leeds City Council,28/02/2022,Adults and Health,Services For Older People - 65 And Over ,Supplies and Services,Clothing & Uniforms,241,14/01/2022,2202-00726,0.00,360.61,R,Alexandra Website,Yes
Http://opendatacommunities.org/id/metropolitan-district-council/leeds,Leeds City Council,28/02/2022,Adults and Health,Services For Older People - 65 And Over ,Supplies and Services,Clothing & Uniforms,241,17/01/2022,2202-00727,0.00,41.42,R,Alexandra Website,Yes
Http://opendatacommunities.org/id/metropolitan-district-council/leeds,Leeds City Council,28/02/2022,Adults and Health,Services For Older People - 65 And Over ,Supplies and Services,Clothing & Uniforms,241,21/01/2022,2202-00728,0.00,23.98,R,Alexandra Website,Yes
Http://opendatacommunities.org/id/metropolitan-district-council/leeds,Leeds City Council,28/02/2022,Adults and Health,Services For Older People - 65 And Over ,Supplies and Services,Clothing & Uniforms,241,24/01/2022,2202-00729,0.00,95.94,R,Alexandra Website,Yes
Http://opendatacommunities.org/id/metropolitan-district-council/leeds,Leeds City Council,28/02/2022,Adults and Health,Services For Older People - 65 And Over ,Supplies and Services,Clothing & Uniforms,241,24/01/2022,2202-00730,0.00,36.49,R,Alexandra Website,Yes
Http://opendatacommunities.org/id/metropolitan-district-council/leeds,Leeds City Council,28/02/2022,Communities Housing and Environment,Benefits Welfare and Poverty,Supplies and Services,Grant Related Expenditure,298,02/02/2022,2202-00731,0.00,500.00,R,REDACTED PERSONAL DATA,No
Http://opendatacommunities.org/id/metropolitan-district-council/leeds,Leeds City Council,28/02/2022,Communities Housing and Environment,Benefits Welfare and Poverty,Supplies and Services,Grant Related Expenditure,290,21/02/2022,2202-00732,0.00,500.00,R,REDACTED PERSONAL DATA,No
Http://opendatacommunities.org/id/metropolitan-district-council/leeds,Leeds City Council,28/02/2022,Children and Families,Social Care,Agency Payments,Contact,548,04/02/2022,2202-00733,0.00,20.00,R,REDACTED PERSONAL DATA,No
Http://opendatacommunities.org/id/metropolitan-district-council/leeds,Leeds City Council,28/02/2022,Children and Families,Social Care,Agency Payments,Contact,548,11/02/2022,2202-00734,0.00,20.00,R,REDACTED PERSONAL DATA,No
Http://opendatacommunities.org/id/metropolitan-district-council/leeds,Leeds City Council,28/02/2022,Children and Families,Social Care,Agency Payments,Contact,548,18/02/2022,2202-00735,0.00,20.00,R,REDACTED PERSONAL DATA,No
Http://opendatacommunities.org/id/metropolitan-district-council/leeds,Leeds City Council,28/02/2022,Children and Families,Social Care,Agency Payments,Contact,548,25/02/2022,2202-00736,0.00,20.00,R,REDACTED PERSONAL DATA,No
Http://opendatacommunities.org/id/metropolitan-district-council/leeds,Leeds City Council,28/02/2022,City Development,Recreation,External Income,Sporting & Other Recreational Fees,928,18/02/2022,2202-00737,0.00,20.67,R,REDACTED PERSONAL DATA,No
Http://opendatacommunities.org/id/metropolitan-district-council/leeds,Leeds City Council,28/02/2022,City Development,Economic Development,Supplies and Services,Grant Related Expenditure,290,02/02/2022,2202-00738,0.00,7475.00,R,Alfred Bagnall & Sons (Leeds) Ltd,No
Http://opendatacommunities.org/id/metropolitan-district-council/leeds,Leeds City Council,28/02/2022,Resources,Leeds Building Services,Supplies and Services,Other Hired And Contracted Services,265,04/02/2022,2202-00739,0.00,6397.78,R,Alfred Bagnall & Sons (Leeds) Ltd,No
Http://opendatacommunities.org/id/metropolitan-district-council/leeds,Leeds City Council,28/02/2022,Resources,Leeds Building Services,Supplies and Services,Other Hired And Contracted Services,265,04/02/2022,2202-00740,0.00,12227.24,R,Alfred Bagnall & Sons (Leeds) Ltd,No
Http://opendatacommunities.org/id/metropolitan-district-council/leeds,Leeds City Council,28/02/2022,City Development,Economic Development,Supplies and Services,Grant Related Expenditure,290,17/02/2022,2202-00741,0.00,3500.00,R,Alfred Bagnall & Sons (Leeds) Ltd,No
Http://opendatacommunities.org/id/metropolitan-district-council/leeds,Leeds City Council,28/02/2022,City Development,Libraries Arts & Heritage,Supplies and Services,Other Hired And Contracted Services,265,17/02/2022,2202-00742,0.00,15150.00,R,Alfred Bagnall & Sons (Leeds) Ltd,No
Http://opendatacommunities.org/id/metropolitan-district-council/leeds,Leeds City Council,28/02/2022,Resources,Leeds Building Services,Supplies and Services,Other Hired And Contracted Services,265,18/02/2022,2202-00743,0.00,800.00,R,Alfred Bagnall & Sons (Leeds) Ltd,No
Http://opendatacommunities.org/id/metropolitan-district-council/leeds,Leeds City Council,28/02/2022,Resources,Leeds Building Services,Supplies and Services,Other Hired And Contracted Services,265,25/02/2022,2202-00744,0.00,23872.84,R,Alfred Bagnall & Sons (Leeds) Ltd,No
Http://opendatacommunities.org/id/metropolitan-district-council/leeds,Leeds City Council,28/02/2022,City Development,Economic Development,Supplies and Services,Grant Related Expenditure,290,25/02/2022,2202-00745,0.00,1250.00,R,Alfred Bagnall & Sons (Leeds) Ltd,No
Http://opendatacommunities.org/id/metropolitan-district-council/leeds,Leeds City Council,28/02/2022,City Development,Libraries Arts & Heritage,Supplies and Services,Other Hired And Contracted Services,265,25/02/2022,2202-00746,0.00,1650.00,R,Alfred Bagnall & Sons (Leeds) Ltd,No
Http://opendatacommunities.org/id/metropolitan-district-council/leeds,Leeds City Council,28/02/2022,Communities Housing and Environment,Parks and Countryside,Supplies and Services,Operational Furniture And Equipment,203,25/02/2022,2202-00747,0.00,1670.00,R,Alfred Bagnall & Sons (Leeds) Ltd,No
Http://opendatacommunities.org/id/metropolitan-district-council/leeds,Leeds City Council,28/02/2022,Resources,Corporate Property Management,Capital,CONSTRUCTION,3,25/02/2022,2202-00748,0.00,7220.00,C,Alfred Bagnall & Sons (Leeds) Ltd,No
Http://opendatacommunities.org/id/metropolitan-district-council/leeds,Leeds City Council,28/02/2022,Communities Housing and Environment,Customer Access,Supplies and Services,Other Hired And Contracted Services,265,25/02/2022,2202-00749,0.00,948.00,R,Alfred Bagnall & Sons (Leeds) Ltd,No
Http://opendatacommunities.org/id/metropolitan-district-council/leeds,Leeds City Council,28/02/2022,City Development,Economic Development,Supplies and Services,Grant Related Expenditure,290,14/02/2022,2202-00750,0.00,18010.00,R,Alfred Brown (Worsted Mills) Ltd,No
Http://opendatacommunities.org/id/metropolitan-district-council/leeds,Leeds City Council,28/02/2022,City Development,Economic Development ,Supplies and Services,Grant Related Expenditure,290,25/01/2022,2202-00751,0.00,202.50,R,Alfreshco,Yes
Http://opendatacommunities.org/id/metropolitan-district-council/leeds,Leeds City Council,28/02/2022,Communities Housing and Environment,Customer Access,Supplies and Services,Bought In Professional Services,277,02/02/2022,2202-00752,0.00,18.00,R,Ali Pourakaberian,No
Http://opendatacommunities.org/id/metropolitan-district-council/leeds,Leeds City Council,28/02/2022,Communities Housing and Environment,Customer Access,Supplies and Services,Bought In Professional Services,277,02/02/2022,2202-00753,0.00,27.00,R,Ali Pourakaberian,No
Http://opendatacommunities.org/id/metropolitan-district-council/leeds,Leeds City Council,28/02/2022,Communities Housing and Environment,Customer Access,Supplies and Services,Bought In Professional Services,277,09/02/2022,2202-00754,0.00,18.00,R,Ali Pourakaberian,No
Http://opendatacommunities.org/id/metropolitan-district-council/leeds,Leeds City Council,28/02/2022,Communities Housing and Environment,Customer Access,Supplies and Services,Bought In Professional Services,277,17/02/2022,2202-00755,0.00,18.00,R,Ali Pourakaberian,No
Http://opendatacommunities.org/id/metropolitan-district-council/leeds,Leeds City Council,28/02/2022,Communities Housing and Environment,Customer Access,Supplies and Services,Bought In Professional Services,277,17/02/2022,2202-00756,0.00,27.00,R,Ali Pourakaberian,No
Http://opendatacommunities.org/id/metropolitan-district-council/leeds,Leeds City Council,28/02/2022,Communities Housing and Environment,Customer Access,Supplies and Services,Bought In Professional Services,277,17/02/2022,2202-00757,0.00,27.00,R,Ali Pourakaberian,No
Http://opendatacommunities.org/id/metropolitan-district-council/leeds,Leeds City Council,28/02/2022,Communities Housing and Environment,Customer Access,Supplies and Services,Bought In Professional Services,277,17/02/2022,2202-00758,0.00,27.00,R,Ali Pourakaberian,No
Http://opendatacommunities.org/id/metropolitan-district-council/leeds,Leeds City Council,28/02/2022,Communities Housing and Environment,Customer Access,Supplies and Services,Bought In Professional Services,277,17/02/2022,2202-00759,0.00,27.00,R,Ali Pourakaberian,No
Http://opendatacommunities.org/id/metropolitan-district-council/leeds,Leeds City Council,28/02/2022,Communities Housing and Environment,Customer Access,Supplies and Services,Bought In Professional Services,277,23/02/2022,2202-00760,0.00,18.00,R,Ali Pourakaberian,No
Http://opendatacommunities.org/id/metropolitan-district-council/leeds,Leeds City Council,28/02/2022,Communities Housing and Environment,Customer Access,Supplies and Services,Bought In Professional Services,277,23/02/2022,2202-00761,0.00,9.00,R,Ali Pourakaberian,No
Http://opendatacommunities.org/id/metropolitan-district-council/leeds,Leeds City Council,28/02/2022,Communities Housing and Environment,Customer Access,Supplies and Services,Bought In Professional Services,277,23/02/2022,2202-00762,0.00,27.00,R,Ali Pourakaberian,No
Http://opendatacommunities.org/id/metropolitan-district-council/leeds,Leeds City Council,28/02/2022,Communities Housing and Environment,Customer Access,Supplies and Services,Bought In Professional Services,277,23/02/2022,2202-00763,0.00,24.00,R,Ali Pourakaberian,No
Http://opendatacommunities.org/id/metropolitan-district-council/leeds,Leeds City Council,28/02/2022,Insurance,Insurance,Supplies and Services,Other Hired And Contracted Services,265,03/02/2022,2202-00764,0.00,2000.00,R,Alice Dobbie,No
Http://opendatacommunities.org/id/metropolitan-district-council/leeds,Leeds City Council,28/02/2022,Insurance,Insurance,Supplies and Services,Other Hired And Contracted Services,265,03/02/2022,2202-00765,0.00,1070.00,R,Alice Dobbie,No
Http://opendatacommunities.org/id/metropolitan-district-council/leeds,Leeds City Council,28/02/2022,Insurance,Insurance,Supplies and Services,Other Hired And Contracted Services,265,10/02/2022,2202-00766,0.00,225.00,R,Alice Dobbie,No
Http://opendatacommunities.org/id/metropolitan-district-council/leeds,Leeds City Council,28/02/2022,Insurance,Insurance,Supplies and Services,Other Hired And Contracted Services,265,10/02/2022,2202-00767,0.00,187.50,R,Alice Dobbie,No
Http://opendatacommunities.org/id/metropolitan-district-council/leeds,Leeds City Council,28/02/2022,Communities Housing and Environment,Benefits Welfare and Poverty,Supplies and Services,Grant Related Expenditure,290,18/02/2022,2202-00768,0.00,500.00,R,REDACTED PERSONAL DATA,No
Http://opendatacommunities.org/id/metropolitan-district-council/leeds,Leeds City Council,28/02/2022,Communities Housing and Environment,Benefits Welfare and Poverty,Supplies and Services,Grant Related Expenditure,290,01/02/2022,2202-00769,0.00,500.00,R,REDACTED PERSONAL DATA,No
Http://opendatacommunities.org/id/metropolitan-district-council/leeds,Leeds City Council,28/02/2022,Communities Housing and Environment,Benefits Welfare and Poverty,Supplies and Services,Grant Related Expenditure,298,18/02/2022,2202-00770,0.00,500.00,R,REDACTED PERSONAL DATA,No
Http://opendatacommunities.org/id/metropolitan-district-council/leeds,Leeds City Council,28/02/2022,City Development,Recreation,External Income,Swimming Bath Charges,923,10/02/2022,2202-00771,0.00,30.86,R,REDACTED PERSONAL DATA,No
Http://opendatacommunities.org/id/metropolitan-district-council/leeds,Leeds City Council,28/02/2022,Communities Housing and Environment,Benefits Welfare and Poverty,Supplies and Services,Grant Related Expenditure,298,08/02/2022,2202-00772,0.00,500.00,R,REDACTED PERSONAL DATA,No
